Date Incurred,Directorate,Beneficiary,Purpose,Amount,Non Recoverable VAT,Supplier Type
01/07/2019,Environment and Sustainable Transport Community Safety,2cl Communications Ltd,SECURITY SERVICES (EXCLUDING PREMISES),"1,065.00",0,Commercial Supplier
01/07/2019,RMS RMS,A13 Steel Ltd,"PURCHASE - EQUIPMENT, FURNITURE AND MATERIALS",370.00,0,CIS
01/07/2019,CYP Commissioner ? Brighter Futures Youth Empowerment,Adfam National,NON-STAFF TRAINING,400.00,0,Non Commercial Supplier
01/07/2019,Children and Young People Operations & Safeguarding,Bettertogether Limited,SUPPORTED OTHER ACCOMMODATION - PRIVATE CONTRACTORS PAYMENT,"1,932.00",0,Non Commercial Supplier
01/07/2019,Children and Young People Inclusion & Achievement,Bettertogether Limited,ADDITIONAL PLACEMENTS - THIRD PARTY,"2,256.00",0,Non Commercial Supplier
01/07/2019,Children and Young People Operations & Safeguarding,Bettertogether Limited,EQUIPMENT & ADAPTATION - PRIVATE CONTRACTORS PAYMENT,"2,856.00",0,Non Commercial Supplier
01/07/2019,Children and Young People Operations & Safeguarding,Bettertogether Limited,EQUIPMENT & ADAPTATION - PRIVATE CONTRACTORS PAYMENT,"1,832.00",0,Non Commercial Supplier
01/07/2019,"Adults & Health Commissioning, Health & Social Care",Bettertogether Limited,ADULT PLACEMENT SCHEME - PRIVATE CONTRACTORS PAYMENT,"2,056.00",0,Non Commercial Supplier
01/07/2019,Children and Young People Operations & Safeguarding,Bettertogether Limited,EQUIPMENT & ADAPTATION - PRIVATE CONTRACTORS PAYMENT,"1,832.00",0,Non Commercial Supplier
01/07/2019,"Adults & Health Commissioning, Health & Social Care",Bettertogether Limited,ADULT PLACEMENT SCHEME - PRIVATE CONTRACTORS PAYMENT,"2,136.00",0,Non Commercial Supplier
01/07/2019,"Adults & Health Commissioning, Health & Social Care",Bettertogether Limited,ADULT PLACEMENT SCHEME - PRIVATE CONTRACTORS PAYMENT,"2,056.00",0,Non Commercial Supplier
01/07/2019,"Adults & Health Commissioning, Health & Social Care",Bettertogether Limited,ADULT PLACEMENT SCHEME - PRIVATE CONTRACTORS PAYMENT,"3,056.00",0,Non Commercial Supplier
01/07/2019,"Adults & Health Commissioning, Health & Social Care",Bettertogether Limited,ADULT PLACEMENT SCHEME - PRIVATE CONTRACTORS PAYMENT,"1,832.00",0,Non Commercial Supplier
01/07/2019,"Adults & Health Commissioning, Health & Social Care",Bettertogether Limited,ADULT PLACEMENT SCHEME - PRIVATE CONTRACTORS PAYMENT,"1,612.00",0,Non Commercial Supplier
01/07/2019,"Adults & Health Commissioning, Health & Social Care",Bettertogether Limited,ADULT PLACEMENT SCHEME - PRIVATE CONTRACTORS PAYMENT,"2,136.00",0,Non Commercial Supplier
01/07/2019,"Adults & Health Commissioning, Health & Social Care",Bettertogether Limited,ADULT PLACEMENT SCHEME - PRIVATE CONTRACTORS PAYMENT,"2,536.00",0,Non Commercial Supplier
01/07/2019,"Adults & Health Commissioning, Health & Social Care",Bettertogether Limited,ADULT PLACEMENT SCHEME - PRIVATE CONTRACTORS PAYMENT,"2,896.00",0,Non Commercial Supplier
01/07/2019,"Adults & Health Commissioning, Health & Social Care",Bettertogether Limited,ADULT PLACEMENT SCHEME - PRIVATE CONTRACTORS PAYMENT,"1,832.00",0,Non Commercial Supplier
01/07/2019,"Adults & Health Commissioning, Health & Social Care",Bettertogether Limited,ADULT PLACEMENT SCHEME - PRIVATE CONTRACTORS PAYMENT,"2,056.00",0,Non Commercial Supplier
01/07/2019,"Adults & Health Commissioning, Health & Social Care",Bettertogether Limited,ADULT PLACEMENT SCHEME - PRIVATE CONTRACTORS PAYMENT,"2,376.00",0,Non Commercial Supplier
01/07/2019,"Adults & Health Commissioning, Health & Social Care",Bettertogether Limited,ADULT PLACEMENT SCHEME - PRIVATE CONTRACTORS PAYMENT,"2,256.00",0,Non Commercial Supplier
01/07/2019,"Adults & Health Commissioning, Health & Social Care",Bettertogether Limited,ADULT PLACEMENT SCHEME - PRIVATE CONTRACTORS PAYMENT,"1,832.00",0,Non Commercial Supplier
01/07/2019,"Adults & Health Commissioning, Health & Social Care",Bettertogether Limited,ADULT PLACEMENT SCHEME - PRIVATE CONTRACTORS PAYMENT,"2,355.16",0,Non Commercial Supplier
01/07/2019,"Adults & Health Commissioning, Health & Social Care",Bettertogether Limited,ADULT PLACEMENT SCHEME - PRIVATE CONTRACTORS PAYMENT,"2,056.00",0,Non Commercial Supplier
01/07/2019,"Adults & Health Commissioning, Health & Social Care",Bettertogether Limited,ADULT PLACEMENT SCHEME - PRIVATE CONTRACTORS PAYMENT,"1,915.16",0,Non Commercial Supplier
01/07/2019,"Adults & Health Commissioning, Health & Social Care",Bettertogether Limited,ADULT PLACEMENT SCHEME - PRIVATE CONTRACTORS PAYMENT,"2,576.00",0,Non Commercial Supplier
01/07/2019,"Adults & Health Commissioning, Health & Social Care",Bettertogether Limited,ADULT PLACEMENT SCHEME - PRIVATE CONTRACTORS PAYMENT,"2,056.00",0,Non Commercial Supplier
01/07/2019,"Adults & Health Commissioning, Health & Social Care",Bettertogether Limited,ADULT PLACEMENT SCHEME - PRIVATE CONTRACTORS PAYMENT,"2,056.00",0,Non Commercial Supplier
01/07/2019,"Adults & Health Commissioning, Health & Social Care",Bettertogether Limited,ADULT PLACEMENT SCHEME - PRIVATE CONTRACTORS PAYMENT,"2,056.00",0,Non Commercial Supplier
01/07/2019,"Adults & Health Commissioning, Health & Social Care",Bettertogether Limited,ADULT PLACEMENT SCHEME - PRIVATE CONTRACTORS PAYMENT,"2,976.00",0,Non Commercial Supplier
01/07/2019,"Adults & Health Commissioning, Health & Social Care",Bettertogether Limited,ADULT PLACEMENT SCHEME - PRIVATE CONTRACTORS PAYMENT,"1,612.00",0,Non Commercial Supplier
01/07/2019,"Adults & Health Commissioning, Health & Social Care",Bettertogether Limited,ADULT PLACEMENT SCHEME - PRIVATE CONTRACTORS PAYMENT,"1,612.00",0,Non Commercial Supplier
01/07/2019,"Adults & Health Commissioning, Health & Social Care",Bettertogether Limited,ADULT PLACEMENT SCHEME - PRIVATE CONTRACTORS PAYMENT,"2,176.80",0,Non Commercial Supplier
01/07/2019,"Adults & Health Commissioning, Health & Social Care",Bettertogether Limited,ADULT PLACEMENT SCHEME - PRIVATE CONTRACTORS PAYMENT,"2,296.00",0,Non Commercial Supplier
01/07/2019,"Adults & Health Commissioning, Health & Social Care",Bettertogether Limited,ADULT PLACEMENT SCHEME - PRIVATE CONTRACTORS PAYMENT,"2,656.00",0,Non Commercial Supplier
01/07/2019,"Adults & Health Commissioning, Health & Social Care",Bettertogether Limited,ADULT PLACEMENT SCHEME - PRIVATE CONTRACTORS PAYMENT,"2,056.00",0,Non Commercial Supplier
01/07/2019,"Adults & Health Commissioning, Health & Social Care",Bettertogether Limited,ADULT PLACEMENT SCHEME - PRIVATE CONTRACTORS PAYMENT,"2,856.00",0,Non Commercial Supplier
01/07/2019,"Adults & Health Commissioning, Health & Social Care",Bettertogether Limited,ADULT PLACEMENT SCHEME - PRIVATE CONTRACTORS PAYMENT,"2,056.00",0,Non Commercial Supplier
01/07/2019,"Adults & Health Commissioning, Health & Social Care",Bettertogether Limited,ADULT PLACEMENT SCHEME - PRIVATE CONTRACTORS PAYMENT,"2,336.00",0,Non Commercial Supplier
01/07/2019,"Adults & Health Commissioning, Health & Social Care",Bettertogether Limited,ADULT PLACEMENT SCHEME - PRIVATE CONTRACTORS PAYMENT,"1,612.00",0,Non Commercial Supplier
01/07/2019,"Adults & Health Commissioning, Health & Social Care",Bettertogether Limited,ADULT PLACEMENT SCHEME - PRIVATE CONTRACTORS PAYMENT,"2,056.00",0,Non Commercial Supplier
01/07/2019,"Adults & Health Commissioning, Health & Social Care",Bloom Procurement Services Ltd,CONSULTANCY FEES,"3,375.00",0,Commercial Supplier
01/07/2019,Inclusive Economy & Housing Community Wealth Building,Bloom Procurement Services Ltd,CONSULTANCY FEES,"7,918.00",0,Commercial Supplier
01/07/2019,"People, Policy and Performance Change & PMO",Bloom Procurement Services Ltd,CONSULTANCY FEES,"4,500.00",0,Commercial Supplier
01/07/2019,oneSource oS ICT Services,Bottomline Technologies Bacway Services Ltd,ICT SOFTWARE,"1,192.23",0,Commercial Supplier
01/07/2019,Housing Revenue Account HRA,Brentwood Borough Council,COUNCIL TAX,"1,227.66",0,Local Authority Services
01/07/2019,Housing Revenue Account HRA,Bridge Fire & Security Ltd,RESPONSIVE REPAIRS - MECHANICAL AND ELECTRICAL,638.04,0,Supplier
01/07/2019,oneSource - Non Shared Asset Management,Building A Future (Newham Schools) Limited,"MAINTENANCE - EQUIPMENT, FURNITURE AND MATERIALS","264,290.21",0,Supplier
01/07/2019,oneSource - Non Shared Asset Management,Building A Future (Newham Schools) Limited,"MAINTENANCE - EQUIPMENT, FURNITURE AND MATERIALS","69,274.74",0,Supplier
01/07/2019,oneSource - Non Shared Asset Management,Building A Future (Newham Schools) Limited,"MAINTENANCE - EQUIPMENT, FURNITURE AND MATERIALS","68,496.48",0,Supplier
01/07/2019,oneSource oS ICT Services,CCS Media Limited.,ICT HARDWARE,"3,768.20",0,Commercial Supplier
01/07/2019,oneSource oS ICT Services,Canon (UK) Ltd,PRINTING,"7,604.93",0,Commercial Supplier
01/07/2019,Corporate Budgets Central Budgets,Collyer Bristow LLP Solicitors,GENERAL CONTINGENCY,"50,959.75",0,Commercial Supplier
01/07/2019,Corporate Budgets Central Budgets,Collyer Bristow LLP Solicitors,GENERAL CONTINGENCY,"44,887.75",0,Commercial Supplier
01/07/2019,Corporate Budgets Central Budgets,Collyer Bristow LLP Solicitors,GENERAL CONTINGENCY,"26,838.60",0,Commercial Supplier
01/07/2019,Adults & Health Operations,Compass Contract Services (Uk) Ltd,CATERING AND VENDING SUPPLIES,314.50,0,Supplier
01/07/2019,oneSource oS ICT Services,Coppermill Press,PRINTING,395.00,0,Supplier
01/07/2019,oneSource oS ICT Services,Coppermill Press,PRINTING,405.00,0,Supplier
01/07/2019,"Adults & Health Commissioning, Health & Social Care",DGT Services Ltd,SPECIALIST EQUIPMENT FOR SERVICE PROVISION,473.18,0,Commercial Supplier
01/07/2019,"Adults & Health Commissioning, Health & Social Care",DGT Services Ltd,SPECIALIST EQUIPMENT FOR SERVICE PROVISION,685.00,0,Commercial Supplier
01/07/2019,CYP Commissioner ? Brighter Futures Youth Empowerment,Donna Powell,EVENTS,300.00,0,Commercial Supplier
01/07/2019,"People, Policy and Performance Communications",Douglas Hill,PRIVATE CONTRACTORS PAYMENT - OTHER,350.00,0,Commercial Supplier
01/07/2019,"Adults & Health Commissioning, Health & Social Care",Ebme Solutions Ltd,PROFESSIONAL SERVICES - GENERAL,844.68,0,Commercial Supplier
01/07/2019,"Adults & Health Commissioning, Health & Social Care",Enabled Living Healthcare Ltd,SPECIALIST EQUIPMENT FOR SERVICE PROVISION,"117,123.76",0,Commercial Supplier
01/07/2019,"Adults & Health Commissioning, Health & Social Care",Enabled Living Healthcare Ltd,SPECIALIST EQUIPMENT FOR SERVICE PROVISION,"133,298.88",0,Commercial Supplier
01/07/2019,Dedicated Schools Budget Dedicated Schools Budget,Family and Childcare Trust,PROFESSIONAL SERVICES - GENERAL,495.00,0,Commercial Supplier
01/07/2019,Children and Young People Operations & Safeguarding,Forest Care Services Ltd,CLIENT SUPPORT - THIRD PARTY,"1,199.80",0,Non Commercial Supplier
01/07/2019,Children and Young People Operations & Safeguarding,Forest Care Services Ltd,CLIENT SUPPORT - THIRD PARTY,"1,199.80",0,Non Commercial Supplier
01/07/2019,Children and Young People Operations & Safeguarding,Forest Care Services Ltd,CLIENT SUPPORT - THIRD PARTY,"1,199.80",0,Non Commercial Supplier
01/07/2019,Children and Young People Operations & Safeguarding,Forest Care Services Ltd,SUPPORTED OTHER ACCOMMODATION - PRIVATE CONTRACTORS PAYMENT,"1,199.80",0,Non Commercial Supplier
01/07/2019,Children and Young People Operations & Safeguarding,Forest Care Services Ltd,CLIENT SUPPORT - THIRD PARTY,"1,199.80",0,Non Commercial Supplier
01/07/2019,oneSource - Non Shared Asset Management,GVA Grimley Ltd t/a Avison Young,FACILITIES MANAGEMENT,"26,474.50",0,Commercial Supplier
01/07/2019,oneSource - Non Shared Asset Management,GVA Grimley Ltd t/a Avison Young,FACILITIES MANAGEMENT,"20,868.00",0,Commercial Supplier
01/07/2019,Children and Young People Operations & Safeguarding,Garden Court Chambers Ltd,LEGAL FEES,"2,395.00",0,Legal Services
01/07/2019,oneSource - Non Shared Human Resources,Global Solution Services (UK) Ltd,STAFF DEVELOPMENT AND TRAINING,"1,800.00",0,Commercial Supplier
01/07/2019,CYP Commissioner ? Brighter Futures Youth Empowerment,Guardian News & Media Ltd,"ADVERTISING, PUBLICITY AND MARKETING","7,350.00",0,Commercial Supplier
01/07/2019,oneSource - Non Shared Asset Management,HSL Compliance Ltd,"MAINTENANCE - EQUIPMENT, FURNITURE AND MATERIALS",325.00,0,CIS
01/07/2019,oneSource - Non Shared Asset Management,HSL Compliance Ltd,"MAINTENANCE - EQUIPMENT, FURNITURE AND MATERIALS",325.00,0,CIS
01/07/2019,oneSource - Non Shared Asset Management,Integral UK Ltd,"MAINTENANCE - EQUIPMENT, FURNITURE AND MATERIALS",577.50,0,Commercial Supplier
01/07/2019,Housing Revenue Account HRA,JLA Total Care Ltd,CLEANING MATERIALS,595.00,0,Supplier
01/07/2019,"People, Policy and Performance Resident Engagement & Participation",Julian Massicott,ARTS AND LEISURE COSTS,300.00,0,Individuals
01/07/2019,oneSource - Non Shared Asset Management,Kent County Council (Kcs),GAS,345.27,0,Local Authority Services
01/07/2019,oneSource - Non Shared Asset Management,Kent County Council (Kcs),GAS,"2,159.41",0,Local Authority Services
01/07/2019,oneSource - Non Shared Asset Management,Kent County Council (Kcs),GAS,547.03,0,Local Authority Services
01/07/2019,oneSource - Non Shared Asset Management,Kent County Council (Kcs),GAS,356.13,0,Local Authority Services
01/07/2019,oneSource - Non Shared Asset Management,Kent County Council (Kcs),GAS,"1,479.24",0,Local Authority Services
01/07/2019,oneSource - Non Shared Asset Management,Kent County Council (Kcs),GAS,"1,594.69",0,Local Authority Services
01/07/2019,oneSource - Non Shared Asset Management,Kent County Council (Kcs),GAS,"2,848.06",0,Local Authority Services
01/07/2019,oneSource - Non Shared Asset Management,Kent County Council (Kcs),ELECTRICITY,398.62,0,Local Authority Services
01/07/2019,oneSource - Non Shared Asset Management,Kent County Council (Kcs),ELECTRICITY,"3,751.34",0,Local Authority Services
01/07/2019,oneSource - Non Shared Asset Management,Kent County Council (Kcs),ELECTRICITY,"1,984.56",0,Local Authority Services
01/07/2019,oneSource - Non Shared Asset Management,Kent County Council (Kcs),ELECTRICITY,526.96,0,Local Authority Services
01/07/2019,oneSource - Non Shared Asset Management,Kent County Council (Kcs),ELECTRICITY,"3,383.37",0,Local Authority Services
01/07/2019,oneSource - Non Shared Asset Management,Kent County Council (Kcs),GAS,987.76,0,Local Authority Services
01/07/2019,Housing Revenue Account HRA,Kent County Council (Kcs),ELECTRICITY,841.62,0,Local Authority Services
01/07/2019,Environment and Sustainable Transport Highways and Sustainable Transport,Kent County Council (Kcs),ELECTRICITY,628.69,0,Local Authority Services
01/07/2019,oneSource - Non Shared Asset Management,Kent County Council (Kcs),GAS,506.82,0,Local Authority Services
01/07/2019,Environment and Sustainable Transport Highways and Sustainable Transport,Kent County Council (Kcs),ELECTRICITY,"1,937.76",0,Local Authority Services
01/07/2019,oneSource - Non Shared Asset Management,Kent County Council (Kcs),ELECTRICITY,"1,021.00",0,Local Authority Services
01/07/2019,Housing Revenue Account HRA,Kent County Council (Kcs),ELECTRICITY,"2,797.93",0,Local Authority Services
01/07/2019,Housing Revenue Account HRA,Kent County Council (Kcs),ELECTRICITY,"1,284.41",0,Local Authority Services
01/07/2019,Housing Revenue Account HRA,Kent County Council (Kcs),ELECTRICITY,"1,235.85",0,Local Authority Services
01/07/2019,Housing Revenue Account HRA,Kent County Council (Kcs),ELECTRICITY,616.87,0,Local Authority Services
01/07/2019,Environment and Sustainable Transport Highways and Sustainable Transport,Kent County Council (Kcs),ELECTRICITY,424.56,0,Local Authority Services
01/07/2019,Housing Revenue Account HRA,Kent County Council (Kcs),ELECTRICITY,"1,694.51",0,Local Authority Services
01/07/2019,Housing Revenue Account HRA,Kent County Council (Kcs),ELECTRICITY,600.17,0,Local Authority Services
01/07/2019,"People, Policy and Performance Resident Engagement & Participation",Kent County Council (Kcs),ELECTRICITY,288.33,0,Local Authority Services
01/07/2019,Adults & Health Operations,Kent County Council (Kcs),GAS,722.34,0,Local Authority Services
01/07/2019,"People, Policy and Performance Resident Engagement & Participation",Kent County Council (Kcs),ELECTRICITY,663.80,0,Local Authority Services
01/07/2019,"People, Policy and Performance Resident Engagement & Participation",Kent County Council (Kcs),ELECTRICITY,"1,246.01",0,Local Authority Services
01/07/2019,"People, Policy and Performance Resident Engagement & Participation",Kent County Council (Kcs),GAS,824.47,0,Local Authority Services
01/07/2019,Environment and Sustainable Transport Highways and Sustainable Transport,Kent County Council (Kcs),ELECTRICITY,322.19,0,Local Authority Services
01/07/2019,"Environment and Sustainable Transport Recycling, Refuse and Street Cleansing",Kier Fleet & Passenger Services,DIRECT TRANSPORT,284.29,0,Supplier
01/07/2019,"People, Policy and Performance Resident Engagement & Participation",LLoyd Ramsay,ARTS AND LEISURE COSTS,"1,200.00",0,Individuals
01/07/2019,oneSource - Non Shared LBN Transactional Services,Lancashire County Council,MISCELLANEOUS EXPENSES,"24,263.92",0,Local Authority Services
01/07/2019,CYP Commissioner ? Brighter Futures Early Help and Childrens Health,Lavender Health & Social Care Limited,PAYMENT TO HEALTH AUTHORITIES,"3,168.00",0,
01/07/2019,Children and Young People Operations & Safeguarding,Lextox,SECTION 17 - PRIVATE CONTRACTORS PAYMENT,620.00,0,Commercial Supplier
01/07/2019,Children and Young People Operations & Safeguarding,Lextox,EQUIPMENT & ADAPTATION - PRIVATE CONTRACTORS PAYMENT,464.00,0,Commercial Supplier
01/07/2019,Children and Young People Operations & Safeguarding,London Councils,MEMBERSHIP AND SUBSCRIPTIONS,"14,080.00",0,Central/Government Departments
01/07/2019,CYP Commissioner ? Brighter Futures Youth Empowerment,London Youth Hindeap Warren,ARTS AND LEISURE COSTS,"1,500.00",0,Commercial Supplier
01/07/2019,Children and Young People Inclusion & Achievement,Maxine Johnson,LEGAL FEES,"3,200.00",0,Individuals
01/07/2019,Environment and Sustainable Transport Highways and Sustainable Transport,Mayors Office for Policing and Crime,ELECTRICITY,358.56,0,Non Commercial Supplier
01/07/2019,Inclusive Economy & Housing Chief Planning Officer,Mr Lindsay G Knight t/a Human Stories,EVENTS,"1,597.00",0,Commercial Supplier
01/07/2019,Housing Revenue Account HRA,Ms Clare Roberts,LEGAL FEES,"22,000.00",0,Commercial Supplier
01/07/2019,Children and Young People Operations & Safeguarding,Ms Frances McClenaghan,LEGAL FEES,"1,000.00",0,Commercial Supplier
01/07/2019,Children and Young People Operations & Safeguarding,NKB & Associates Ltd,NO RECOURSE TO PUBLIC FUNDS - PRIVATE CONTRACTORS PAYMENT,"1,200.00",0,Non Commercial Supplier
01/07/2019,"People, Policy and Performance Resident Engagement & Participation",NPower,ELECTRICITY,"2,273.90",0,Commercial Supplier
01/07/2019,CYP Commissioner ? Brighter Futures Youth Empowerment,NPower,ELECTRICITY,928.55,0,Commercial Supplier
01/07/2019,Housing Revenue Account HRA,NPower,ELECTRICITY,"174,258.73",0,Commercial Supplier
01/07/2019,Environment and Sustainable Transport Highways and Sustainable Transport,NPower,ELECTRICITY,"5,736.52",0,Commercial Supplier
01/07/2019,Environment and Sustainable Transport Licensing & Regulation,NPower,GAS,"1,536.21",0,Commercial Supplier
01/07/2019,Children and Young People Operations & Safeguarding,National Fostering Agency,RESIDENTIAL PLACEMENTS - PRIVATE CONTRACTORS PAYMENT,314.58,0,Commercial Supplier
01/07/2019,Children and Young People Operations & Safeguarding,National Fostering Agency,RESIDENTIAL PLACEMENTS - PRIVATE CONTRACTORS PAYMENT,321.00,0,Commercial Supplier
01/07/2019,oneSource - Non Shared Asset Management,Newham Learning Partnership (Project Co) Limited,"MAINTENANCE - EQUIPMENT, FURNITURE AND MATERIALS","24,640.00",0,Supplier
01/07/2019,oneSource - Non Shared Asset Management,Newham Learning Partnership (Project Co) Limited,"MAINTENANCE - EQUIPMENT, FURNITURE AND MATERIALS","369,322.38",0,Supplier
01/07/2019,oneSource - Non Shared Asset Management,Newham Learning Partnership (Project Co) Limited,"MAINTENANCE - EQUIPMENT, FURNITURE AND MATERIALS","17,423.00",0,Supplier
01/07/2019,oneSource - Non Shared Asset Management,Newham Learning Partnership (Project Co) Limited,"MAINTENANCE - EQUIPMENT, FURNITURE AND MATERIALS","297,363.55",0,Supplier
01/07/2019,"People, Policy and Performance Resident Engagement & Participation",Newham Poetry Group,ARTS AND LEISURE COSTS,427.00,0,Non Commercial Supplier
01/07/2019,oneSource - Non Shared Asset Management,Portakabin Ltd,"MAINTENANCE - EQUIPMENT, FURNITURE AND MATERIALS","1,999.64",0,Commercial Supplier
01/07/2019,"Adults & Health Commissioning, Health & Social Care",Positive East,PAYMENT TO HEALTH AUTHORITIES,"25,000.00",0,Commercial Supplier
01/07/2019,"People, Policy and Performance Resident Engagement & Participation",Powerhouse For Women,PROFESSIONAL SERVICES - GENERAL,500.00,0,Commercial Supplier
01/07/2019,Inclusive Economy & Housing Community Wealth Building,Prontaprint,PRINTING,"15,819.50",0,Commercial Supplier
01/07/2019,Inclusive Economy & Housing Community Wealth Building,RHJB,GRANTS AND CONTRIBUTIONS,"1,500.00",0,Commercial Supplier
01/07/2019,Dedicated Schools Budget Dedicated Schools Budget,Reeson Education,AGENCY STAFF,480.00,0,Commercial Supplier
01/07/2019,"People, Policy and Performance Resident Engagement & Participation",Reflex International,PRINTING,465.00,0,Non Commercial Supplier
01/07/2019,Environment and Sustainable Transport Highways and Sustainable Transport,Ringway Jacobs Ltd.,"PURCHASE - EQUIPMENT, FURNITURE AND MATERIALS","8,828.68",0,CIS
01/07/2019,oneSource - Non Shared Asset Management,Royal Mail Group Plc,POSTAGE AND COURIER SERVICES,"2,337.67",0,Commercial Supplier
01/07/2019,Inclusive Economy & Housing Housing,Rsp Rail Travel Account Atos Origin It Service Ltd,PUBLIC TRANSPORT FOR CLIENTS,813.20,0,Supplier
01/07/2019,Children and Young People Professional Practice,Sarah Harris Early Help & Safeguarding Consultant,STAFF DEVELOPMENT AND TRAINING,650.00,0,Commercial Supplier
01/07/2019,Children and Young People Professional Practice,Sarah Harris Early Help & Safeguarding Consultant,STAFF DEVELOPMENT AND TRAINING,395.00,0,Commercial Supplier
01/07/2019,Children and Young People Inclusion & Achievement,Sayers (Car Hire),DIRECT TRANSPORT,"3,239.50",0,Supplier
01/07/2019,Children and Young People Inclusion & Achievement,Sayers (Car Hire),DIRECT TRANSPORT,"1,400.00",0,Supplier
01/07/2019,Children and Young People Operations & Safeguarding,Sayers (Car Hire),NO RECOURSE TO PUBLIC FUNDS - PRIVATE CONTRACTORS PAYMENT,495.00,0,Supplier
01/07/2019,Children and Young People Inclusion & Achievement,Sayers (Car Hire),DIRECT TRANSPORT,"2,800.00",0,Supplier
01/07/2019,Children and Young People Inclusion & Achievement,Sayers (Car Hire),DIRECT TRANSPORT,711.50,0,Supplier
01/07/2019,Children and Young People Inclusion & Achievement,Sayers (Car Hire),DIRECT TRANSPORT,"2,324.00",0,Supplier
01/07/2019,Children and Young People Inclusion & Achievement,Sayers (Car Hire),DIRECT TRANSPORT,"1,195.00",0,Supplier
01/07/2019,Children and Young People Inclusion & Achievement,Sayers (Car Hire),DIRECT TRANSPORT,627.00,0,Supplier
01/07/2019,Children and Young People Inclusion & Achievement,Sayers (Car Hire),DIRECT TRANSPORT,"1,882.50",0,Supplier
01/07/2019,Children and Young People Inclusion & Achievement,Sayers (Car Hire),DIRECT TRANSPORT,"2,070.00",0,Supplier
01/07/2019,Children and Young People Inclusion & Achievement,Sayers (Car Hire),DIRECT TRANSPORT,"3,722.00",0,Supplier
01/07/2019,Children and Young People Inclusion & Achievement,Sayers (Car Hire),DIRECT TRANSPORT,"3,010.00",0,Supplier
01/07/2019,Children and Young People Inclusion & Achievement,Sayers (Car Hire),DIRECT TRANSPORT,"1,644.00",0,Supplier
01/07/2019,Children and Young People Operations & Safeguarding,Shebahl Support Services Ltd,SUPPORTED OTHER ACCOMMODATION - PRIVATE CONTRACTORS PAYMENT,"3,000.00",0,Supplier
01/07/2019,Housing Revenue Account HRA,Strutt & Parker.,LEGAL FEES,"6,800.00",0,Commercial Supplier
01/07/2019,oneSource oS ICT Services,Sully Form Ltd,"MAINTENANCE - EQUIPMENT, FURNITURE AND MATERIALS","2,964.11",0,Supplier
01/07/2019,Children and Young People Inclusion & Achievement,Teaching Support Ltd,PRIVATE CONTRACTORS PAYMENT - OTHER,525.00,0,Commercial Supplier
01/07/2019,Adults & Health Operations,Thames Reach,PRIVATE CONTRACTORS PAYMENT - OTHER,"75,000.00",0,Commercial Supplier
01/07/2019,Adults & Health Operations,The Courtney Hotel London Ltd,BED & BREAKFAST - PRIVATE CONTRACTORS PAYMENT,"5,206.46",0,Non Commercial Supplier
01/07/2019,Adults & Health Operations,The Courtney Hotel London Ltd,BED & BREAKFAST - PRIVATE CONTRACTORS PAYMENT,"2,334.99",0,Non Commercial Supplier
01/07/2019,"Environment and Sustainable Transport Recycling, Refuse and Street Cleansing",The Forklift Company,VEHICLE HIRE,346.66,0,Commercial Supplier
01/07/2019,"Environment and Sustainable Transport Recycling, Refuse and Street Cleansing",Triscan Systems Ltd,MEMBERSHIP AND SUBSCRIPTIONS,"1,686.84",0,Commercial Supplier
01/07/2019,Children and Young People Operations & Safeguarding,Ufficio Ltd,"PURCHASE - EQUIPMENT, FURNITURE AND MATERIALS",735.00,0,Commercial Supplier
01/07/2019,oneSource oS ICT Services,Unique Office Solutions Ltd,"PURCHASE - EQUIPMENT, FURNITURE AND MATERIALS","1,336.25",0,Commercial Supplier
01/07/2019,Inclusive Economy & Housing Community Wealth Building,VNY Security Ltd,STAFF DEVELOPMENT AND TRAINING,"2,670.00",0,Commercial Supplier
01/07/2019,"Adults & Health Commissioning, Health & Social Care",Valtech Ltd,"PURCHASE - EQUIPMENT, FURNITURE AND MATERIALS",563.68,0,Commercial Supplier
01/07/2019,"People, Policy and Performance Resident Engagement & Participation",Wellbeing & Wisdom Works,EVENTS,300.00,0,Commercial Supplier
01/07/2019,"People, Policy and Performance Resident Engagement & Participation",Wellbeing & Wisdom Works,EVENTS,300.00,0,Commercial Supplier
01/07/2019,Children and Young People Operations & Safeguarding,Zfa Limited,SECTION 17 - PRIVATE CONTRACTORS PAYMENT,896.00,0,Supplier
01/07/2019,Children and Young People Operations & Safeguarding,Zfa Limited,NO RECOURSE TO PUBLIC FUNDS - PRIVATE CONTRACTORS PAYMENT,"1,540.00",0,Supplier
01/07/2019,Children and Young People Operations & Safeguarding,Zfa Limited,NO RECOURSE TO PUBLIC FUNDS - PRIVATE CONTRACTORS PAYMENT,980.00,0,Supplier
01/07/2019,Children and Young People Operations & Safeguarding,Zfa Limited,NO RECOURSE TO PUBLIC FUNDS - PRIVATE CONTRACTORS PAYMENT,"1,120.00",0,Supplier
01/07/2019,Children and Young People Operations & Safeguarding,Zfa Limited,NO RECOURSE TO PUBLIC FUNDS - PRIVATE CONTRACTORS PAYMENT,736.00,0,Supplier
01/07/2019,Children and Young People Operations & Safeguarding,Zfa Limited,NO RECOURSE TO PUBLIC FUNDS - PRIVATE CONTRACTORS PAYMENT,"1,120.00",0,Supplier
01/07/2019,Children and Young People Operations & Safeguarding,Zfa Limited,SECTION 17 - PRIVATE CONTRACTORS PAYMENT,980.00,0,Supplier
01/07/2019,Children and Young People Operations & Safeguarding,Zfa Limited,SECTION 17 - PRIVATE CONTRACTORS PAYMENT,896.00,0,Supplier
01/07/2019,Children and Young People Operations & Safeguarding,Zfa Limited,SECTION 17 - PRIVATE CONTRACTORS PAYMENT,"1,540.00",0,Supplier
01/07/2019,Children and Young People Operations & Safeguarding,Zfa Limited,SECTION 17 - PRIVATE CONTRACTORS PAYMENT,"1,260.00",0,Supplier
02/07/2019,RMS RMS,A M Forktrucks Ltd,"PURCHASE - EQUIPMENT, FURNITURE AND MATERIALS",810.33,0,Commercial Supplier
02/07/2019,Children and Young People Operations & Safeguarding,Anne Marie Glover,LEGAL FEES,"1,100.00",0,Legal Services
02/07/2019,Environment and Sustainable Transport Highways and Sustainable Transport,Archant Regional Ltd,"ADVERTISING, PUBLICITY AND MARKETING",509.46,0,Non Commercial Supplier
02/07/2019,Children and Young People Operations & Safeguarding,Redacted - Personal Data,ADOPTION ALLOWANCE - PRIVATE CONTRACTORS PAYMENT,"14,333.00",0,Commercial Supplier
02/07/2019,"People, Policy and Performance Change & PMO",Bloom Procurement Services Ltd,CONSULTANCY FEES,"4,000.00",0,Commercial Supplier
02/07/2019,oneSource oS ICT Services,Bloom Procurement Services Ltd,CONSULTANCY FEES,"12,825.00",0,Commercial Supplier
02/07/2019,oneSource oS ICT Services,Bytes Software Services Ltd,ICT SOFTWARE,394.30,0,Non Commercial Supplier
02/07/2019,oneSource oS ICT Services,Bytes Software Services Ltd,ICT SOFTWARE,788.60,0,Non Commercial Supplier
02/07/2019,Children and Young People Operations & Safeguarding,CACI Ltd,PAYMENT TO HEALTH AUTHORITIES,"14,865.13",0,Commercial Supplier
02/07/2019,Housing Revenue Account HRA,Castle Water Ltd,WATER AND SEWERAGE,486.94,0,Commercial Supplier
02/07/2019,Housing Revenue Account HRA,Castle Water Ltd,WATER AND SEWERAGE,755.91,0,Commercial Supplier
02/07/2019,Housing Revenue Account HRA,Castle Water Ltd,WATER AND SEWERAGE,"2,817.62",0,Commercial Supplier
02/07/2019,Housing Revenue Account HRA,Castle Water Ltd,WATER AND SEWERAGE,"49,954.99",0,Commercial Supplier
02/07/2019,Housing Revenue Account HRA,Castle Water Ltd,WATER AND SEWERAGE,616.55,0,Commercial Supplier
02/07/2019,Children and Young People Operations & Safeguarding,Celeste Irvine.,LEGAL FEES,450.00,0,Supplier
02/07/2019,Dedicated Schools Budget Dedicated Schools Budget,Chadwell Primary School,PROFESSIONAL SERVICES - GENERAL,"4,257.08",0,Commercial Supplier
02/07/2019,Children and Young People Operations & Safeguarding,Children's Services Network Ltd t/a WillisPalmer,LEGAL FEES,378.00,0,Commercial Supplier
02/07/2019,Inclusive Economy & Housing Community Wealth Building,Compost London CIC,STAFF DEVELOPMENT AND TRAINING,"7,000.00",0,Commercial Supplier
02/07/2019,Inclusive Economy & Housing Community Wealth Building,Compost London CIC,STAFF DEVELOPMENT AND TRAINING,"16,500.00",0,Commercial Supplier
02/07/2019,"People, Policy and Performance Communications",Countess Marquees,EVENTS,"5,980.72",0,Commercial Supplier
02/07/2019,Children and Young People Operations & Safeguarding,Deborah Bryan,LEGAL FEES,550.00,0,Supplier
02/07/2019,"People, Policy and Performance Resident Engagement & Participation",Disability Reps group,CONSULTANCY FEES,500.00,0,Commercial Supplier
02/07/2019,RMS RMS,Door-Stop International Ltd,"PURCHASE - EQUIPMENT, FURNITURE AND MATERIALS",442.45,0,Supplier
02/07/2019,oneSource - Non Shared Asset Management,Education Support (Newham) Ltd,"MAINTENANCE - EQUIPMENT, FURNITURE AND MATERIALS","324,686.06",0,Supplier
02/07/2019,"People, Policy and Performance Resident Engagement & Participation",Eleanor Pearce,ARTS AND LEISURE COSTS,890.00,0,Non Commercial Supplier
02/07/2019,RMS RMS,Era Security Hardware,RECHARGES - TRADING UNDERTAKINGS,384.50,0,Supplier
02/07/2019,RMS RMS,GB Macks Skips,"PURCHASE - EQUIPMENT, FURNITURE AND MATERIALS","3,768.00",0,Commercial Supplier
02/07/2019,Inclusive Economy & Housing Community Wealth Building,Gateway Qualifications.,PROFESSIONAL SERVICES - GENERAL,750.00,0,Commercial Supplier
02/07/2019,RMS RMS,Glass System Ltd,"PURCHASE - EQUIPMENT, FURNITURE AND MATERIALS",861.55,0,Commercial Supplier
02/07/2019,"Adults & Health Commissioning, Health & Social Care",Heritage Care,SUPPORTED OTHER ACCOMMODATION - PRIVATE CONTRACTORS PAYMENT,460.00,0,Supplier
02/07/2019,Housing Revenue Account HRA,Horizon Specialist Contracting,RESPONSIVE REPAIRS - MECHANICAL AND ELECTRICAL,468.00,0,Commercial Supplier
02/07/2019,Housing Revenue Account HRA,Horizon Specialist Contracting,RESPONSIVE REPAIRS - MECHANICAL AND ELECTRICAL,389.00,0,Commercial Supplier
02/07/2019,oneSource - Non Shared Asset Management,Horizon Specialist Contracting,BUILDING ALTERATIONS AND MATERIALS,530.00,0,Commercial Supplier
02/07/2019,"People, Policy and Performance Communications",ID & C LTD,EVENTS,628.00,0,Supplier
02/07/2019,Inclusive Economy & Housing Chief Planning Officer,Inside Government,PROFESSIONAL SERVICES - GENERAL,355.50,0,Non Commercial Supplier
02/07/2019,Children and Young People Operations & Safeguarding,Jemimah Hendrick,LEGAL FEES,808.00,0,Commercial Supplier
02/07/2019,Housing Revenue Account HRA,John Rowan & Partners,FACILITIES MANAGEMENT,"5,500.00",0,Non Commercial Supplier
02/07/2019,Inclusive Economy & Housing Community Wealth Building,Juniper Ventures Ltd,CLEANING SERVICES,"4,406.78",0,Commercial Supplier
02/07/2019,Inclusive Economy & Housing Community Wealth Building,Juniper Ventures Ltd,CLEANING SERVICES,"4,406.78",0,Commercial Supplier
02/07/2019,Environment and Sustainable Transport Licensing & Regulation,Kent County Council (Kcs),GAS,282.66,0,Local Authority Services
02/07/2019,"Environment and Sustainable Transport Recycling, Refuse and Street Cleansing",L & F Plant Hire Co Ltd T/A Ti,GROUNDS MAINTENANCE,"1,000.00",0,Supplier
02/07/2019,"Environment and Sustainable Transport Recycling, Refuse and Street Cleansing",L & F Plant Hire Co Ltd T/A Ti,GROUNDS MAINTENANCE,"1,000.00",0,Supplier
02/07/2019,"Environment and Sustainable Transport Recycling, Refuse and Street Cleansing",L & F Plant Hire Co Ltd T/A Ti,GROUNDS MAINTENANCE,580.00,0,Supplier
02/07/2019,"Environment and Sustainable Transport Recycling, Refuse and Street Cleansing",L & F Plant Hire Co Ltd T/A Ti,GROUNDS MAINTENANCE,580.00,0,Supplier
02/07/2019,"Environment and Sustainable Transport Recycling, Refuse and Street Cleansing",L & F Plant Hire Co Ltd T/A Ti,GROUNDS MAINTENANCE,580.00,0,Supplier
02/07/2019,"Environment and Sustainable Transport Recycling, Refuse and Street Cleansing",L & F Plant Hire Co Ltd T/A Ti,GROUNDS MAINTENANCE,520.00,0,Supplier
02/07/2019,"Environment and Sustainable Transport Recycling, Refuse and Street Cleansing",L & F Plant Hire Co Ltd T/A Ti,GROUNDS MAINTENANCE,580.00,0,Supplier
02/07/2019,"Environment and Sustainable Transport Recycling, Refuse and Street Cleansing",L & F Plant Hire Co Ltd T/A Ti,GROUNDS MAINTENANCE,540.00,0,Supplier
02/07/2019,"Environment and Sustainable Transport Recycling, Refuse and Street Cleansing",L & F Plant Hire Co Ltd T/A Ti,GROUNDS MAINTENANCE,580.00,0,Supplier
02/07/2019,"Environment and Sustainable Transport Recycling, Refuse and Street Cleansing",L & F Plant Hire Co Ltd T/A Ti,GROUNDS MAINTENANCE,580.00,0,Supplier
02/07/2019,oneSource - Non Shared Asset Management,L M Installations Ltd,BUILDING ALTERATIONS AND MATERIALS,445.20,0,CIS
02/07/2019,Children and Young People Operations & Safeguarding,Laura Harrington,LEGAL FEES,"1,359.00",0,Non Commercial Supplier
02/07/2019,"People, Policy and Performance Policy & Performance",London Councils,PROFESSIONAL SERVICES - GENERAL,"65,737.00",0,Central/Government Departments
02/07/2019,RMS RMS,Master Locking Systems Ltd,"PURCHASE - EQUIPMENT, FURNITURE AND MATERIALS",363.20,0,Commercial Supplier
02/07/2019,Children and Young People Operations & Safeguarding,Matthew Feldman,LEGAL FEES,600.00,0,Legal Services
02/07/2019,Dedicated Schools Budget Dedicated Schools Budget,Millbrook Healthcare,PAYMENT TO HEALTH AUTHORITIES,"3,014.23",0,Commercial Supplier
02/07/2019,RMS RMS,Mint Cleaning Group Holding Ltd,"PURCHASE - EQUIPMENT, FURNITURE AND MATERIALS","2,076.00",0,Commercial Supplier
02/07/2019,RMS RMS,Mint Cleaning Group Holding Ltd,"PURCHASE - EQUIPMENT, FURNITURE AND MATERIALS",284.00,0,Commercial Supplier
02/07/2019,RMS RMS,Mint Cleaning Group Holding Ltd,"PURCHASE - EQUIPMENT, FURNITURE AND MATERIALS",476.52,0,Commercial Supplier
02/07/2019,RMS RMS,Mint Cleaning Group Holding Ltd,"PURCHASE - EQUIPMENT, FURNITURE AND MATERIALS",306.32,0,Commercial Supplier
02/07/2019,RMS RMS,Mint Cleaning Group Holding Ltd,"PURCHASE - EQUIPMENT, FURNITURE AND MATERIALS",263.28,0,Commercial Supplier
02/07/2019,RMS RMS,Mint Cleaning Group Holding Ltd,"PURCHASE - EQUIPMENT, FURNITURE AND MATERIALS",263.28,0,Commercial Supplier
02/07/2019,RMS RMS,Mint Cleaning Group Holding Ltd,"PURCHASE - EQUIPMENT, FURNITURE AND MATERIALS",402.90,0,Commercial Supplier
02/07/2019,RMS RMS,Mint Cleaning Group Holding Ltd,"PURCHASE - EQUIPMENT, FURNITURE AND MATERIALS",263.28,0,Commercial Supplier
02/07/2019,RMS RMS,Mint Cleaning Group Holding Ltd,"PURCHASE - EQUIPMENT, FURNITURE AND MATERIALS",261.68,0,Commercial Supplier
02/07/2019,RMS RMS,Mint Cleaning Group Holding Ltd,"PURCHASE - EQUIPMENT, FURNITURE AND MATERIALS",263.28,0,Commercial Supplier
02/07/2019,RMS RMS,Mint Cleaning Group Holding Ltd,"PURCHASE - EQUIPMENT, FURNITURE AND MATERIALS",277.91,0,Commercial Supplier
02/07/2019,RMS RMS,Mint Cleaning Group Holding Ltd,"PURCHASE - EQUIPMENT, FURNITURE AND MATERIALS",310.79,0,Commercial Supplier
02/07/2019,RMS RMS,Mint Cleaning Group Holding Ltd,"PURCHASE - EQUIPMENT, FURNITURE AND MATERIALS",263.28,0,Commercial Supplier
02/07/2019,RMS RMS,Mint Cleaning Group Holding Ltd,"PURCHASE - EQUIPMENT, FURNITURE AND MATERIALS",263.28,0,Commercial Supplier
02/07/2019,RMS RMS,Mint Cleaning Group Holding Ltd,"PURCHASE - EQUIPMENT, FURNITURE AND MATERIALS",746.63,0,Commercial Supplier
02/07/2019,RMS RMS,Mint Cleaning Group Holding Ltd,"PURCHASE - EQUIPMENT, FURNITURE AND MATERIALS",359.89,0,Commercial Supplier
02/07/2019,RMS RMS,Mint Cleaning Group Holding Ltd,"PURCHASE - EQUIPMENT, FURNITURE AND MATERIALS",426.85,0,Commercial Supplier
02/07/2019,RMS RMS,Mint Cleaning Group Holding Ltd,"PURCHASE - EQUIPMENT, FURNITURE AND MATERIALS",263.28,0,Commercial Supplier
02/07/2019,RMS RMS,Mint Cleaning Group Holding Ltd,"PURCHASE - EQUIPMENT, FURNITURE AND MATERIALS",263.28,0,Commercial Supplier
02/07/2019,RMS RMS,Mint Cleaning Group Holding Ltd,"PURCHASE - EQUIPMENT, FURNITURE AND MATERIALS",263.28,0,Commercial Supplier
02/07/2019,RMS RMS,Mint Cleaning Group Holding Ltd,"PURCHASE - EQUIPMENT, FURNITURE AND MATERIALS",263.28,0,Commercial Supplier
02/07/2019,RMS RMS,Mint Cleaning Group Holding Ltd,"PURCHASE - EQUIPMENT, FURNITURE AND MATERIALS",344.87,0,Commercial Supplier
02/07/2019,RMS RMS,Mint Cleaning Group Holding Ltd,"PURCHASE - EQUIPMENT, FURNITURE AND MATERIALS",309.23,0,Commercial Supplier
02/07/2019,RMS RMS,Mint Cleaning Group Holding Ltd,"PURCHASE - EQUIPMENT, FURNITURE AND MATERIALS",307.16,0,Commercial Supplier
02/07/2019,RMS RMS,Mint Cleaning Group Holding Ltd,"PURCHASE - EQUIPMENT, FURNITURE AND MATERIALS",321.78,0,Commercial Supplier
02/07/2019,RMS RMS,Mint Cleaning Group Holding Ltd,"PURCHASE - EQUIPMENT, FURNITURE AND MATERIALS",321.78,0,Commercial Supplier
02/07/2019,RMS RMS,Mint Cleaning Group Holding Ltd,"PURCHASE - EQUIPMENT, FURNITURE AND MATERIALS",645.59,0,Commercial Supplier
02/07/2019,RMS RMS,Mint Cleaning Group Holding Ltd,"PURCHASE - EQUIPMENT, FURNITURE AND MATERIALS",533.99,0,Commercial Supplier
02/07/2019,RMS RMS,Mint Cleaning Group Holding Ltd,"PURCHASE - EQUIPMENT, FURNITURE AND MATERIALS",331.48,0,Commercial Supplier
02/07/2019,RMS RMS,Mint Cleaning Group Holding Ltd,"PURCHASE - EQUIPMENT, FURNITURE AND MATERIALS",263.28,0,Commercial Supplier
02/07/2019,Children and Young People Operations & Safeguarding,Miss Meredith Major,LEGAL FEES,713.00,0,Legal Services
02/07/2019,Children and Young People Operations & Safeguarding,Mr Tim Parker,LEGAL FEES,260.00,0,Commercial Supplier
02/07/2019,CYP Commissioner ? Brighter Futures Early Help and Childrens Health,NSPCC Registered Charity,LEGAL FEES,"1,725.00",0,Commercial Supplier
02/07/2019,CYP Commissioner ? Brighter Futures Early Help and Childrens Health,NSPCC Registered Charity,LEGAL FEES,"1,725.00",0,Commercial Supplier
02/07/2019,"People, Policy and Performance Resident Engagement & Participation",Nadege Germian,ARTS AND LEISURE COSTS,320.00,0,Individuals
02/07/2019,Inclusive Economy & Housing Community Wealth Building,Notting Hill Genesis Rent Account,GRANTS AND CONTRIBUTIONS,"1,200.00",0,Commercial Supplier
02/07/2019,"People, Policy and Performance Resident Engagement & Participation",Nzinga Project,STAFF DEVELOPMENT AND TRAINING,400.00,0,Individuals
02/07/2019,CYP Commissioner ? Brighter Futures Youth Empowerment,Oakley Adventure Ltd,PROFESSIONAL SERVICES - GENERAL,"4,575.00",0,Supplier
02/07/2019,"People, Policy and Performance Resident Engagement & Participation",Pams People.,EVENTS,400.00,0,Supplier
02/07/2019,Children and Young People Operations & Safeguarding,Penna Plc.,"ADVERTISING, PUBLICITY AND MARKETING","4,983.03",0,Supplier
02/07/2019,"People, Policy and Performance Policy & Performance",Penna Plc.,"ADVERTISING, PUBLICITY AND MARKETING","10,292.00",0,Supplier
02/07/2019,Children and Young People Operations & Safeguarding,Peter Richards,LEGAL FEES,"1,000.00",0,Commercial Supplier
02/07/2019,Children and Young People Operations & Safeguarding,Peter Richards,LEGAL FEES,"3,200.00",0,Commercial Supplier
02/07/2019,"People, Policy and Performance Communications",Phil Jackson,EVENTS,"2,200.00",0,Individuals
02/07/2019,RMS RMS,Rehau Ltd,"PURCHASE - EQUIPMENT, FURNITURE AND MATERIALS",978.75,0,Supplier
02/07/2019,"Adults & Health Commissioning, Health & Social Care",Rhythmic Care Uk Ltd,HOME CARE - PRIVATE CONTRACTORS PAYMENT,724.50,0,Commercial Supplier
02/07/2019,"Adults & Health Commissioning, Health & Social Care",Rhythmic Care Uk Ltd,DAYCARE - PRIVATE CONTRACTORS PAYMENT,"2,897.99",0,Commercial Supplier
02/07/2019,"Adults & Health Commissioning, Health & Social Care",Rhythmic Care Uk Ltd,HOME CARE - PRIVATE CONTRACTORS PAYMENT,"34,997.69",0,Commercial Supplier
02/07/2019,"Adults & Health Commissioning, Health & Social Care",Rhythmic Care Uk Ltd,PRIVATE CONTRACTORS PAYMENT - OTHER,345.01,0,Commercial Supplier
02/07/2019,"Adults & Health Commissioning, Health & Social Care",Rhythmic Care Uk Ltd,RESPITE CARE - PRIVATE CONTRACTORS PAYMENT,759.00,0,Commercial Supplier
02/07/2019,oneSource oS Exchequer & Transactional Services,Ricoh UK Ltd,ICT SOFTWARE,410.22,0,Commercial Supplier
02/07/2019,Environment and Sustainable Transport Highways and Sustainable Transport,Ringway Jacobs Ltd.,"PURCHASE - EQUIPMENT, FURNITURE AND MATERIALS","21,610.58",0,CIS
02/07/2019,Environment and Sustainable Transport Highways and Sustainable Transport,Ringway Jacobs Ltd.,"PURCHASE - EQUIPMENT, FURNITURE AND MATERIALS","43,115.25",0,CIS
02/07/2019,Environment and Sustainable Transport Highways and Sustainable Transport,Ringway Jacobs Ltd.,"PURCHASE - EQUIPMENT, FURNITURE AND MATERIALS","33,687.84",0,CIS
02/07/2019,Environment and Sustainable Transport Highways and Sustainable Transport,Ringway Jacobs Ltd.,"PURCHASE - EQUIPMENT, FURNITURE AND MATERIALS","22,308.97",0,CIS
02/07/2019,Children and Young People Operations & Safeguarding,Royal Borough of Greenwich,CONSULTANCY FEES,"2,768.80",0,Local Authority Services
02/07/2019,Inclusive Economy & Housing Chief Planning Officer,Royal Borough of Greenwich,CONSULTANCY FEES,"2,328.00",0,Local Authority Services
02/07/2019,RMS RMS,Scaffolding Inc Ltd,"PURCHASE - EQUIPMENT, FURNITURE AND MATERIALS",675.00,0,CIS
02/07/2019,RMS RMS,Scaffolding Inc Ltd,"PURCHASE - EQUIPMENT, FURNITURE AND MATERIALS",990.00,0,CIS
02/07/2019,RMS RMS,Scaffolding Inc Ltd,"PURCHASE - EQUIPMENT, FURNITURE AND MATERIALS",735.00,0,CIS
02/07/2019,RMS RMS,Scaffolding Inc Ltd,"PURCHASE - EQUIPMENT, FURNITURE AND MATERIALS",940.00,0,CIS
02/07/2019,RMS RMS,Scaffolding Inc Ltd,"PURCHASE - EQUIPMENT, FURNITURE AND MATERIALS",840.00,0,CIS
02/07/2019,RMS RMS,Scaffolding Inc Ltd,"PURCHASE - EQUIPMENT, FURNITURE AND MATERIALS",780.00,0,CIS
02/07/2019,RMS RMS,Scaffolding Inc Ltd,"PURCHASE - EQUIPMENT, FURNITURE AND MATERIALS",540.00,0,CIS
02/07/2019,RMS RMS,Scaffolding Inc Ltd,"PURCHASE - EQUIPMENT, FURNITURE AND MATERIALS","1,575.00",0,CIS
02/07/2019,RMS RMS,Scaffolding Inc Ltd,"PURCHASE - EQUIPMENT, FURNITURE AND MATERIALS",525.00,0,CIS
02/07/2019,RMS RMS,Scaffolding Inc Ltd,"PURCHASE - EQUIPMENT, FURNITURE AND MATERIALS",990.00,0,CIS
02/07/2019,RMS RMS,Scaffolding Inc Ltd,"PURCHASE - EQUIPMENT, FURNITURE AND MATERIALS",480.00,0,CIS
02/07/2019,RMS RMS,Scaffolding Inc Ltd,"PURCHASE - EQUIPMENT, FURNITURE AND MATERIALS",660.00,0,CIS
02/07/2019,RMS RMS,Scaffolding Inc Ltd,"PURCHASE - EQUIPMENT, FURNITURE AND MATERIALS",420.00,0,CIS
02/07/2019,RMS RMS,Scaffolding Inc Ltd,"PURCHASE - EQUIPMENT, FURNITURE AND MATERIALS","1,200.00",0,CIS
02/07/2019,RMS RMS,Scaffolding Inc Ltd,"PURCHASE - EQUIPMENT, FURNITURE AND MATERIALS",600.00,0,CIS
02/07/2019,RMS RMS,Scaffolding Inc Ltd,"PURCHASE - EQUIPMENT, FURNITURE AND MATERIALS",350.00,0,CIS
02/07/2019,RMS RMS,Scaffolding Inc Ltd,"PURCHASE - EQUIPMENT, FURNITURE AND MATERIALS",660.00,0,CIS
02/07/2019,oneSource - Non Shared Asset Management,Shred-it Ltd,FACILITIES MANAGEMENT,"1,081.06",0,Supplier
02/07/2019,oneSource - Non Shared Asset Management,Shred-it Ltd,FACILITIES MANAGEMENT,656.64,0,Supplier
02/07/2019,Inclusive Economy & Housing Community Wealth Building,Siemens Financial Services Ltd,PROFESSIONAL SERVICES - GENERAL,287.94,0,Commercial Supplier
02/07/2019,Environment and Sustainable Transport Community Safety,Sonia Rai,LEGAL FEES,550.00,0,Supplier
02/07/2019,RMS RMS,Southern Drain Services Ltd,PRIVATE CONTRACTORS PAYMENT - OTHER,302.50,0,Commercial Supplier
02/07/2019,Inclusive Economy & Housing Community Wealth Building,Stratford City Shopping Centre (No.1) Gp Ltd,RENTS PAYABLE,"52,357.81",0,Commercial Supplier
02/07/2019,RMS RMS,Travis Perkins Trading Company Ltd,"PURCHASE - EQUIPMENT, FURNITURE AND MATERIALS",862.50,0,Commercial Supplier
02/07/2019,RMS RMS,Viking Direct,STATIONERY,292.54,0,Commercial Supplier
02/07/2019,Inclusive Economy & Housing Community Wealth Building,Walker Management Ltd,CONSULTANCY FEES,"6,850.00",0,Commercial Supplier
02/07/2019,"Adults & Health Commissioning, Health & Social Care",Western Counselling Services Ltd,PAYMENT TO HEALTH AUTHORITIES,"2,674.36",0,Commercial Supplier
02/07/2019,"People, Policy and Performance Resident Engagement & Participation",Yi Yi He,EVENTS,320.00,0,Commercial Supplier
02/07/2019,Children and Young People Operations & Safeguarding,Yorkshire Coast Child And Family Therapy,PRIVATE CONTRACTORS PAYMENT - OTHER,"1,020.00",0,Commercial Supplier
02/07/2019,Children and Young People Operations & Safeguarding,Zfa Limited,NO RECOURSE TO PUBLIC FUNDS - PRIVATE CONTRACTORS PAYMENT,784.00,0,Supplier
02/07/2019,Children and Young People Operations & Safeguarding,Zfa Limited,NO RECOURSE TO PUBLIC FUNDS - PRIVATE CONTRACTORS PAYMENT,"1,680.00",0,Supplier
02/07/2019,Children and Young People Operations & Safeguarding,Zfa Limited,SECTION 17 - PRIVATE CONTRACTORS PAYMENT,980.00,0,Supplier
02/07/2019,Children and Young People Operations & Safeguarding,Zfa Limited,NO RECOURSE TO PUBLIC FUNDS - PRIVATE CONTRACTORS PAYMENT,896.00,0,Supplier
02/07/2019,Children and Young People Operations & Safeguarding,Zfa Limited,SECTION 17 - PRIVATE CONTRACTORS PAYMENT,"1,260.00",0,Supplier
02/07/2019,Children and Young People Operations & Safeguarding,Zfa Limited,SECTION 17 - PRIVATE CONTRACTORS PAYMENT,896.00,0,Supplier
03/07/2019,Adults & Health Operations,Redacted - Personal Data,COMPENSATION,255.00,0,Individuals
03/07/2019,oneSource oS Exchequer & Transactional Services,Redacted - Personal Data,PROFESSIONAL SERVICES - GENERAL,"1,671.61",0,Individuals
03/07/2019,Inclusive Economy & Housing Chief Planning Officer,Redacted - Personal Data,PLANNING APPLICATIONS INCOME,366.00,0,Individuals
03/07/2019,"People, Policy and Performance Communications",Actz Entertainment Agency Ltd,EVENTS,"2,000.00",0,Commercial Supplier
03/07/2019,Dedicated Schools Budget Dedicated Schools Budget,Ambitious about Autism,PROFESSIONAL SERVICES - GENERAL,"34,940.22",0,Commercial Supplier
03/07/2019,Resources Council Tax & Benefits,Back Care Solutions Ltd,"MAINTENANCE - EQUIPMENT, FURNITURE AND MATERIALS",520.50,0,Commercial Supplier
03/07/2019,"Adults & Health Commissioning, Health & Social Care",Bettertogether Limited,ADULT PLACEMENT SCHEME - PRIVATE CONTRACTORS PAYMENT,"3,248.00",0,Non Commercial Supplier
03/07/2019,"Adults & Health Commissioning, Health & Social Care",Bio Luminuex Health Care Ltd,HOME CARE - PRIVATE CONTRACTORS PAYMENT,434.70,0,Supplier
03/07/2019,"Adults & Health Commissioning, Health & Social Care",Bio Luminuex Health Care Ltd,PRIVATE CONTRACTORS PAYMENT - OTHER,603.75,0,Supplier
03/07/2019,"Adults & Health Commissioning, Health & Social Care",Bio Luminuex Health Care Ltd,HOME CARE - PRIVATE CONTRACTORS PAYMENT,883.20,0,Supplier
03/07/2019,"Adults & Health Commissioning, Health & Social Care",Bio Luminuex Health Care Ltd,HOME CARE - PRIVATE CONTRACTORS PAYMENT,676.20,0,Supplier
03/07/2019,"People, Policy and Performance Change & PMO",Bloom Procurement Services Ltd,CONSULTANCY FEES,"13,400.00",0,Commercial Supplier
03/07/2019,"People, Policy and Performance Change & PMO",Bloom Procurement Services Ltd,CONSULTANCY FEES,"2,887.50",0,Commercial Supplier
03/07/2019,oneSource oS ICT Services,Bloom Procurement Services Ltd,CONSULTANCY FEES,"16,500.00",0,Commercial Supplier
03/07/2019,oneSource - Non Shared Asset Management,Bloom Procurement Services Ltd,CONSULTANCY FEES,"4,073.68",0,Commercial Supplier
03/07/2019,Housing Revenue Account HRA,Bridge Fire & Security Ltd,RESPONSIVE REPAIRS - MECHANICAL AND ELECTRICAL,"1,626.44",0,Supplier
03/07/2019,Children and Young People Operations & Safeguarding,Broadlands Hall,RESIDENTIAL PLACEMENTS - PRIVATE CONTRACTORS PAYMENT,"7,250.00",0,Commercial Supplier
03/07/2019,Housing Revenue Account HRA,C Scarborough,LEGAL FEES,600.00,0,Commercial Supplier
03/07/2019,RMS RMS,CCF Plant Hire Ltd,VEHICLE HIRE,442.87,0,Supplier
03/07/2019,RMS RMS,CCF Plant Hire Ltd,VEHICLE HIRE,"1,107.13",0,Supplier
03/07/2019,RMS RMS,CCF Plant Hire Ltd,VEHICLE HIRE,"1,107.13",0,Supplier
03/07/2019,Children and Young People Operations & Safeguarding,Cambian Childcare Ltd,RESIDENTIAL PLACEMENTS - PRIVATE CONTRACTORS PAYMENT,"14,357.10",0,Commercial Supplier
03/07/2019,oneSource oS ICT Services,Canon (UK) Ltd,ICT MAINTENANCE AND SUPPORT,263.25,0,Commercial Supplier
03/07/2019,oneSource oS ICT Services,Canon (UK) Ltd,ICT MAINTENANCE AND SUPPORT,"2,658.14",0,Commercial Supplier
03/07/2019,oneSource oS ICT Services,Canon (UK) Ltd,ICT MAINTENANCE AND SUPPORT,472.40,0,Commercial Supplier
03/07/2019,oneSource oS ICT Services,Canon (UK) Ltd,ICT MAINTENANCE AND SUPPORT,395.78,0,Commercial Supplier
03/07/2019,oneSource oS ICT Services,Canon (UK) Ltd,ICT MAINTENANCE AND SUPPORT,820.15,0,Commercial Supplier
03/07/2019,oneSource oS ICT Services,Canon (UK) Ltd,ICT MAINTENANCE AND SUPPORT,"1,004.29",0,Commercial Supplier
03/07/2019,oneSource oS ICT Services,Canon (UK) Ltd,ICT MAINTENANCE AND SUPPORT,266.26,0,Commercial Supplier
03/07/2019,oneSource oS ICT Services,Canon (UK) Ltd,ICT MAINTENANCE AND SUPPORT,"2,365.04",0,Commercial Supplier
03/07/2019,oneSource oS ICT Services,Canon (UK) Ltd,ICT MAINTENANCE AND SUPPORT,"1,069.69",0,Commercial Supplier
03/07/2019,oneSource oS ICT Services,Canon (UK) Ltd,ICT MAINTENANCE AND SUPPORT,272.15,0,Commercial Supplier
03/07/2019,oneSource oS ICT Services,Canon (UK) Ltd,ICT MAINTENANCE AND SUPPORT,982.47,0,Commercial Supplier
03/07/2019,oneSource oS ICT Services,Canon (UK) Ltd,ICT MAINTENANCE AND SUPPORT,489.68,0,Commercial Supplier
03/07/2019,oneSource oS ICT Services,Canon (UK) Ltd,ICT MAINTENANCE AND SUPPORT,"2,546.96",0,Commercial Supplier
03/07/2019,oneSource oS ICT Services,Canon (UK) Ltd,ICT MAINTENANCE AND SUPPORT,"1,929.20",0,Commercial Supplier
03/07/2019,oneSource oS ICT Services,Canon (UK) Ltd,ICT MAINTENANCE AND SUPPORT,333.06,0,Commercial Supplier
03/07/2019,"People, Policy and Performance Resident Engagement & Participation",Casino Royale,ARTS AND LEISURE COSTS,450.00,0,Commercial Supplier
03/07/2019,oneSource - Non Shared Asset Management,Castle Water Ltd,WATER AND SEWERAGE,"6,639.02",0,Commercial Supplier
03/07/2019,"People, Policy and Performance Policy & Performance",Centre Stage,"PURCHASE - EQUIPMENT, FURNITURE AND MATERIALS","2,910.00",0,Commercial Supplier
03/07/2019,"People, Policy and Performance Communications",Charlotte Osborn,EVENTS,"1,000.00",0,Individuals
03/07/2019,Dedicated Schools Budget Dedicated Schools Budget,Chartered Institute of Environmental Health-cieh,PROFESSIONAL SERVICES - GENERAL,"2,400.00",0,Non Commercial Supplier
03/07/2019,Environment and Sustainable Transport Licensing & Regulation,Chemsol Ltd,PAYMENT TO HEALTH AUTHORITIES,"1,847.93",0,Non Commercial Supplier
03/07/2019,Inclusive Economy & Housing Community Wealth Building,City Digital Ltd,"PURCHASE - EQUIPMENT, FURNITURE AND MATERIALS",295.00,0,Supplier
03/07/2019,"Adults & Health Commissioning, Health & Social Care",Contour886 Limited,SPECIALIST EQUIPMENT FOR SERVICE PROVISION,"2,947.64",0,Commercial Supplier
03/07/2019,oneSource oS ICT Services,Dataforms Chartered Press Ltd,PRINTING,"11,287.38",0,Commercial Supplier
03/07/2019,Children and Young People Operations & Safeguarding,Disclosure Services,MEMBERSHIP AND SUBSCRIPTIONS,980.00,0,Supplier
03/07/2019,RMS RMS,Dorclose Ltd,"PURCHASE - EQUIPMENT, FURNITURE AND MATERIALS","1,276.00",0,Supplier
03/07/2019,RMS RMS,Dorclose Ltd,"PURCHASE - EQUIPMENT, FURNITURE AND MATERIALS",319.00,0,Supplier
03/07/2019,RMS RMS,Dorclose Ltd,"PURCHASE - EQUIPMENT, FURNITURE AND MATERIALS",638.00,0,Supplier
03/07/2019,oneSource oS Finance,Ernst & Young LLP,CONSULTANCY FEES,"120,830.00",0,Commercial Supplier
03/07/2019,oneSource oS Finance,Ernst & Young LLP,CONSULTANCY FEES,"120,830.00",0,Commercial Supplier
03/07/2019,RMS RMS,F R Roofing Ltd,PRIVATE CONTRACTORS PAYMENT - OTHER,260.00,0,CIS
03/07/2019,Environment and Sustainable Transport Highways and Sustainable Transport,Foxtons,SUSPENSION OF PARKING BAYS INCOME,345.00,0,Non Commercial Supplier
03/07/2019,Environment and Sustainable Transport Highways and Sustainable Transport,Foxtons,SUSPENSION OF PARKING BAYS INCOME,345.00,0,Non Commercial Supplier
03/07/2019,oneSource - Non Shared Asset Management,Frontline Security Solutions,SECURITY SERVICES (EXCLUDING PREMISES),320.00,0,Supplier
03/07/2019,"Adults & Health Commissioning, Health & Social Care",Headway East London,DAYCARE - PRIVATE CONTRACTORS PAYMENT,680.00,0,Commercial Supplier
03/07/2019,"Adults & Health Commissioning, Health & Social Care",Heritage Care,RESPITE CARE - PRIVATE CONTRACTORS PAYMENT,460.00,0,Supplier
03/07/2019,"Adults & Health Commissioning, Health & Social Care",Heritage Care,RESIDENTIAL PLACEMENTS - PRIVATE CONTRACTORS PAYMENT,"1,288.00",0,Supplier
03/07/2019,"Environment and Sustainable Transport Recycling, Refuse and Street Cleansing",Ibase Systems Limited,ICT HARDWARE,"4,350.00",0,Supplier
03/07/2019,Children and Young People Operations & Safeguarding,Inclusive Care Support Ltd,CLIENT SUPPORT - THIRD PARTY,"5,800.00",0,Commercial Supplier
03/07/2019,"Adults & Health Commissioning, Health & Social Care",Inclusive Care Support Ltd,DAYCARE - PRIVATE CONTRACTORS PAYMENT,"1,260.00",0,Commercial Supplier
03/07/2019,Children and Young People Operations & Safeguarding,Inclusive Care Support Ltd,LEGAL FEES,"1,197.00",0,Commercial Supplier
03/07/2019,Children and Young People Operations & Safeguarding,Inclusive Care Support Ltd,LEGAL FEES,"1,050.00",0,Commercial Supplier
03/07/2019,Children and Young People Operations & Safeguarding,Inclusive Care Support Ltd,SUPPORTED OTHER ACCOMMODATION - PRIVATE CONTRACTORS PAYMENT,"5,797.00",0,Commercial Supplier
03/07/2019,Environment and Sustainable Transport Highways and Sustainable Transport,Ixact Limited,STREET SWEEPING,"1,104.79",0,Commercial Supplier
03/07/2019,"Environment and Sustainable Transport Recycling, Refuse and Street Cleansing",Ixact Limited,STREET SWEEPING,"289,521.89",0,Commercial Supplier
03/07/2019,Housing Revenue Account HRA,Ixact Limited,STREET SWEEPING,"85,630.26",0,Commercial Supplier
03/07/2019,"People, Policy and Performance Communications",J B Jessop East Ham Ltd,EVENTS,"1,854.00",0,Supplier
03/07/2019,Children and Young People Inclusion & Achievement,John F Kennedy School,GRANTS AND CONTRIBUTIONS,"2,300.00",0,Non Commercial Supplier
03/07/2019,"Adults & Health Commissioning, Health & Social Care",Kisimul Group Ltd,RESIDENTIAL PLACEMENTS - PRIVATE CONTRACTORS PAYMENT,"11,810.83",0,Commercial Supplier
03/07/2019,Children and Young People Operations & Safeguarding,Lextox,LEGAL FEES,637.00,0,Commercial Supplier
03/07/2019,Children and Young People Operations & Safeguarding,Lextox,LEGAL FEES,473.00,0,Commercial Supplier
03/07/2019,Dedicated Schools Budget Dedicated Schools Budget,London Borough of Havering,PROFESSIONAL SERVICES - GENERAL,"7,319.00",0,Local Authority Services
03/07/2019,Dedicated Schools Budget Dedicated Schools Budget,London Borough of Havering,PROFESSIONAL SERVICES - GENERAL,"12,655.00",0,Local Authority Services
03/07/2019,Dedicated Schools Budget Dedicated Schools Budget,London Borough of Havering,PROFESSIONAL SERVICES - GENERAL,"7,319.00",0,Local Authority Services
03/07/2019,Dedicated Schools Budget Dedicated Schools Budget,London Borough of Havering,PROFESSIONAL SERVICES - GENERAL,"12,655.00",0,Local Authority Services
03/07/2019,"Adults & Health Commissioning, Health & Social Care",London Care Plc,DAYCARE - PRIVATE CONTRACTORS PAYMENT,"6,503.76",0,Commercial Supplier
03/07/2019,"Adults & Health Commissioning, Health & Social Care",London Care Plc,RESPITE CARE - PRIVATE CONTRACTORS PAYMENT,922.32,0,Commercial Supplier
03/07/2019,"Adults & Health Commissioning, Health & Social Care",London Care Plc,HOME CARE - PRIVATE CONTRACTORS PAYMENT,"56,451.96",0,Commercial Supplier
03/07/2019,Children and Young People Operations & Safeguarding,Medlaw Ltd,LEGAL FEES,"2,438.00",0,Commercial Supplier
03/07/2019,RMS RMS,Mint Cleaning Group Holding Ltd,"PURCHASE - EQUIPMENT, FURNITURE AND MATERIALS","1,998.00",0,Commercial Supplier
03/07/2019,Children and Young People Operations & Safeguarding,Miss Geraldine More O'Ferrall,LEGAL FEES,700.00,0,Commercial Supplier
03/07/2019,Children and Young People Operations & Safeguarding,Nursing Direct Healthcare Limited,RESIDENTIAL PLACEMENTS - PRIVATE CONTRACTORS PAYMENT,"2,151.98",0,Commercial Supplier
03/07/2019,Housing Revenue Account HRA,Pellings LLP,LEGAL FEES,450.00,0,Commercial Supplier
03/07/2019,Resources Strategic Investment,Penna Plc.,"ADVERTISING, PUBLICITY AND MARKETING","21,479.50",0,Supplier
03/07/2019,oneSource oS Finance,Penna Plc.,"ADVERTISING, PUBLICITY AND MARKETING","6,344.00",0,Supplier
03/07/2019,Inclusive Economy & Housing Community Wealth Building,Penna Plc.,"ADVERTISING, PUBLICITY AND MARKETING","19,218.50",0,Supplier
03/07/2019,Inclusive Economy & Housing Community Wealth Building,Penna Plc.,"ADVERTISING, PUBLICITY AND MARKETING","19,875.00",0,Supplier
03/07/2019,RMS RMS,Public Realm Services Ltd,"PURCHASE - EQUIPMENT, FURNITURE AND MATERIALS",574.75,0,Commercial Supplier
03/07/2019,RMS RMS,Public Realm Services Ltd,"PURCHASE - EQUIPMENT, FURNITURE AND MATERIALS",291.44,0,Commercial Supplier
03/07/2019,RMS RMS,Public Realm Services Ltd,"PURCHASE - EQUIPMENT, FURNITURE AND MATERIALS",356.60,0,Commercial Supplier
03/07/2019,RMS RMS,Public Realm Services Ltd,"PURCHASE - EQUIPMENT, FURNITURE AND MATERIALS",536.53,0,Commercial Supplier
03/07/2019,RMS RMS,Public Realm Services Ltd,"PURCHASE - EQUIPMENT, FURNITURE AND MATERIALS",434.73,0,Commercial Supplier
03/07/2019,RMS RMS,Public Realm Services Ltd,"PURCHASE - EQUIPMENT, FURNITURE AND MATERIALS",467.82,0,Commercial Supplier
03/07/2019,RMS RMS,Public Realm Services Ltd,"PURCHASE - EQUIPMENT, FURNITURE AND MATERIALS",298.87,0,Commercial Supplier
03/07/2019,RMS RMS,Public Realm Services Ltd,"PURCHASE - EQUIPMENT, FURNITURE AND MATERIALS",274.72,0,Commercial Supplier
03/07/2019,RMS RMS,Public Realm Services Ltd,"PURCHASE - EQUIPMENT, FURNITURE AND MATERIALS",274.72,0,Commercial Supplier
03/07/2019,RMS RMS,Public Realm Services Ltd,"PURCHASE - EQUIPMENT, FURNITURE AND MATERIALS",275.22,0,Commercial Supplier
03/07/2019,RMS RMS,Public Realm Services Ltd,"PURCHASE - EQUIPMENT, FURNITURE AND MATERIALS",274.72,0,Commercial Supplier
03/07/2019,"Environment and Sustainable Transport Recycling, Refuse and Street Cleansing",Public Realm Services Ltd,STREET SWEEPING,"274,265.24",0,Commercial Supplier
03/07/2019,Housing Revenue Account HRA,Public Realm Services Ltd,STREET SWEEPING,"150,555.45",0,Commercial Supplier
03/07/2019,"Adults & Health Commissioning, Health & Social Care",Reed Employment Plc,DAYCARE - PRIVATE CONTRACTORS PAYMENT,"1,706.36",0,Commercial Supplier
03/07/2019,Resources Strategic Investment,Ricardo-AEA Ltd,CONSULTANCY FEES,"17,025.00",0,Commercial Supplier
03/07/2019,"Environment and Sustainable Transport Recycling, Refuse and Street Cleansing",Ricardo-AEA Ltd,CONSULTANCY FEES,"33,640.00",0,Commercial Supplier
03/07/2019,"Environment and Sustainable Transport Recycling, Refuse and Street Cleansing",Ricardo-AEA Ltd,CONSULTANCY FEES,"27,739.25",0,Commercial Supplier
03/07/2019,"Environment and Sustainable Transport Recycling, Refuse and Street Cleansing",Rioned UK Limited,DIRECT TRANSPORT,"1,500.00",0,Commercial Supplier
03/07/2019,Children and Young People Inclusion & Achievement,Sarah Bonnell School t/a Newham Community Schools Trust,GRANTS AND CONTRIBUTIONS,"1,686.00",0,Commercial Supplier
03/07/2019,Children and Young People Operations & Safeguarding,Shebahl Support Services Ltd,SUPPORTED OTHER ACCOMMODATION - PRIVATE CONTRACTORS PAYMENT,"2,142.86",0,Supplier
03/07/2019,"Adults & Health Commissioning, Health & Social Care",Single Homeless Project,PRIVATE CONTRACTORS PAYMENT - OTHER,"120,120.00",0,Commercial Supplier
03/07/2019,Children and Young People Operations & Safeguarding,Sixteen Plus Ltd,SUPPORTED OTHER ACCOMMODATION - PRIVATE CONTRACTORS PAYMENT,"3,260.00",0,Commercial Supplier
03/07/2019,Children and Young People Operations & Safeguarding,Sixteen Plus Ltd,SUPPORTED OTHER ACCOMMODATION - PRIVATE CONTRACTORS PAYMENT,"4,075.00",0,Commercial Supplier
03/07/2019,Children and Young People Operations & Safeguarding,Sixteen Plus Ltd,SUPPORTED OTHER ACCOMMODATION - PRIVATE CONTRACTORS PAYMENT,"4,290.00",0,Commercial Supplier
03/07/2019,Children and Young People Operations & Safeguarding,Sixteen Plus Ltd,SUPPORTED OTHER ACCOMMODATION - PRIVATE CONTRACTORS PAYMENT,"9,240.00",0,Commercial Supplier
03/07/2019,"Environment and Sustainable Transport Recycling, Refuse and Street Cleansing",Smart Platform Rental Ltd,VEHICLE HIRE,375.00,0,Commercial Supplier
03/07/2019,"Environment and Sustainable Transport Recycling, Refuse and Street Cleansing",Smart Platform Rental Ltd,VEHICLE HIRE,375.00,0,Commercial Supplier
03/07/2019,Children and Young People Inclusion & Achievement,St Elizabeths Centre,ADDITIONAL PLACEMENTS - THIRD PARTY,"36,086.75",0,Supplier
03/07/2019,Housing Revenue Account HRA,Stannah Lift Services Ltd,RESPONSIVE REPAIRS - MECHANICAL AND ELECTRICAL,301.25,0,Non Commercial Supplier
03/07/2019,CYP Commissioner ? Brighter Futures Youth Empowerment,The Electric Pedals Experience Ltd,EVENTS,785.50,0,Commercial Supplier
03/07/2019,"Environment and Sustainable Transport Recycling, Refuse and Street Cleansing",The Forklift Company,VEHICLE HIRE,346.66,0,Commercial Supplier
03/07/2019,"Adults & Health Commissioning, Health & Social Care",The Nelson House Recovery Trust,PAYMENT TO HEALTH AUTHORITIES,"1,681.47",0,Supplier
03/07/2019,"People, Policy and Performance Resident Engagement & Participation",The New Black Film Collective,ARTS AND LEISURE COSTS,"1,243.77",0,Supplier
03/07/2019,"Adults & Health Commissioning, Health & Social Care",Three Cs,DAYCARE - PRIVATE CONTRACTORS PAYMENT,358.40,0,Supplier
03/07/2019,"Adults & Health Commissioning, Health & Social Care",Three Cs,DAYCARE - PRIVATE CONTRACTORS PAYMENT,967.68,0,Supplier
03/07/2019,"People, Policy and Performance Resident Engagement & Participation",Titan Containers A/S,STORAGE AND ARCHIVING,286.75,0,Supplier
03/07/2019,Children and Young People Inclusion & Achievement,Up And Under Outdoor Gear Ltd,"MAINTENANCE - EQUIPMENT, FURNITURE AND MATERIALS","3,433.29",0,Supplier
03/07/2019,oneSource oS ICT Services,Urgent Delivery Couriers Ltd,POSTAGE AND COURIER SERVICES,"1,110.87",0,Commercial Supplier
03/07/2019,oneSource oS ICT Services,Urgent Delivery Couriers Ltd,POSTAGE AND COURIER SERVICES,999.35,0,Commercial Supplier
03/07/2019,oneSource oS ICT Services,Urgent Delivery Couriers Ltd,POSTAGE AND COURIER SERVICES,505.48,0,Commercial Supplier
03/07/2019,oneSource oS ICT Services,Urgent Delivery Couriers Ltd,POSTAGE AND COURIER SERVICES,"4,675.60",0,Commercial Supplier
03/07/2019,oneSource oS ICT Services,Urgent Delivery Couriers Ltd,POSTAGE AND COURIER SERVICES,380.00,0,Commercial Supplier
03/07/2019,oneSource oS ICT Services,Urgent Delivery Couriers Ltd,POSTAGE AND COURIER SERVICES,492.16,0,Commercial Supplier
03/07/2019,oneSource oS ICT Services,Urgent Delivery Couriers Ltd,POSTAGE AND COURIER SERVICES,390.40,0,Commercial Supplier
03/07/2019,oneSource oS ICT Services,Urgent Delivery Couriers Ltd,POSTAGE AND COURIER SERVICES,408.24,0,Commercial Supplier
03/07/2019,oneSource oS ICT Services,Urgent Delivery Couriers Ltd,POSTAGE AND COURIER SERVICES,365.00,0,Commercial Supplier
03/07/2019,oneSource oS ICT Services,Urgent Delivery Couriers Ltd,POSTAGE AND COURIER SERVICES,606.56,0,Commercial Supplier
03/07/2019,oneSource oS ICT Services,Urgent Delivery Couriers Ltd,POSTAGE AND COURIER SERVICES,666.30,0,Commercial Supplier
03/07/2019,oneSource oS ICT Services,Urgent Delivery Couriers Ltd,POSTAGE AND COURIER SERVICES,354.04,0,Commercial Supplier
03/07/2019,oneSource oS ICT Services,Urgent Delivery Couriers Ltd,POSTAGE AND COURIER SERVICES,"1,034.00",0,Commercial Supplier
03/07/2019,oneSource oS ICT Services,Urgent Delivery Couriers Ltd,POSTAGE AND COURIER SERVICES,379.26,0,Commercial Supplier
03/07/2019,Inclusive Economy & Housing Community Wealth Building,Wisdom Design Limited,"ADVERTISING, PUBLICITY AND MARKETING",320.00,0,Supplier
03/07/2019,"Adults & Health Commissioning, Health & Social Care",Wood Lane Elite Car's Ltd.,OTHER SOCIAL SERVICES TRANSFER PAYMENTS,256.00,0,Commercial Supplier
03/07/2019,Children and Young People Operations & Safeguarding,Zfa Limited,SECTION 17 - PRIVATE CONTRACTORS PAYMENT,980.00,0,Supplier
03/07/2019,Children and Young People Operations & Safeguarding,Zfa Limited,SECTION 17 - PRIVATE CONTRACTORS PAYMENT,"1,008.00",0,Supplier
03/07/2019,Children and Young People Operations & Safeguarding,Zfa Limited,SECTION 17 - PRIVATE CONTRACTORS PAYMENT,"1,260.00",0,Supplier
03/07/2019,Children and Young People Operations & Safeguarding,Zfa Limited,SECTION 17 - PRIVATE CONTRACTORS PAYMENT,"1,596.00",0,Supplier
03/07/2019,Children and Young People Operations & Safeguarding,Zfa Limited,NO RECOURSE TO PUBLIC FUNDS - PRIVATE CONTRACTORS PAYMENT,784.00,0,Supplier
03/07/2019,Children and Young People Operations & Safeguarding,Zfa Limited,NO RECOURSE TO PUBLIC FUNDS - PRIVATE CONTRACTORS PAYMENT,896.00,0,Supplier
03/07/2019,Children and Young People Operations & Safeguarding,Zfa Limited,NO RECOURSE TO PUBLIC FUNDS - PRIVATE CONTRACTORS PAYMENT,980.00,0,Supplier
03/07/2019,Children and Young People Operations & Safeguarding,Zfa Limited,NO RECOURSE TO PUBLIC FUNDS - PRIVATE CONTRACTORS PAYMENT,896.00,0,Supplier
03/07/2019,Children and Young People Operations & Safeguarding,Zfa Limited,NO RECOURSE TO PUBLIC FUNDS - PRIVATE CONTRACTORS PAYMENT,840.00,0,Supplier
03/07/2019,Children and Young People Operations & Safeguarding,Zfa Limited,NO RECOURSE TO PUBLIC FUNDS - PRIVATE CONTRACTORS PAYMENT,868.00,0,Supplier
03/07/2019,Children and Young People Operations & Safeguarding,Zfa Limited,NO RECOURSE TO PUBLIC FUNDS - PRIVATE CONTRACTORS PAYMENT,"1,064.00",0,Supplier
04/07/2019,Dedicated Schools Budget Dedicated Schools Budget,Redacted - Personal Data,INDEPENDENT UNITS WITHIN THE COUNCIL,"249,114.00",0,Supplier
04/07/2019,Dedicated Schools Budget Dedicated Schools Budget,Redacted - Personal Data,INDEPENDENT UNITS WITHIN THE COUNCIL,"399,587.00",0,Supplier
04/07/2019,Dedicated Schools Budget Dedicated Schools Budget,Redacted - Personal Data,INDEPENDENT UNITS WITHIN THE COUNCIL,"431,530.00",0,Local Authority Services
04/07/2019,Dedicated Schools Budget Dedicated Schools Budget,Redacted - Personal Data,INDEPENDENT UNITS WITHIN THE COUNCIL,"270,267.00",0,Supplier
04/07/2019,Dedicated Schools Budget Dedicated Schools Budget,Redacted - Personal Data,INDEPENDENT UNITS WITHIN THE COUNCIL,"233,674.00",0,Supplier
04/07/2019,Dedicated Schools Budget Dedicated Schools Budget,Redacted - Personal Data,INDEPENDENT UNITS WITHIN THE COUNCIL,"393,608.00",0,Supplier
04/07/2019,Dedicated Schools Budget Dedicated Schools Budget,Redacted - Personal Data,INDEPENDENT UNITS WITHIN THE COUNCIL,"329,758.00",0,Supplier
04/07/2019,Dedicated Schools Budget Dedicated Schools Budget,Redacted - Personal Data,INDEPENDENT UNITS WITHIN THE COUNCIL,"328,661.00",0,Supplier
04/07/2019,Dedicated Schools Budget Dedicated Schools Budget,Redacted - Personal Data,INDEPENDENT UNITS WITHIN THE COUNCIL,"662,363.00",0,Supplier
04/07/2019,Dedicated Schools Budget Dedicated Schools Budget,Redacted - Personal Data,INDEPENDENT UNITS WITHIN THE COUNCIL,"52,783.00",0,Supplier
04/07/2019,Dedicated Schools Budget Dedicated Schools Budget,Redacted - Personal Data,INDEPENDENT UNITS WITHIN THE COUNCIL,"52,783.00",0,Supplier
04/07/2019,Dedicated Schools Budget Dedicated Schools Budget,Redacted - Personal Data,INDEPENDENT UNITS WITHIN THE COUNCIL,"187,839.00",0,Non Commercial Supplier
04/07/2019,Dedicated Schools Budget Dedicated Schools Budget,Redacted - Personal Data,INDEPENDENT UNITS WITHIN THE COUNCIL,"425,043.00",0,Non Commercial Supplier
04/07/2019,Dedicated Schools Budget Dedicated Schools Budget,Redacted - Personal Data,INDEPENDENT UNITS WITHIN THE COUNCIL,"181,847.00",0,Supplier
04/07/2019,Dedicated Schools Budget Dedicated Schools Budget,Redacted - Personal Data,INDEPENDENT UNITS WITHIN THE COUNCIL,"121,099.00",0,Non Commercial Supplier
04/07/2019,Dedicated Schools Budget Dedicated Schools Budget,Redacted - Personal Data,INDEPENDENT UNITS WITHIN THE COUNCIL,"37,404.00",0,Supplier
04/07/2019,Dedicated Schools Budget Dedicated Schools Budget,Redacted - Personal Data,INDEPENDENT UNITS WITHIN THE COUNCIL,"37,404.00",0,Supplier
04/07/2019,Dedicated Schools Budget Dedicated Schools Budget,Redacted - Personal Data,INDEPENDENT UNITS WITHIN THE COUNCIL,"254,326.00",0,Supplier
04/07/2019,Dedicated Schools Budget Dedicated Schools Budget,Redacted - Personal Data,INDEPENDENT UNITS WITHIN THE COUNCIL,"895,735.00",0,Non Commercial Supplier
04/07/2019,Dedicated Schools Budget Dedicated Schools Budget,Redacted - Personal Data,INDEPENDENT UNITS WITHIN THE COUNCIL,"53,438.00",0,Supplier
04/07/2019,Dedicated Schools Budget Dedicated Schools Budget,Redacted - Personal Data,INDEPENDENT UNITS WITHIN THE COUNCIL,"244,607.00",0,Supplier
04/07/2019,Dedicated Schools Budget Dedicated Schools Budget,Redacted - Personal Data,INDEPENDENT UNITS WITHIN THE COUNCIL,"826,453.00",0,Local Authority Services
04/07/2019,Dedicated Schools Budget Dedicated Schools Budget,Redacted - Personal Data,INDEPENDENT UNITS WITHIN THE COUNCIL,"786,071.00",0,Supplier
04/07/2019,Dedicated Schools Budget Dedicated Schools Budget,Redacted - Personal Data,INDEPENDENT UNITS WITHIN THE COUNCIL,"64,494.00",0,Supplier
04/07/2019,Dedicated Schools Budget Dedicated Schools Budget,Redacted - Personal Data,INDEPENDENT UNITS WITHIN THE COUNCIL,"153,140.00",0,Supplier
04/07/2019,Dedicated Schools Budget Dedicated Schools Budget,Redacted - Personal Data,INDEPENDENT UNITS WITHIN THE COUNCIL,"186,959.00",0,Supplier
04/07/2019,"People, Policy and Performance Communications",Redacted - Personal Data,CONSULTANCY FEES,"1,600.00",0,Supplier
04/07/2019,oneSource oS Exchequer & Transactional Services,Redacted - Personal Data,PROFESSIONAL SERVICES - GENERAL,"1,040.00",0,Individuals
04/07/2019,Dedicated Schools Budget Dedicated Schools Budget,Redacted - Personal Data,INDEPENDENT UNITS WITHIN THE COUNCIL,"100,000.00",0,Commercial Supplier
04/07/2019,Dedicated Schools Budget Dedicated Schools Budget,Redacted - Personal Data,INDEPENDENT UNITS WITHIN THE COUNCIL,"142,734.00",0,Supplier
04/07/2019,Dedicated Schools Budget Dedicated Schools Budget,Redacted - Personal Data,INDEPENDENT UNITS WITHIN THE COUNCIL,"278,032.00",0,Supplier
04/07/2019,Dedicated Schools Budget Dedicated Schools Budget,Redacted - Personal Data,INDEPENDENT UNITS WITHIN THE COUNCIL,"210,776.00",0,Commercial Supplier
04/07/2019,Dedicated Schools Budget Dedicated Schools Budget,Redacted - Personal Data,INDEPENDENT UNITS WITHIN THE COUNCIL,"732,503.00",0,Supplier
04/07/2019,Dedicated Schools Budget Dedicated Schools Budget,Redacted - Personal Data,INDEPENDENT UNITS WITHIN THE COUNCIL,"45,575.00",0,Supplier
04/07/2019,Dedicated Schools Budget Dedicated Schools Budget,Redacted - Personal Data,INDEPENDENT UNITS WITHIN THE COUNCIL,"495,521.00",0,Supplier
04/07/2019,Dedicated Schools Budget Dedicated Schools Budget,Redacted - Personal Data,INDEPENDENT UNITS WITHIN THE COUNCIL,"183,522.00",0,Supplier
04/07/2019,Dedicated Schools Budget Dedicated Schools Budget,Redacted - Personal Data,INDEPENDENT UNITS WITHIN THE COUNCIL,"37,387.00",0,Supplier
04/07/2019,Dedicated Schools Budget Dedicated Schools Budget,Redacted - Personal Data,INDEPENDENT UNITS WITHIN THE COUNCIL,"283,191.00",0,Supplier
04/07/2019,Dedicated Schools Budget Dedicated Schools Budget,Redacted - Personal Data,INDEPENDENT UNITS WITHIN THE COUNCIL,"425,569.00",0,Supplier
04/07/2019,Dedicated Schools Budget Dedicated Schools Budget,Redacted - Personal Data,INDEPENDENT UNITS WITHIN THE COUNCIL,"64,025.00",0,Supplier
04/07/2019,Dedicated Schools Budget Dedicated Schools Budget,Redacted - Personal Data,INDEPENDENT UNITS WITHIN THE COUNCIL,"225,873.00",0,Supplier
04/07/2019,Dedicated Schools Budget Dedicated Schools Budget,Redacted - Personal Data,INDEPENDENT UNITS WITHIN THE COUNCIL,"273,142.00",0,Supplier
04/07/2019,Dedicated Schools Budget Dedicated Schools Budget,Redacted - Personal Data,INDEPENDENT UNITS WITHIN THE COUNCIL,"703,337.00",0,Supplier
04/07/2019,Dedicated Schools Budget Dedicated Schools Budget,Redacted - Personal Data,INDEPENDENT UNITS WITHIN THE COUNCIL,"192,592.00",0,Supplier
04/07/2019,Dedicated Schools Budget Dedicated Schools Budget,Redacted - Personal Data,INDEPENDENT UNITS WITHIN THE COUNCIL,"704,932.00",0,Supplier
04/07/2019,Dedicated Schools Budget Dedicated Schools Budget,Redacted - Personal Data,INDEPENDENT UNITS WITHIN THE COUNCIL,"208,824.00",0,Supplier
04/07/2019,Dedicated Schools Budget Dedicated Schools Budget,Redacted - Personal Data,INDEPENDENT UNITS WITHIN THE COUNCIL,"189,985.00",0,Supplier
04/07/2019,Dedicated Schools Budget Dedicated Schools Budget,Redacted - Personal Data,INDEPENDENT UNITS WITHIN THE COUNCIL,"129,907.00",0,Supplier
04/07/2019,Dedicated Schools Budget Dedicated Schools Budget,Redacted - Personal Data,INDEPENDENT UNITS WITHIN THE COUNCIL,"116,171.00",0,Supplier
04/07/2019,Dedicated Schools Budget Dedicated Schools Budget,Redacted - Personal Data,INDEPENDENT UNITS WITHIN THE COUNCIL,"99,947.00",0,Supplier
04/07/2019,Dedicated Schools Budget Dedicated Schools Budget,Redacted - Personal Data,INDEPENDENT UNITS WITHIN THE COUNCIL,"68,446.00",0,Supplier
04/07/2019,Dedicated Schools Budget Dedicated Schools Budget,Redacted - Personal Data,INDEPENDENT UNITS WITHIN THE COUNCIL,"263,914.00",0,Supplier
04/07/2019,Dedicated Schools Budget Dedicated Schools Budget,Redacted - Personal Data,INDEPENDENT UNITS WITHIN THE COUNCIL,"131,473.00",0,Supplier
04/07/2019,Dedicated Schools Budget Dedicated Schools Budget,Redacted - Personal Data,INDEPENDENT UNITS WITHIN THE COUNCIL,"371,667.00",0,Supplier
04/07/2019,Dedicated Schools Budget Dedicated Schools Budget,Redacted - Personal Data,INDEPENDENT UNITS WITHIN THE COUNCIL,"219,783.00",0,Supplier
04/07/2019,Dedicated Schools Budget Dedicated Schools Budget,Redacted - Personal Data,INDEPENDENT UNITS WITHIN THE COUNCIL,"157,392.00",0,Supplier
04/07/2019,Dedicated Schools Budget Dedicated Schools Budget,Redacted - Personal Data,INDEPENDENT UNITS WITHIN THE COUNCIL,"116,812.00",0,Supplier
04/07/2019,Dedicated Schools Budget Dedicated Schools Budget,Redacted - Personal Data,INDEPENDENT UNITS WITHIN THE COUNCIL,"310,063.00",0,Local Authority Services
04/07/2019,Dedicated Schools Budget Dedicated Schools Budget,Redacted - Personal Data,INDEPENDENT UNITS WITHIN THE COUNCIL,"189,580.00",0,Supplier
04/07/2019,RMS RMS,A13 Steel Ltd,"PURCHASE - EQUIPMENT, FURNITURE AND MATERIALS",270.00,0,CIS
04/07/2019,RMS RMS,A13 Steel Ltd,"PURCHASE - EQUIPMENT, FURNITURE AND MATERIALS",270.00,0,CIS
04/07/2019,RMS RMS,A13 Steel Ltd,"PURCHASE - EQUIPMENT, FURNITURE AND MATERIALS",270.00,0,CIS
04/07/2019,RMS RMS,A13 Steel Ltd,"PURCHASE - EQUIPMENT, FURNITURE AND MATERIALS",270.00,0,CIS
04/07/2019,Children and Young People Inclusion & Achievement,Andrew Perrin,PROFESSIONAL SERVICES - GENERAL,378.00,0,Commercial Supplier
04/07/2019,oneSource - Non Shared Asset Management,Anglian Water,WATER AND SEWERAGE,"18,992.19",0,Commercial Supplier
04/07/2019,oneSource - Non Shared Asset Management,Anglian Water,WATER AND SEWERAGE,"18,815.41",0,Commercial Supplier
04/07/2019,"Environment and Sustainable Transport Recycling, Refuse and Street Cleansing",Archant Regional Ltd,"ADVERTISING, PUBLICITY AND MARKETING","1,050.00",0,Non Commercial Supplier
04/07/2019,Resources Strategic Investment,Arum Systems Ltd,DEBT COLLECTION AND RECOVERY COSTS,"3,260.50",0,Commercial Supplier
04/07/2019,oneSource - Non Shared Asset Management,Aston Heating Ltd,BUILDING ALTERATIONS AND MATERIALS,"4,095.00",0,CIS
04/07/2019,"People, Policy and Performance Resident Engagement & Participation",Barbara Carriman,EVENTS,260.00,0,Supplier
04/07/2019,Children and Young People Operations & Safeguarding,Barnardo's,RESIDENTIAL PLACEMENTS - PRIVATE CONTRACTORS PAYMENT,"2,675.96",0,Commercial Supplier
04/07/2019,"Adults & Health Commissioning, Health & Social Care",Bloom Procurement Services Ltd,CONSULTANCY FEES,"12,495.00",0,Commercial Supplier
04/07/2019,"Adults & Health Commissioning, Health & Social Care",Bluebird Care (Newham),DAYCARE - PRIVATE CONTRACTORS PAYMENT,"2,415.80",0,Supplier
04/07/2019,"Adults & Health Commissioning, Health & Social Care",Bluebird Care (Newham),DAYCARE - PRIVATE CONTRACTORS PAYMENT,"2,316.46",0,Supplier
04/07/2019,"Adults & Health Commissioning, Health & Social Care",Bluebird Care (Newham),HOME CARE - PRIVATE CONTRACTORS PAYMENT,"5,577.98",0,Supplier
04/07/2019,"Adults & Health Commissioning, Health & Social Care",Bluebird Care (Newham),HOME CARE - PRIVATE CONTRACTORS PAYMENT,"5,708.22",0,Supplier
04/07/2019,RMS RMS,C & A Supplies,RESPONSIVE REPAIRS - MECHANICAL AND ELECTRICAL,280.24,0,Supplier
04/07/2019,RMS RMS,CBT Electrical Limited,"PURCHASE - EQUIPMENT, FURNITURE AND MATERIALS","6,073.71",0,CIS
04/07/2019,oneSource oS Finance,CIPFA,PROFESSIONAL SERVICES - GENERAL,"1,190.00",0,Commercial Supplier
04/07/2019,oneSource oS Finance,CIPFA,PROFESSIONAL SERVICES - GENERAL,300.00,0,Commercial Supplier
04/07/2019,oneSource oS Finance,CIPFA,PROFESSIONAL SERVICES - GENERAL,"1,190.00",0,Commercial Supplier
04/07/2019,oneSource oS Finance,CIPFA,PROFESSIONAL SERVICES - GENERAL,300.00,0,Commercial Supplier
04/07/2019,Children and Young People Operations & Safeguarding,Carter Brown The Expert Service Ltd,LEGAL FEES,481.84,0,Commercial Supplier
04/07/2019,oneSource - Non Shared Asset Management,Castle Water Ltd,WATER AND SEWERAGE,272.62,0,Commercial Supplier
04/07/2019,RMS RMS,City East Recruitment Ltd,"PURCHASE - EQUIPMENT, FURNITURE AND MATERIALS","3,360.00",0,Supplier
04/07/2019,RMS RMS,City East Recruitment Ltd,"PURCHASE - EQUIPMENT, FURNITURE AND MATERIALS","3,330.00",0,Supplier
04/07/2019,Children and Young People Inclusion & Achievement,Claremore Mechanical Services Limited,BUILDING ALTERATIONS AND MATERIALS,"4,252.49",0,CIS
04/07/2019,"Adults & Health Commissioning, Health & Social Care",Contour886 Limited,SPECIALIST EQUIPMENT FOR SERVICE PROVISION,286.25,0,Commercial Supplier
04/07/2019,Adults & Health Operations,Crown Records Management Ltd,STORAGE AND ARCHIVING,415.48,0,Supplier
04/07/2019,Adults & Health Operations,Crown Records Management Ltd,STORAGE AND ARCHIVING,415.48,0,Supplier
04/07/2019,Adults & Health Operations,Crown Records Management Ltd,STORAGE AND ARCHIVING,468.25,0,Supplier
04/07/2019,Adults & Health Operations,Crown Records Management Ltd,STORAGE AND ARCHIVING,505.63,0,Supplier
04/07/2019,Adults & Health Operations,Crown Records Management Ltd,STORAGE AND ARCHIVING,402.08,0,Supplier
04/07/2019,Adults & Health Operations,Crown Records Management Ltd,STORAGE AND ARCHIVING,453.14,0,Supplier
04/07/2019,RMS RMS,Door-Stop International Ltd,BUILDING ALTERATIONS AND MATERIALS,435.24,0,Supplier
04/07/2019,RMS RMS,Drain Aid Ltd,PRIVATE CONTRACTORS PAYMENT - OTHER,309.00,0,Commercial Supplier
04/07/2019,Children and Young People Inclusion & Achievement,Dry Safe,PRIVATE CONTRACTORS PAYMENT - OTHER,750.00,0,Commercial Supplier
04/07/2019,"People, Policy and Performance Policy & Performance",ESRI (UK) Ltd,"ADVERTISING, PUBLICITY AND MARKETING","53,235.00",0,Commercial Supplier
04/07/2019,CYP Commissioner ? Brighter Futures Early Help and Childrens Health,East London Dance Ltd,ARTS AND LEISURE COSTS,"30,000.00",0,Commercial Supplier
04/07/2019,Children and Young People Inclusion & Achievement,Enhance EHC Ltd,PRIVATE CONTRACTORS PAYMENT - OTHER,"2,520.00",0,Commercial Supplier
04/07/2019,Children and Young People Inclusion & Achievement,Enhance EHC Ltd,PRIVATE CONTRACTORS PAYMENT - OTHER,"1,140.00",0,Commercial Supplier
04/07/2019,"People, Policy and Performance Communications",Entertee Hire Services Ltd,EVENTS,"8,812.00",0,Commercial Supplier
04/07/2019,CYP Commissioner ? Brighter Futures Early Help and Childrens Health,Family Action Enterprises Ltd,HEALTH AND SAFETY WORKS,"14,000.00",0,Commercial Supplier
04/07/2019,CYP Commissioner ? Brighter Futures Early Help and Childrens Health,Family Action Enterprises Ltd,HEALTH AND SAFETY WORKS,"14,000.00",0,Commercial Supplier
04/07/2019,Children and Young People Operations & Safeguarding,Redacted - Personal Data,CONSULTANCY FEES,"1,680.00",0,Foster Carers
04/07/2019,Children and Young People Inclusion & Achievement,Fleet Tutors,PROFESSIONAL SERVICES - GENERAL,450.00,0,Commercial Supplier
04/07/2019,Children and Young People Operations & Safeguarding,Forest Care Services Ltd,SUPPORTED OTHER ACCOMMODATION - PRIVATE CONTRACTORS PAYMENT,"1,199.80",0,Non Commercial Supplier
04/07/2019,Children and Young People Operations & Safeguarding,Forest Care Services Ltd,SUPPORTED OTHER ACCOMMODATION - PRIVATE CONTRACTORS PAYMENT,"1,199.80",0,Non Commercial Supplier
04/07/2019,Children and Young People Operations & Safeguarding,Forest Care Services Ltd,SUPPORTED OTHER ACCOMMODATION - PRIVATE CONTRACTORS PAYMENT,771.30,0,Non Commercial Supplier
04/07/2019,RMS RMS,Fraden Contracts Ltd,"PURCHASE - EQUIPMENT, FURNITURE AND MATERIALS","2,900.00",0,CIS
04/07/2019,RMS RMS,GB Macks Skips,"PURCHASE - EQUIPMENT, FURNITURE AND MATERIALS",540.00,0,Commercial Supplier
04/07/2019,RMS RMS,Glass System Ltd,"PURCHASE - EQUIPMENT, FURNITURE AND MATERIALS",282.19,0,Commercial Supplier
04/07/2019,"Adults & Health Commissioning, Health & Social Care",Goldsmith Personnel Ltd,HOME CARE - PRIVATE CONTRACTORS PAYMENT,"53,386.36",0,Supplier
04/07/2019,"Adults & Health Commissioning, Health & Social Care",Goldsmith Personnel Ltd,HOME CARE - PRIVATE CONTRACTORS PAYMENT,921.80,0,Supplier
04/07/2019,"Adults & Health Commissioning, Health & Social Care",Goldsmith Personnel Ltd,PRIVATE CONTRACTORS PAYMENT - OTHER,"1,360.80",0,Supplier
04/07/2019,"Adults & Health Commissioning, Health & Social Care",Goldsmith Personnel Ltd,PRIVATE CONTRACTORS PAYMENT - OTHER,"2,636.00",0,Supplier
04/07/2019,"Adults & Health Commissioning, Health & Social Care",Goldsmith Personnel Ltd,RESPITE CARE - PRIVATE CONTRACTORS PAYMENT,"3,052.56",0,Supplier
04/07/2019,"Adults & Health Commissioning, Health & Social Care",Goldsmith Personnel Ltd,DAYCARE - PRIVATE CONTRACTORS PAYMENT,"9,071.28",0,Supplier
04/07/2019,"People, Policy and Performance Resident Engagement & Participation",Harrow Green Ltd,STORAGE AND ARCHIVING,727.23,0,Commercial Supplier
04/07/2019,Children and Young People Inclusion & Achievement,Heritage Marine Ltd,FACILITIES MANAGEMENT,750.28,0,Commercial Supplier
04/07/2019,"Adults & Health Commissioning, Health & Social Care",Highland Care Uk Ltd,HOME CARE - PRIVATE CONTRACTORS PAYMENT,600.00,0,Supplier
04/07/2019,"Adults & Health Commissioning, Health & Social Care",Highland Care Uk Ltd,HOME CARE - PRIVATE CONTRACTORS PAYMENT,"1,512.00",0,Supplier
04/07/2019,"Adults & Health Commissioning, Health & Social Care",Highland Care Uk Ltd,HOME CARE - PRIVATE CONTRACTORS PAYMENT,"1,680.00",0,Supplier
04/07/2019,"Adults & Health Commissioning, Health & Social Care",Highland Care Uk Ltd,HOME CARE - PRIVATE CONTRACTORS PAYMENT,252.00,0,Supplier
04/07/2019,"Adults & Health Commissioning, Health & Social Care",Highland Care Uk Ltd,HOME CARE - PRIVATE CONTRACTORS PAYMENT,756.00,0,Supplier
04/07/2019,"Adults & Health Commissioning, Health & Social Care",Highland Care Uk Ltd,HOME CARE - PRIVATE CONTRACTORS PAYMENT,"1,512.00",0,Supplier
04/07/2019,"Adults & Health Commissioning, Health & Social Care",Highland Care Uk Ltd,HOME CARE - PRIVATE CONTRACTORS PAYMENT,336.00,0,Supplier
04/07/2019,"Adults & Health Commissioning, Health & Social Care",Highland Care Uk Ltd,HOME CARE - PRIVATE CONTRACTORS PAYMENT,648.00,0,Supplier
04/07/2019,"Adults & Health Commissioning, Health & Social Care",Highland Care Uk Ltd,HOME CARE - PRIVATE CONTRACTORS PAYMENT,"1,176.00",0,Supplier
04/07/2019,"Adults & Health Commissioning, Health & Social Care",Highland Care Uk Ltd,HOME CARE - PRIVATE CONTRACTORS PAYMENT,480.00,0,Supplier
04/07/2019,"Adults & Health Commissioning, Health & Social Care",Highland Care Uk Ltd,HOME CARE - PRIVATE CONTRACTORS PAYMENT,"1,560.00",0,Supplier
04/07/2019,"Adults & Health Commissioning, Health & Social Care",Highland Care Uk Ltd,HOME CARE - PRIVATE CONTRACTORS PAYMENT,600.00,0,Supplier
04/07/2019,"Adults & Health Commissioning, Health & Social Care",Highland Care Uk Ltd,HOME CARE - PRIVATE CONTRACTORS PAYMENT,420.00,0,Supplier
04/07/2019,"Adults & Health Commissioning, Health & Social Care",Highland Care Uk Ltd,HOME CARE - PRIVATE CONTRACTORS PAYMENT,"1,512.00",0,Supplier
04/07/2019,"Adults & Health Commissioning, Health & Social Care",Highland Care Uk Ltd,HOME CARE - PRIVATE CONTRACTORS PAYMENT,"1,680.00",0,Supplier
04/07/2019,"Adults & Health Commissioning, Health & Social Care",Highland Care Uk Ltd,HOME CARE - PRIVATE CONTRACTORS PAYMENT,384.00,0,Supplier
04/07/2019,"Adults & Health Commissioning, Health & Social Care",Highland Care Uk Ltd,DAYCARE - PRIVATE CONTRACTORS PAYMENT,288.00,0,Supplier
04/07/2019,"Adults & Health Commissioning, Health & Social Care",Highland Care Uk Ltd,HOME CARE - PRIVATE CONTRACTORS PAYMENT,"1,176.00",0,Supplier
04/07/2019,"People, Policy and Performance Communications",IM Legion Limited,ARTS AND LEISURE COSTS,600.00,0,Commercial Supplier
04/07/2019,Children and Young People Operations & Safeguarding,Inclusive Care Support Ltd,SUPPORTED OTHER ACCOMMODATION - PRIVATE CONTRACTORS PAYMENT,"3,667.00",0,Commercial Supplier
04/07/2019,Children and Young People Operations & Safeguarding,Inclusive Care Support Ltd,SUPPORTED OTHER ACCOMMODATION - PRIVATE CONTRACTORS PAYMENT,"3,696.00",0,Commercial Supplier
04/07/2019,Children and Young People Operations & Safeguarding,Inclusive Care Support Ltd,SUPPORTED OTHER ACCOMMODATION - PRIVATE CONTRACTORS PAYMENT,"3,007.00",0,Commercial Supplier
04/07/2019,Children and Young People Operations & Safeguarding,Inclusive Care Support Ltd,SUPPORTED OTHER ACCOMMODATION - PRIVATE CONTRACTORS PAYMENT,"2,588.25",0,Commercial Supplier
04/07/2019,Children and Young People Operations & Safeguarding,Inclusive Care Support Ltd,SUPPORTED OTHER ACCOMMODATION - PRIVATE CONTRACTORS PAYMENT,751.76,0,Commercial Supplier
04/07/2019,Children and Young People Operations & Safeguarding,Inclusive Care Support Ltd,SUPPORTED OTHER ACCOMMODATION - PRIVATE CONTRACTORS PAYMENT,"3,497.00",0,Commercial Supplier
04/07/2019,Children and Young People Operations & Safeguarding,Inclusive Care Support Ltd,SUPPORTED OTHER ACCOMMODATION - PRIVATE CONTRACTORS PAYMENT,"3,007.00",0,Commercial Supplier
04/07/2019,Children and Young People Operations & Safeguarding,Inclusive Care Support Ltd,SUPPORTED OTHER ACCOMMODATION - PRIVATE CONTRACTORS PAYMENT,"3,193.76",0,Commercial Supplier
04/07/2019,Children and Young People Operations & Safeguarding,Inclusive Care Support Ltd,CLIENT SUPPORT - THIRD PARTY,"2,112.00",0,Commercial Supplier
04/07/2019,Children and Young People Operations & Safeguarding,Inclusive Care Support Ltd,SUPPORTED OTHER ACCOMMODATION - PRIVATE CONTRACTORS PAYMENT,"3,667.00",0,Commercial Supplier
04/07/2019,oneSource oS ICT Services,Investec Asset Finance Plc,PROFESSIONAL SERVICES - GENERAL,"7,986.00",0,Commercial Supplier
04/07/2019,RMS RMS,J J Cleaning Services Limited,"PURCHASE - EQUIPMENT, FURNITURE AND MATERIALS","1,970.85",0,CIS
04/07/2019,"Adults & Health Commissioning, Health & Social Care",J J Moss & Sons Ltd,BUILDING ALTERATIONS AND MATERIALS,840.00,0,Supplier
04/07/2019,"People, Policy and Performance Resident Engagement & Participation",Jonathan Butler,ARTS AND LEISURE COSTS,"1,200.00",0,Non Commercial Supplier
04/07/2019,"People, Policy and Performance Communications",Katherine C Dendy,EVENTS,970.00,0,Individuals
04/07/2019,Environment and Sustainable Transport Community Safety,Kent County Council (Kcs),PRIVATE CONTRACTORS PAYMENT - OTHER,805.67,0,Local Authority Services
04/07/2019,"Adults & Health Commissioning, Health & Social Care",L & Q Living,SUPPORTED OTHER ACCOMMODATION - PRIVATE CONTRACTORS PAYMENT,"1,384.00",0,Supplier
04/07/2019,"Adults & Health Commissioning, Health & Social Care",L & Q Living,SUPPORTED OTHER ACCOMMODATION - PRIVATE CONTRACTORS PAYMENT,"1,411.56",0,Supplier
04/07/2019,"Adults & Health Commissioning, Health & Social Care",L & Q Living,SUPPORTED OTHER ACCOMMODATION - PRIVATE CONTRACTORS PAYMENT,317.20,0,Supplier
04/07/2019,"Adults & Health Commissioning, Health & Social Care",L & Q Living,DAYCARE - PRIVATE CONTRACTORS PAYMENT,444.08,0,Supplier
04/07/2019,"Adults & Health Commissioning, Health & Social Care",L & Q Living,SUPPORTED OTHER ACCOMMODATION - PRIVATE CONTRACTORS PAYMENT,692.00,0,Supplier
04/07/2019,"Adults & Health Commissioning, Health & Social Care",L & Q Living,SUPPORTED OTHER ACCOMMODATION - PRIVATE CONTRACTORS PAYMENT,"6,024.00",0,Supplier
04/07/2019,oneSource - Non Shared Asset Management,L M Installations Ltd,BUILDING ALTERATIONS AND MATERIALS,258.88,0,CIS
04/07/2019,oneSource - Non Shared Asset Management,Laker Bms,BUILDING ALTERATIONS AND MATERIALS,266.97,0,CIS
04/07/2019,CYP Commissioner ? Brighter Futures Early Help and Childrens Health,Lakhanpauls Ltd,PROFESSIONAL SERVICES - GENERAL,800.00,0,Commercial Supplier
04/07/2019,Inclusive Economy & Housing Housing,Local Space Ltd,RENTS PAYABLE,"484,027.11",0,Supplier
04/07/2019,Inclusive Economy & Housing Housing,Local Space Ltd,RENTS PAYABLE,"1,819,823.21",0,Supplier
04/07/2019,Inclusive Economy & Housing Housing,Local Space Ltd,RENTS PAYABLE,"484,027.11",0,Supplier
04/07/2019,Inclusive Economy & Housing Housing,Local Space Ltd,RENTS PAYABLE,"1,819,823.21",0,Supplier
04/07/2019,Housing Revenue Account HRA,London Fire & Emergency Planning Authority,RESPONSIVE REPAIRS - MECHANICAL AND ELECTRICAL,339.00,0,Local Authority Services
04/07/2019,Housing Revenue Account HRA,London Fire & Emergency Planning Authority,RESPONSIVE REPAIRS - MECHANICAL AND ELECTRICAL,339.00,0,Local Authority Services
04/07/2019,Housing Revenue Account HRA,London Fire & Emergency Planning Authority,RESPONSIVE REPAIRS - MECHANICAL AND ELECTRICAL,339.00,0,Local Authority Services
04/07/2019,Housing Revenue Account HRA,London Fire & Emergency Planning Authority,RESPONSIVE REPAIRS - MECHANICAL AND ELECTRICAL,339.00,0,Local Authority Services
04/07/2019,Housing Revenue Account HRA,London Fire & Emergency Planning Authority,RESPONSIVE REPAIRS - MECHANICAL AND ELECTRICAL,339.00,0,Local Authority Services
04/07/2019,Housing Revenue Account HRA,London Fire & Emergency Planning Authority,RESPONSIVE REPAIRS - MECHANICAL AND ELECTRICAL,339.00,0,Local Authority Services
04/07/2019,Housing Revenue Account HRA,London Network for Pest Solutions Ltd,PRIVATE CONTRACTORS PAYMENT - OTHER,"4,578.44",0,Commercial Supplier
04/07/2019,Housing Revenue Account HRA,London Network for Pest Solutions Ltd,PRIVATE CONTRACTORS PAYMENT - OTHER,"2,892.38",0,Commercial Supplier
04/07/2019,Housing Revenue Account HRA,London Network for Pest Solutions Ltd,PRIVATE CONTRACTORS PAYMENT - OTHER,"5,885.65",0,Commercial Supplier
04/07/2019,"People, Policy and Performance Communications",Louise Andree Douglas,EVENTS,300.00,0,Individuals
04/07/2019,Children and Young People Inclusion & Achievement,MPS T/A School Furniture Offers (SFO),"PURCHASE - EQUIPMENT, FURNITURE AND MATERIALS",925.00,0,Commercial Supplier
04/07/2019,"People, Policy and Performance Resident Engagement & Participation",Maryam Kamran,EVENTS,650.00,0,Non Commercial Supplier
04/07/2019,Resources Strategic Investment,Michelmores LLP,LEGAL FEES,500.00,0,Commercial Supplier
04/07/2019,Resources Strategic Investment,Michelmores LLP,LEGAL FEES,500.00,0,Commercial Supplier
04/07/2019,oneSource oS ICT Services,Microsoft Ltd,ICT SOFTWARE,"102,428.57",0,Commercial Supplier
04/07/2019,RMS RMS,Mint Cleaning Group Holding Ltd,PRIVATE CONTRACTORS PAYMENT - OTHER,321.78,0,Commercial Supplier
04/07/2019,Children and Young People Operations & Safeguarding,Mr Max Lansman,LEGAL FEES,"1,350.00",0,Commercial Supplier
04/07/2019,Inclusive Economy & Housing Housing,Ms Clara Zang,LEGAL FEES,"1,600.00",0,Individuals
04/07/2019,Children and Young People Operations & Safeguarding,PFS Prepaid Financial Services,NO RECOURSE TO PUBLIC FUNDS - PRIVATE CONTRACTORS PAYMENT,300.00,0,Individuals
04/07/2019,Children and Young People Operations & Safeguarding,PFS Prepaid Financial Services,NO RECOURSE TO PUBLIC FUNDS - PRIVATE CONTRACTORS PAYMENT,300.00,0,Individuals
04/07/2019,Inclusive Economy & Housing Community Wealth Building,Penna Plc.,"ADVERTISING, PUBLICITY AND MARKETING","8,714.00",0,Supplier
04/07/2019,Children and Young People Professional Practice,Praesidio Safeguarding,STAFF DEVELOPMENT AND TRAINING,"2,250.00",0,Commercial Supplier
04/07/2019,RMS RMS,Public Realm Services Ltd,"PURCHASE - EQUIPMENT, FURNITURE AND MATERIALS",292.20,0,Commercial Supplier
04/07/2019,RMS RMS,Public Realm Services Ltd,"PURCHASE - EQUIPMENT, FURNITURE AND MATERIALS",292.20,0,Commercial Supplier
04/07/2019,RMS RMS,Public Realm Services Ltd,"PURCHASE - EQUIPMENT, FURNITURE AND MATERIALS",274.72,0,Commercial Supplier
04/07/2019,RMS RMS,Public Realm Services Ltd,"PURCHASE - EQUIPMENT, FURNITURE AND MATERIALS",310.69,0,Commercial Supplier
04/07/2019,RMS RMS,Public Realm Services Ltd,"PURCHASE - EQUIPMENT, FURNITURE AND MATERIALS",310.69,0,Commercial Supplier
04/07/2019,RMS RMS,Public Realm Services Ltd,"PURCHASE - EQUIPMENT, FURNITURE AND MATERIALS",356.80,0,Commercial Supplier
04/07/2019,RMS RMS,Public Realm Services Ltd,PRIVATE CONTRACTORS PAYMENT - OTHER,337.94,0,Commercial Supplier
04/07/2019,RMS RMS,Public Realm Services Ltd,"PURCHASE - EQUIPMENT, FURNITURE AND MATERIALS",274.72,0,Commercial Supplier
04/07/2019,"People, Policy and Performance Resident Engagement & Participation",Reggae Choir Ltd,EVENTS,400.00,0,Commercial Supplier
04/07/2019,RMS RMS,Rehau Ltd,"PURCHASE - EQUIPMENT, FURNITURE AND MATERIALS","1,448.18",0,Supplier
04/07/2019,Children and Young People Operations & Safeguarding,Right Choice Services Ltd,SUPPORTED OTHER ACCOMMODATION - PRIVATE CONTRACTORS PAYMENT,"2,600.00",0,Foster Carers
04/07/2019,Children and Young People Operations & Safeguarding,Right Choice Services Ltd,SUPPORTED OTHER ACCOMMODATION - PRIVATE CONTRACTORS PAYMENT,"1,280.00",0,Foster Carers
04/07/2019,Children and Young People Operations & Safeguarding,Right Choice Services Ltd,SUPPORTED OTHER ACCOMMODATION - PRIVATE CONTRACTORS PAYMENT,"1,280.00",0,Foster Carers
04/07/2019,Children and Young People Operations & Safeguarding,Right Choice Services Ltd,SUPPORTED OTHER ACCOMMODATION - PRIVATE CONTRACTORS PAYMENT,"1,280.00",0,Foster Carers
04/07/2019,Children and Young People Operations & Safeguarding,Right Choice Services Ltd,SUPPORTED OTHER ACCOMMODATION - PRIVATE CONTRACTORS PAYMENT,"2,600.00",0,Foster Carers
04/07/2019,Children and Young People Operations & Safeguarding,Right Choice Services Ltd,SUPPORTED OTHER ACCOMMODATION - PRIVATE CONTRACTORS PAYMENT,"2,600.00",0,Foster Carers
04/07/2019,Children and Young People Operations & Safeguarding,Right Choice Services Ltd,SUPPORTED OTHER ACCOMMODATION - PRIVATE CONTRACTORS PAYMENT,"2,600.00",0,Foster Carers
04/07/2019,oneSource - Non Shared Legal & Democratic,Royal Mail Group Plc,POSTAGE AND COURIER SERVICES,805.45,0,Commercial Supplier
04/07/2019,oneSource - Non Shared Legal & Democratic,Royal Mail Group Plc,POSTAGE AND COURIER SERVICES,721.75,0,Commercial Supplier
04/07/2019,RMS RMS,S K Signs & Labels Ltd,"PURCHASE - EQUIPMENT, FURNITURE AND MATERIALS",312.00,0,Supplier
04/07/2019,RMS RMS,Scaffolding Inc Ltd,"PURCHASE - EQUIPMENT, FURNITURE AND MATERIALS",825.00,0,CIS
04/07/2019,RMS RMS,Scaffolding Inc Ltd,"PURCHASE - EQUIPMENT, FURNITURE AND MATERIALS",420.00,0,CIS
04/07/2019,RMS RMS,Scaffolding Inc Ltd,PRIVATE CONTRACTORS PAYMENT - OTHER,810.00,0,CIS
04/07/2019,RMS RMS,Scaffolding Inc Ltd,PRIVATE CONTRACTORS PAYMENT - OTHER,840.00,0,CIS
04/07/2019,RMS RMS,Scaffolding Inc Ltd,PRIVATE CONTRACTORS PAYMENT - OTHER,660.00,0,CIS
04/07/2019,RMS RMS,Scaffolding Inc Ltd,PRIVATE CONTRACTORS PAYMENT - OTHER,600.00,0,CIS
04/07/2019,Children and Young People Operations & Safeguarding,Sixteen Plus Ltd,SUPPORTED OTHER ACCOMMODATION - PRIVATE CONTRACTORS PAYMENT,"9,150.00",0,Commercial Supplier
04/07/2019,RMS RMS,Southern Drain Services Ltd,"PURCHASE - EQUIPMENT, FURNITURE AND MATERIALS",495.00,0,Commercial Supplier
04/07/2019,RMS RMS,Staples Business Accounts,STATIONERY,365.88,0,Supplier
04/07/2019,oneSource oS ICT Services,Stone Group,ICT HARDWARE,"1,008.00",0,Non Commercial Supplier
04/07/2019,oneSource oS ICT Services,Stone Group,ICT HARDWARE,954.24,0,Non Commercial Supplier
04/07/2019,oneSource oS ICT Services,Stone Group,ICT HARDWARE,"10,593.00",0,Non Commercial Supplier
04/07/2019,Children and Young People Operations & Safeguarding,Supporting Young Futures Ltd,SUPPORTED OTHER ACCOMMODATION - PRIVATE CONTRACTORS PAYMENT,"1,160.00",0,Commercial Supplier
04/07/2019,Children and Young People Operations & Safeguarding,Supporting Young Futures Ltd,CLIENT SUPPORT - THIRD PARTY,"1,840.00",0,Commercial Supplier
04/07/2019,Children and Young People Operations & Safeguarding,Supporting Young Futures Ltd,CLIENT SUPPORT - THIRD PARTY,"1,080.00",0,Commercial Supplier
04/07/2019,Children and Young People Operations & Safeguarding,Supporting Young Futures Ltd,CLIENT SUPPORT - THIRD PARTY,"1,100.00",0,Commercial Supplier
04/07/2019,Children and Young People Operations & Safeguarding,Supporting Young Futures Ltd,CLIENT SUPPORT - THIRD PARTY,"1,060.00",0,Commercial Supplier
04/07/2019,Children and Young People Operations & Safeguarding,Supporting Young Futures Ltd,CLIENT SUPPORT - THIRD PARTY,"1,040.00",0,Commercial Supplier
04/07/2019,Children and Young People Operations & Safeguarding,Supporting Young Futures Ltd,SUPPORTED OTHER ACCOMMODATION - PRIVATE CONTRACTORS PAYMENT,"1,020.00",0,Commercial Supplier
04/07/2019,Children and Young People Operations & Safeguarding,Supporting Young Futures Ltd,SUPPORTED OTHER ACCOMMODATION - PRIVATE CONTRACTORS PAYMENT,"1,120.00",0,Commercial Supplier
04/07/2019,Children and Young People Operations & Safeguarding,Supporting Young Futures Ltd,CLIENT SUPPORT - THIRD PARTY,"1,060.00",0,Commercial Supplier
04/07/2019,Children and Young People Operations & Safeguarding,Supporting Young Futures Ltd,SUPPORTED OTHER ACCOMMODATION - PRIVATE CONTRACTORS PAYMENT,"1,060.00",0,Commercial Supplier
04/07/2019,Children and Young People Operations & Safeguarding,Supporting Young Futures Ltd,SUPPORTED OTHER ACCOMMODATION - PRIVATE CONTRACTORS PAYMENT,"1,060.00",0,Commercial Supplier
04/07/2019,Children and Young People Operations & Safeguarding,Supporting Young Futures Ltd,SUPPORTED OTHER ACCOMMODATION - PRIVATE CONTRACTORS PAYMENT,"1,220.00",0,Commercial Supplier
04/07/2019,Children and Young People Operations & Safeguarding,Supporting Young Futures Ltd,SUPPORTED OTHER ACCOMMODATION - PRIVATE CONTRACTORS PAYMENT,"2,200.00",0,Commercial Supplier
04/07/2019,Children and Young People Operations & Safeguarding,Supporting Young Futures Ltd,SUPPORTED OTHER ACCOMMODATION - PRIVATE CONTRACTORS PAYMENT,"1,720.00",0,Commercial Supplier
04/07/2019,Children and Young People Operations & Safeguarding,Supporting Young Futures Ltd,SUPPORTED OTHER ACCOMMODATION - PRIVATE CONTRACTORS PAYMENT,"1,020.00",0,Commercial Supplier
04/07/2019,oneSource oS ICT Services,Systems Up Ltd,ICT MAINTENANCE AND SUPPORT,"3,675.00",0,Commercial Supplier
04/07/2019,Environment and Sustainable Transport Highways and Sustainable Transport,Redacted - Personal Data,DIRECT TRANSPORT,"109,646.77",0,Commercial Supplier
04/07/2019,Environment and Sustainable Transport Highways and Sustainable Transport,Redacted - Personal Data,DIRECT TRANSPORT,"109,646.77",0,Commercial Supplier
04/07/2019,RMS RMS,Travis Perkins Trading Company Ltd,"PURCHASE - EQUIPMENT, FURNITURE AND MATERIALS",698.20,0,Commercial Supplier
04/07/2019,"Adults & Health Commissioning, Health & Social Care",Turnwright Ltd,SPECIALIST EQUIPMENT FOR SERVICE PROVISION,390.00,0,Commercial Supplier
04/07/2019,"Adults & Health Commissioning, Health & Social Care",Turnwright Ltd,SPECIALIST EQUIPMENT FOR SERVICE PROVISION,"3,426.50",0,Commercial Supplier
04/07/2019,oneSource oS ICT Services,Urgent Delivery Couriers Ltd,POSTAGE AND COURIER SERVICES,584.32,0,Commercial Supplier
04/07/2019,oneSource oS ICT Services,Urgent Delivery Couriers Ltd,POSTAGE AND COURIER SERVICES,889.61,0,Commercial Supplier
04/07/2019,RMS RMS,Vbh (GB) Ltd,"PURCHASE - EQUIPMENT, FURNITURE AND MATERIALS","1,026.56",0,Supplier
04/07/2019,Housing Revenue Account HRA,Willow Pumps Limited,RESPONSIVE REPAIRS - MECHANICAL AND ELECTRICAL,"2,250.00",0,Commercial Supplier
04/07/2019,Inclusive Economy & Housing Chief Planning Officer,Wood Environment & Infrastructure Solutions UK Ltd,CONSULTANCY FEES,"1,819.00",0,Commercial Supplier
04/07/2019,Children and Young People Inclusion & Achievement,adam HTT LTd T/A Adam,ADDITIONAL PLACEMENTS - THIRD PARTY,"40,421.10",0,Supplier
05/07/2019,Adults & Health Operations,Adecco Uk Limited,AGENCY STAFF,"86,910.41",0,Commercial Supplier
05/07/2019,Adults & Health Operations,Adecco Uk Limited,SALARIES,"10,660.65",0,Commercial Supplier
05/07/2019,oneSource - Non Shared Asset Management,Adecco Uk Limited,AGENCY STAFF,"5,261.69",0,Commercial Supplier
05/07/2019,"Adults & Health Commissioning, Health & Social Care",Adecco Uk Limited,AGENCY STAFF,"17,834.46",0,Commercial Supplier
05/07/2019,CYP Commissioner ? Brighter Futures Early Help and Childrens Health,Adecco Uk Limited,AGENCY STAFF,"21,969.90",0,Commercial Supplier
05/07/2019,Adults & Health Public Health,Adecco Uk Limited,AGENCY STAFF,"4,141.87",0,Commercial Supplier
05/07/2019,CYP Commissioner ? Brighter Futures Early Help and Childrens Health,Adecco Uk Limited,SALARIES,"2,477.00",0,Commercial Supplier
05/07/2019,Environment and Sustainable Transport Licensing & Regulation,Adecco Uk Limited,AGENCY STAFF,"5,495.49",0,Commercial Supplier
05/07/2019,Environment and Sustainable Transport Highways and Sustainable Transport,Adecco Uk Limited,AGENCY STAFF,"33,491.00",0,Commercial Supplier
05/07/2019,Environment and Sustainable Transport Community Safety,Adecco Uk Limited,SALARIES,"6,729.87",0,Commercial Supplier
05/07/2019,Dedicated Schools Budget Dedicated Schools Budget,Adecco Uk Limited,AGENCY STAFF,"3,440.47",0,Commercial Supplier
05/07/2019,Children and Young People Professional Practice,Adecco Uk Limited,AGENCY STAFF,"46,204.64",0,Commercial Supplier
05/07/2019,Housing Revenue Account HRA,Adecco Uk Limited,AGENCY STAFF,"58,213.22",0,Commercial Supplier
05/07/2019,oneSource oS Exchequer & Transactional Services,Adecco Uk Limited,AGENCY STAFF,"4,119.87",0,Commercial Supplier
05/07/2019,oneSource oS Finance,Adecco Uk Limited,AGENCY STAFF,"36,342.67",0,Commercial Supplier
05/07/2019,oneSource - Non Shared ICT Services,Adecco Uk Limited,AGENCY STAFF,"4,467.65",0,Commercial Supplier
05/07/2019,Resources Strategic Investment,Adecco Uk Limited,AGENCY STAFF,"1,312.20",0,Commercial Supplier
05/07/2019,Resources Council Tax & Benefits,Adecco Uk Limited,AGENCY STAFF,"20,297.11",0,Commercial Supplier
05/07/2019,RMS RMS,Adecco Uk Limited,JOINT AUTHORITIES PAYMENTS,619.56,0,Commercial Supplier
05/07/2019,RMS RMS,Adecco Uk Limited,AGENCY STAFF,"16,668.11",0,Commercial Supplier
05/07/2019,"People, Policy and Performance Residents Services & Business Support",Adecco Uk Limited,"PURCHASE - EQUIPMENT, FURNITURE AND MATERIALS",631.80,0,Commercial Supplier
05/07/2019,"People, Policy and Performance Residents Services & Business Support",Adecco Uk Limited,AGENCY STAFF,"7,845.18",0,Commercial Supplier
05/07/2019,"Environment and Sustainable Transport Recycling, Refuse and Street Cleansing",Adecco Uk Limited,AGENCY STAFF,"14,480.39",0,Commercial Supplier
05/07/2019,"People, Policy and Performance Policy & Performance",Adecco Uk Limited,AGENCY STAFF,"3,190.78",0,Commercial Supplier
05/07/2019,oneSource oS Asset Management Services,Adecco Uk Limited,AGENCY STAFF,"9,531.91",0,Commercial Supplier
05/07/2019,"People, Policy and Performance People, Policy and Performance",Adecco Uk Limited,SALARIES,"4,495.43",0,Commercial Supplier
05/07/2019,"People, Policy and Performance Communications",Adecco Uk Limited,AGENCY STAFF,"1,549.80",0,Commercial Supplier
05/07/2019,"People, Policy and Performance Change & PMO",Adecco Uk Limited,AGENCY STAFF,"14,531.40",0,Commercial Supplier
05/07/2019,Inclusive Economy & Housing Housing,Adecco Uk Limited,AGENCY STAFF,"22,411.23",0,Commercial Supplier
05/07/2019,Inclusive Economy & Housing Community Wealth Building,Adecco Uk Limited,"PURCHASE - EQUIPMENT, FURNITURE AND MATERIALS","4,312.12",0,Commercial Supplier
05/07/2019,Inclusive Economy & Housing Community Wealth Building,Adecco Uk Limited,AGENCY STAFF,"14,283.70",0,Commercial Supplier
05/07/2019,Inclusive Economy & Housing Chief Planning Officer,Adecco Uk Limited,AGENCY STAFF,"3,124.60",0,Commercial Supplier
05/07/2019,Housing Revenue Account HRA,Adecco Uk Limited,STAFF OTHER EXPENSES,"4,802.33",0,Commercial Supplier
05/07/2019,"People, Policy and Performance Policy & Performance",Adecco Uk Limited,"PURCHASE - EQUIPMENT, FURNITURE AND MATERIALS","1,790.44",0,Commercial Supplier
05/07/2019,Children and Young People Inclusion & Achievement,Adecco Uk Limited,AGENCY STAFF,"38,651.37",0,Commercial Supplier
05/07/2019,Children and Young People Inclusion & Achievement,Adecco Uk Limited,SALARIES,321.60,0,Commercial Supplier
05/07/2019,oneSource oS ICT Services,Adecco Uk Limited,AGENCY STAFF,"12,549.30",0,Commercial Supplier
05/07/2019,Children and Young People Operations & Safeguarding,Adecco Uk Limited,AGENCY STAFF,"127,465.86",0,Commercial Supplier
05/07/2019,Children and Young People Operations & Safeguarding,Adecco Uk Limited,SALARIES,"9,328.89",0,Commercial Supplier
05/07/2019,"Adults & Health Commissioning, Health & Social Care",Alters Recruitment Ltd,DAYCARE - PRIVATE CONTRACTORS PAYMENT,"4,173.36",0,Supplier
05/07/2019,"Adults & Health Commissioning, Health & Social Care",Alters Recruitment Ltd,DAYCARE - PRIVATE CONTRACTORS PAYMENT,360.60,0,Supplier
05/07/2019,"Adults & Health Commissioning, Health & Social Care",Alters Recruitment Ltd,HOME CARE - PRIVATE CONTRACTORS PAYMENT,"29,709.24",0,Supplier
05/07/2019,"Adults & Health Commissioning, Health & Social Care",Alters Recruitment Ltd,HOME CARE - PRIVATE CONTRACTORS PAYMENT,921.60,0,Supplier
05/07/2019,"Adults & Health Commissioning, Health & Social Care",Alters Recruitment Ltd,PRIVATE CONTRACTORS PAYMENT - OTHER,604.80,0,Supplier
05/07/2019,"Adults & Health Commissioning, Health & Social Care",Alters Recruitment Ltd,RESPITE CARE - PRIVATE CONTRACTORS PAYMENT,"1,699.32",0,Supplier
05/07/2019,Inclusive Economy & Housing Chief Planning Officer,Archant Regional Ltd,EVENTS,900.00,0,Non Commercial Supplier
05/07/2019,Inclusive Economy & Housing Community Wealth Building,B T Business Communications,ICT - SERCOP CHARGE,251.00,0,Supplier
05/07/2019,Children and Young People Operations & Safeguarding,Banya Family Placement Agency Ltd,RESIDENTIAL PLACEMENTS - PRIVATE CONTRACTORS PAYMENT,"3,258.36",0,Commercial Supplier
05/07/2019,Children and Young People Operations & Safeguarding,Banya Family Placement Agency Ltd,RESIDENTIAL PLACEMENTS - PRIVATE CONTRACTORS PAYMENT,"3,258.36",0,Commercial Supplier
05/07/2019,Children and Young People Operations & Safeguarding,Banya Family Placement Agency Ltd,RESIDENTIAL PLACEMENTS - PRIVATE CONTRACTORS PAYMENT,"3,258.36",0,Commercial Supplier
05/07/2019,"Adults & Health Commissioning, Health & Social Care",Bloom Procurement Services Ltd,CONSULTANCY FEES,"11,115.79",0,Commercial Supplier
05/07/2019,Environment and Sustainable Transport Licensing & Regulation,Bond Solon Training Ltd,STAFF DEVELOPMENT AND TRAINING,560.00,0,Commercial Supplier
05/07/2019,"People, Policy and Performance Policy & Performance",Brampton Primary School,PREMISES HIRE - FACILITIES,"1,840.00",0,Local Authority Services
05/07/2019,Children and Young People Operations & Safeguarding,Bystone Ltd,NO RECOURSE TO PUBLIC FUNDS - PRIVATE CONTRACTORS PAYMENT,"1,440.00",0,Commercial Supplier
05/07/2019,oneSource oS ICT Services,CCS Media Limited.,ICT HARDWARE,389.70,0,Commercial Supplier
05/07/2019,Children and Young People Operations & Safeguarding,Cameron Support Services Ltd,SUPPORTED OTHER ACCOMMODATION - PRIVATE CONTRACTORS PAYMENT,"1,040.00",0,Supplier
05/07/2019,Children and Young People Operations & Safeguarding,Cameron Support Services Ltd,SUPPORTED OTHER ACCOMMODATION - PRIVATE CONTRACTORS PAYMENT,"2,600.00",0,Supplier
05/07/2019,Children and Young People Operations & Safeguarding,Cameron Support Services Ltd,SUPPORTED OTHER ACCOMMODATION - PRIVATE CONTRACTORS PAYMENT,"3,400.00",0,Supplier
05/07/2019,Children and Young People Operations & Safeguarding,Cameron Support Services Ltd,SUPPORTED OTHER ACCOMMODATION - PRIVATE CONTRACTORS PAYMENT,"20,424.00",0,Supplier
05/07/2019,Children and Young People Operations & Safeguarding,Cedar Housing Solutions Ltd,NO RECOURSE TO PUBLIC FUNDS - PRIVATE CONTRACTORS PAYMENT,"1,274.00",0,Commercial Supplier
05/07/2019,"People, Policy and Performance Communications",Charlotte Osborn,EVENTS,"2,620.00",0,Individuals
05/07/2019,oneSource - Non Shared Human Resources,Compass Resolution Ltd,STAFF DEVELOPMENT AND TRAINING,540.00,0,Commercial Supplier
05/07/2019,Environment and Sustainable Transport Highways and Sustainable Transport,Datanet.Co.UK,ICT MAINTENANCE AND SUPPORT,479.76,0,Commercial Supplier
05/07/2019,"Adults & Health Commissioning, Health & Social Care",Diane Mcbrinn,SUPPORTED OTHER ACCOMMODATION - PRIVATE CONTRACTORS PAYMENT,850.00,0,Supplier
05/07/2019,CYP Commissioner ? Brighter Futures Early Help and Childrens Health,East London Nhs Foundation Tst,PAYMENT TO HEALTH AUTHORITIES,"129,528.00",0,Supplier
05/07/2019,CYP Commissioner ? Brighter Futures Early Help and Childrens Health,East London Nhs Foundation Tst,PAYMENT TO HEALTH AUTHORITIES,"198,156.00",0,Supplier
05/07/2019,"Adults & Health Commissioning, Health & Social Care",Goldline Cars Ltd,PAYMENTS TO VOLUNTARY SECTOR,691.90,0,Commercial Supplier
05/07/2019,"Adults & Health Commissioning, Health & Social Care",Goldsmith Personnel Ltd,HOME CARE - PRIVATE CONTRACTORS PAYMENT,"58,106.64",0,Supplier
05/07/2019,"Adults & Health Commissioning, Health & Social Care",Goldsmith Personnel Ltd,RESPITE CARE - PRIVATE CONTRACTORS PAYMENT,"2,764.68",0,Supplier
05/07/2019,"Adults & Health Commissioning, Health & Social Care",Goldsmith Personnel Ltd,HOME CARE - PRIVATE CONTRACTORS PAYMENT,490.20,0,Supplier
05/07/2019,"Adults & Health Commissioning, Health & Social Care",Goldsmith Personnel Ltd,DAYCARE - PRIVATE CONTRACTORS PAYMENT,"8,776.20",0,Supplier
05/07/2019,"Adults & Health Commissioning, Health & Social Care",Goldsmith Personnel Ltd,PRIVATE CONTRACTORS PAYMENT - OTHER,"2,215.44",0,Supplier
05/07/2019,"People, Policy and Performance People, Policy and Performance",Hammond Clarke Ltd,STAFF RECRUITMENT COSTS,"2,193.00",0,Commercial Supplier
05/07/2019,"People, Policy and Performance Resident Engagement & Participation",Herbs 4 Healthy Living,EVENTS,350.00,0,Commercial Supplier
05/07/2019,"Adults & Health Commissioning, Health & Social Care",Highland Care Uk Ltd,DAYCARE - PRIVATE CONTRACTORS PAYMENT,288.00,0,Supplier
05/07/2019,"Adults & Health Commissioning, Health & Social Care",Highland Care Uk Ltd,HOME CARE - PRIVATE CONTRACTORS PAYMENT,"1,092.00",0,Supplier
05/07/2019,"Adults & Health Commissioning, Health & Social Care",Highland Care Uk Ltd,HOME CARE - PRIVATE CONTRACTORS PAYMENT,336.00,0,Supplier
05/07/2019,"Adults & Health Commissioning, Health & Social Care",Highland Care Uk Ltd,HOME CARE - PRIVATE CONTRACTORS PAYMENT,"1,812.00",0,Supplier
05/07/2019,"Adults & Health Commissioning, Health & Social Care",Highland Care Uk Ltd,HOME CARE - PRIVATE CONTRACTORS PAYMENT,"1,812.00",0,Supplier
05/07/2019,"Adults & Health Commissioning, Health & Social Care",Highland Care Uk Ltd,HOME CARE - PRIVATE CONTRACTORS PAYMENT,"1,176.00",0,Supplier
05/07/2019,"Adults & Health Commissioning, Health & Social Care",Highland Care Uk Ltd,HOME CARE - PRIVATE CONTRACTORS PAYMENT,840.00,0,Supplier
05/07/2019,"Adults & Health Commissioning, Health & Social Care",Highland Care Uk Ltd,HOME CARE - PRIVATE CONTRACTORS PAYMENT,"1,584.00",0,Supplier
05/07/2019,"Adults & Health Commissioning, Health & Social Care",Highland Care Uk Ltd,HOME CARE - PRIVATE CONTRACTORS PAYMENT,384.00,0,Supplier
05/07/2019,"Adults & Health Commissioning, Health & Social Care",Highland Care Uk Ltd,HOME CARE - PRIVATE CONTRACTORS PAYMENT,"1,764.00",0,Supplier
05/07/2019,"Adults & Health Commissioning, Health & Social Care",Highland Care Uk Ltd,HOME CARE - PRIVATE CONTRACTORS PAYMENT,"1,176.00",0,Supplier
05/07/2019,"Adults & Health Commissioning, Health & Social Care",Highland Care Uk Ltd,HOME CARE - PRIVATE CONTRACTORS PAYMENT,378.00,0,Supplier
05/07/2019,"Adults & Health Commissioning, Health & Social Care",Highland Care Uk Ltd,PRIVATE CONTRACTORS PAYMENT - OTHER,459.00,0,Supplier
05/07/2019,"Adults & Health Commissioning, Health & Social Care",Highland Care Uk Ltd,HOME CARE - PRIVATE CONTRACTORS PAYMENT,"1,476.00",0,Supplier
05/07/2019,Inclusive Economy & Housing Housing,Hungerburger Ltd T/a Barking Hotel,RENTS PAYABLE,356.00,0,Commercial Supplier
05/07/2019,Children and Young People Operations & Safeguarding,Inclusive Care Support Ltd,SUPPORTED OTHER ACCOMMODATION - PRIVATE CONTRACTORS PAYMENT,"3,696.00",0,Commercial Supplier
05/07/2019,Children and Young People Operations & Safeguarding,Inclusive Care Support Ltd,SUPPORTED OTHER ACCOMMODATION - PRIVATE CONTRACTORS PAYMENT,"3,007.00",0,Commercial Supplier
05/07/2019,"Adults & Health Commissioning, Health & Social Care",Inclusive Care Support Ltd,DAYCARE - PRIVATE CONTRACTORS PAYMENT,"1,260.00",0,Commercial Supplier
05/07/2019,Children and Young People Operations & Safeguarding,Inclusive Care Support Ltd,SUPPORTED OTHER ACCOMMODATION - PRIVATE CONTRACTORS PAYMENT,"3,193.76",0,Commercial Supplier
05/07/2019,Children and Young People Operations & Safeguarding,Inclusive Care Support Ltd,SUPPORTED OTHER ACCOMMODATION - PRIVATE CONTRACTORS PAYMENT,"5,797.00",0,Commercial Supplier
05/07/2019,Children and Young People Operations & Safeguarding,Inclusive Care Support Ltd,CLIENT SUPPORT - THIRD PARTY,"5,800.00",0,Commercial Supplier
05/07/2019,"People, Policy and Performance Resident Engagement & Participation",Juniper Ventures Ltd,CATERING SERVICES,"3,773.30",0,Commercial Supplier
05/07/2019,"People, Policy and Performance Resident Engagement & Participation",Juniper Ventures Ltd,CATERING SERVICES,"4,705.90",0,Commercial Supplier
05/07/2019,"People, Policy and Performance Resident Engagement & Participation",Juniper Ventures Ltd,EVENTS,525.00,0,Commercial Supplier
05/07/2019,CYP Commissioner ? Brighter Futures Early Help and Childrens Health,Kent County Council (Kcs),BUILDING ALTERATIONS AND MATERIALS,312.14,0,Local Authority Services
05/07/2019,Children and Young People Operations & Safeguarding,Kent County Council (Kcs),GAS,301.34,0,Local Authority Services
05/07/2019,CYP Commissioner ? Brighter Futures Early Help and Childrens Health,Kent County Council (Kcs),BUILDING ALTERATIONS AND MATERIALS,282.30,0,Local Authority Services
05/07/2019,Inclusive Economy & Housing Community Wealth Building,Kent County Council (Kcs),GAS,501.71,0,Local Authority Services
05/07/2019,Inclusive Economy & Housing Community Wealth Building,Kent County Council (Kcs),GAS,277.52,0,Local Authority Services
05/07/2019,Children and Young People Operations & Safeguarding,Laurel Leaf Homes Ltd,RESIDENTIAL PLACEMENTS - PRIVATE CONTRACTORS PAYMENT,"7,726.10",0,Supplier
05/07/2019,Children and Young People Operations & Safeguarding,Laurel Leaf Homes Ltd,RESIDENTIAL PLACEMENTS - PRIVATE CONTRACTORS PAYMENT,"16,858.90",0,Supplier
05/07/2019,Children and Young People Operations & Safeguarding,Laurel Leaf Homes Ltd,RESIDENTIAL PLACEMENTS - PRIVATE CONTRACTORS PAYMENT,"10,185.59",0,Supplier
05/07/2019,Dedicated Schools Budget Dedicated Schools Budget,Livability Nash College,PROFESSIONAL SERVICES - GENERAL,"17,798.69",0,Commercial Supplier
05/07/2019,Inclusive Economy & Housing Housing,London Borough of Havering,COUNCIL TAX,308.58,0,Local Authority Services
05/07/2019,Inclusive Economy & Housing Housing,London Borough of Havering,COUNCIL TAX,308.58,0,Local Authority Services
05/07/2019,"Adults & Health Commissioning, Health & Social Care",Medstar Domiciliary Care Services Ltd,DAYCARE - PRIVATE CONTRACTORS PAYMENT,807.88,0,Commercial Supplier
05/07/2019,"Environment and Sustainable Transport Recycling, Refuse and Street Cleansing",Mint Cleaning Group Holding Ltd,STREET SWEEPING,"268,930.42",0,Commercial Supplier
05/07/2019,Housing Revenue Account HRA,Mint Cleaning Group Holding Ltd,STREET SWEEPING,"117,818.83",0,Commercial Supplier
05/07/2019,Children and Young People Operations & Safeguarding,Miss Deborah Seitler,LEGAL FEES,650.00,0,Supplier
05/07/2019,"Adults & Health Commissioning, Health & Social Care",NAS Services Limited,DAYCARE - PRIVATE CONTRACTORS PAYMENT,"1,952.27",0,Commercial Supplier
05/07/2019,"Adults & Health Commissioning, Health & Social Care",NTA Monitor Ltd,ICT SOFTWARE,750.00,0,Commercial Supplier
05/07/2019,oneSource oS ICT Services,NTA Monitor Ltd,ICT SOFTWARE,"3,000.00",0,Commercial Supplier
05/07/2019,Inclusive Economy & Housing Housing,Nationwide Accommodation Services Limited,RENTS PAYABLE,"3,600.00",0,Commercial Supplier
05/07/2019,Inclusive Economy & Housing Housing,Nationwide Accommodation Services Limited,RENTS PAYABLE,"3,742.00",0,Commercial Supplier
05/07/2019,"Environment and Sustainable Transport Recycling, Refuse and Street Cleansing",Northgate Vehicle Hire Ltd,VEHICLE HIRE,323.96,0,Non Commercial Supplier
05/07/2019,Housing Revenue Account HRA,Now Medical,PROFESSIONAL SERVICES - GENERAL,528.00,0,Supplier
05/07/2019,Adults & Health Operations,Now Medical,PROFESSIONAL SERVICES - GENERAL,610.00,0,Supplier
05/07/2019,"Adults & Health Commissioning, Health & Social Care",Plaistow Abbey Cars London Ltd,DIRECT TRANSPORT,900.00,0,Commercial Supplier
05/07/2019,"Adults & Health Commissioning, Health & Social Care",Preventx Integrated Diagnostics Ltd,PAYMENT TO HEALTH AUTHORITIES,558.00,0,Commercial Supplier
05/07/2019,CYP Commissioner ? Brighter Futures Early Help and Childrens Health,Redspot Healthcare Services Ltd,AGENCY STAFF,271.80,0,Commercial Supplier
05/07/2019,oneSource oS Exchequer & Transactional Services,Respondit Web Design Ltd,ICT MAINTENANCE AND SUPPORT,"1,500.00",0,Commercial Supplier
05/07/2019,Dedicated Schools Budget Dedicated Schools Budget,Royal National College for the Blind,PROFESSIONAL SERVICES - GENERAL,"6,998.00",0,Commercial Supplier
05/07/2019,Children and Young People Inclusion & Achievement,Sayers (Car Hire),DIRECT TRANSPORT,"6,066.00",0,Supplier
05/07/2019,Children and Young People Inclusion & Achievement,Sayers (Car Hire),DIRECT TRANSPORT,"6,588.00",0,Supplier
05/07/2019,"People, Policy and Performance Resident Engagement & Participation",SirsiDynix Ltd,ICT MAINTENANCE AND SUPPORT,760.00,0,Commercial Supplier
05/07/2019,Inclusive Economy & Housing Housing,Site Sales Marketing Ltd,"ADVERTISING, PUBLICITY AND MARKETING",375.00,0,Commercial Supplier
05/07/2019,Inclusive Economy & Housing Housing,Site Sales Marketing Ltd,"ADVERTISING, PUBLICITY AND MARKETING","2,250.00",0,Commercial Supplier
05/07/2019,Inclusive Economy & Housing Housing,Site Sales Marketing Ltd,"ADVERTISING, PUBLICITY AND MARKETING","1,875.00",0,Commercial Supplier
05/07/2019,Children and Young People Operations & Safeguarding,Sixteen Plus Ltd,SUPPORTED OTHER ACCOMMODATION - PRIVATE CONTRACTORS PAYMENT,"9,240.00",0,Commercial Supplier
05/07/2019,Children and Young People Operations & Safeguarding,Sixteen Plus Ltd,SUPPORTED OTHER ACCOMMODATION - PRIVATE CONTRACTORS PAYMENT,"9,240.00",0,Commercial Supplier
05/07/2019,oneSource - Non Shared Asset Management,Syntegra Consulting Limited,CONSULTANCY FEES,450.00,0,Commercial Supplier
05/07/2019,Inclusive Economy & Housing Community Wealth Building,Tec Training (GB) Ltd,STAFF DEVELOPMENT AND TRAINING,495.00,0,Commercial Supplier
05/07/2019,RMS RMS,Travis Perkins Trading Company Ltd,"PURCHASE - EQUIPMENT, FURNITURE AND MATERIALS","166,224.12",0,Commercial Supplier
05/07/2019,Children and Young People Operations & Safeguarding,Unique Support UK Ltd,SUPPORTED OTHER ACCOMMODATION - PRIVATE CONTRACTORS PAYMENT,"3,360.00",0,Commercial Supplier
05/07/2019,Children and Young People Operations & Safeguarding,Unique Support UK Ltd,CLIENT SUPPORT - THIRD PARTY,"1,679.02",0,Commercial Supplier
05/07/2019,Children and Young People Operations & Safeguarding,Unique Support UK Ltd,SUPPORTED OTHER ACCOMMODATION - PRIVATE CONTRACTORS PAYMENT,"6,720.00",0,Commercial Supplier
05/07/2019,Children and Young People Operations & Safeguarding,Unique Support UK Ltd,SUPPORTED OTHER ACCOMMODATION - PRIVATE CONTRACTORS PAYMENT,"3,000.90",0,Commercial Supplier
05/07/2019,Children and Young People Operations & Safeguarding,Unique Support UK Ltd,SUPPORTED OTHER ACCOMMODATION - PRIVATE CONTRACTORS PAYMENT,"6,720.00",0,Commercial Supplier
05/07/2019,Children and Young People Operations & Safeguarding,Unique Support UK Ltd,SUPPORTED OTHER ACCOMMODATION - PRIVATE CONTRACTORS PAYMENT,"6,720.00",0,Commercial Supplier
05/07/2019,"Adults & Health Commissioning, Health & Social Care",Uniting Friends,DAYCARE - PRIVATE CONTRACTORS PAYMENT,"2,030.00",0,Supplier
05/07/2019,"Adults & Health Commissioning, Health & Social Care",Uniting Friends,DAYCARE - PRIVATE CONTRACTORS PAYMENT,672.00,0,Supplier
05/07/2019,"Adults & Health Commissioning, Health & Social Care",Uniting Friends,DAYCARE - PRIVATE CONTRACTORS PAYMENT,"1,008.70",0,Supplier
05/07/2019,"Adults & Health Commissioning, Health & Social Care",Vantage Care Services Ltd t/a Carewatch Newham & Tower Hamlets,DAYCARE - PRIVATE CONTRACTORS PAYMENT,"1,806.32",0,Supplier
05/07/2019,"Adults & Health Commissioning, Health & Social Care",Vantage Care Services Ltd t/a Carewatch Newham & Tower Hamlets,DAYCARE - PRIVATE CONTRACTORS PAYMENT,"1,034.48",0,Supplier
05/07/2019,"Adults & Health Commissioning, Health & Social Care",Vantage Care Services Ltd t/a Carewatch Newham & Tower Hamlets,HOME CARE - PRIVATE CONTRACTORS PAYMENT,"11,905.99",0,Supplier
05/07/2019,"Adults & Health Commissioning, Health & Social Care",Vantage Care Services Ltd t/a Carewatch Newham & Tower Hamlets,HOME CARE - PRIVATE CONTRACTORS PAYMENT,"3,344.45",0,Supplier
05/07/2019,"Adults & Health Commissioning, Health & Social Care",Vantage Care Services Ltd t/a Carewatch Newham & Tower Hamlets,RESPITE CARE - PRIVATE CONTRACTORS PAYMENT,269.16,0,Supplier
05/07/2019,Housing Revenue Account HRA,Willow Pumps Limited,RESPONSIVE REPAIRS - MECHANICAL AND ELECTRICAL,340.00,0,Commercial Supplier
05/07/2019,Housing Revenue Account HRA,Willow Pumps Limited,RESPONSIVE REPAIRS - MECHANICAL AND ELECTRICAL,260.00,0,Commercial Supplier
05/07/2019,"Adults & Health Commissioning, Health & Social Care",Yeldall Manor,PAYMENT TO HEALTH AUTHORITIES,"3,214.29",0,Commercial Supplier
08/07/2019,Dedicated Schools Budget Dedicated Schools Budget,Redacted - Personal Data,SCHOOLS - TRANSFER PAYMENT,"7,900.00",0,Supplier
08/07/2019,Inclusive Economy & Housing Community Wealth Building,Redacted - Personal Data,GRANTS AND CONTRIBUTIONS,600.00,0,Individuals
08/07/2019,Adults & Health Public Health,Redacted - Personal Data,PAYMENTS TO VOLUNTARY SECTOR,"1,000.00",0,Individuals
08/07/2019,Inclusive Economy & Housing Housing,Abundant Life Housing Assoc,PAYMENT TO OTHER LOCAL AUTHORITIES,"2,000.00",0,Commercial Supplier
08/07/2019,Adults & Health Public Health,Active Newham,ARTS AND LEISURE COSTS,"364,630.00",0,Supplier
08/07/2019,Children and Young People Inclusion & Achievement,Agate Momentum Trust T/A Scott Wilkie Primary School,CATERING SERVICES,"18,048.00",0,Commercial Supplier
08/07/2019,Children and Young People Operations & Safeguarding,Redacted - Personal Data,IN HOUSE FOSTER CARE PLACEMENTS - PRIVATE CONTRACTORS PAYMENT,"1,800.00",0,Individuals
08/07/2019,Children and Young People Operations & Safeguarding,Redacted - Personal Data,IN HOUSE FOSTER CARE PLACEMENTS - PRIVATE CONTRACTORS PAYMENT,"1,200.00",0,Foster Carers
08/07/2019,Children and Young People Operations & Safeguarding,Redacted - Personal Data,IN HOUSE FOSTER CARE PLACEMENTS - PRIVATE CONTRACTORS PAYMENT,"1,200.00",0,Foster Carers
08/07/2019,Children and Young People Operations & Safeguarding,Redacted - Personal Data,IN HOUSE FOSTER CARE PLACEMENTS - PRIVATE CONTRACTORS PAYMENT,"1,700.00",0,Foster Carers
08/07/2019,Children and Young People Inclusion & Achievement,Avenue Primary School,CATERING SERVICES,"46,473.00",0,Supplier
08/07/2019,Dedicated Schools Budget Dedicated Schools Budget,Axcis Education Recruitment,PROFESSIONAL SERVICES - GENERAL,675.00,0,Commercial Supplier
08/07/2019,Dedicated Schools Budget Dedicated Schools Budget,Axcis Education Recruitment,PROFESSIONAL SERVICES - GENERAL,675.00,0,Commercial Supplier
08/07/2019,Children and Young People Operations & Safeguarding,Redacted - Personal Data,IN HOUSE FOSTER CARE PLACEMENTS - PRIVATE CONTRACTORS PAYMENT,900.00,0,Foster Carers
08/07/2019,Adults & Health Operations,Redacted - Personal Data,DIRECT TRANSPORT,"1,070.46",0,Employee
08/07/2019,Adults & Health Operations,Redacted - Personal Data,CONSULTANCY FEES,482.60,0,Employee
08/07/2019,Children and Young People Inclusion & Achievement,Big Education Trust t/a School 21,CATERING SERVICES,"32,035.20",0,Supplier
08/07/2019,"People, Policy and Performance Change & PMO",Bloom Procurement Services Ltd,CONSULTANCY FEES,"3,823.75",0,Commercial Supplier
08/07/2019,Children and Young People Inclusion & Achievement,Bloom Procurement Services Ltd,CONSULTANCY FEES,"11,400.00",0,Commercial Supplier
08/07/2019,Environment and Sustainable Transport Community Safety,Bonny Downs Community Assoc,ARTS AND LEISURE COSTS,"2,000.00",0,Supplier
08/07/2019,Children and Young People Inclusion & Achievement,Brampton Primary School,CATERING SERVICES,"51,286.00",0,Local Authority Services
08/07/2019,Dedicated Schools Budget Dedicated Schools Budget,Breavetone Ltd,PROFESSIONAL SERVICES - GENERAL,395.00,0,Commercial Supplier
08/07/2019,Children and Young People Inclusion & Achievement,Britannia Village Primary School t/a Britannia Academy,CATERING SERVICES,"25,116.00",0,Commercial Supplier
08/07/2019,oneSource - Non Shared Asset Management,Burford Road Investment Partnership,LEGAL FEES,"113,630.00",0,Commercial Supplier
08/07/2019,oneSource oS ICT Services,Bytes Software Services Ltd,ICT SOFTWARE,"2,720.90",0,Non Commercial Supplier
08/07/2019,oneSource - Non Shared Asset Management,CDGM Ltd t/a Andrew Wilson & Co,RENTS PAYABLE,"7,383.77",0,Commercial Supplier
08/07/2019,Children and Young People Inclusion & Achievement,Calverton Primary School,CATERING SERVICES,"26,320.00",0,Supplier
08/07/2019,Environment and Sustainable Transport Highways and Sustainable Transport,Capital Shopfitting Services ( Hemel Hempstead) Ltd,DIRECT PAYMENTS REFUNDS,"2,600.00",0,Commercial Supplier
08/07/2019,Children and Young People Inclusion & Achievement,Carpenters Primary,CATERING SERVICES,"22,560.00",0,Supplier
08/07/2019,Children and Young People Operations & Safeguarding,Cedar Housing Solutions Ltd,NO RECOURSE TO PUBLIC FUNDS - PRIVATE CONTRACTORS PAYMENT,"1,274.00",0,Commercial Supplier
08/07/2019,Children and Young People Operations & Safeguarding,Cedar Housing Solutions Ltd,NO RECOURSE TO PUBLIC FUNDS - PRIVATE CONTRACTORS PAYMENT,847.00,0,Commercial Supplier
08/07/2019,Children and Young People Inclusion & Achievement,Central Park Primary School,CATERING SERVICES,"52,940.80",0,Supplier
08/07/2019,Children and Young People Operations & Safeguarding,Redacted - Personal Data,IN HOUSE FOSTER CARE PLACEMENTS - PRIVATE CONTRACTORS PAYMENT,"1,466.67",0,Individuals
08/07/2019,Children and Young People Inclusion & Achievement,Chobham Academy,CATERING SERVICES,"30,547.20",0,Commercial Supplier
08/07/2019,oneSource oS ICT Services,Cisilion Ltd,ICT MAINTENANCE AND SUPPORT,"20,344.06",0,Commercial Supplier
08/07/2019,oneSource - Non Shared Asset Management,Citysprint (UK) Ltd,POSTAGE AND COURIER SERVICES,"2,860.00",0,Commercial Supplier
08/07/2019,Children and Young People Inclusion & Achievement,Cleves Primary School t/a Boleyn Trust,CATERING SERVICES,"25,417.60",0,Commercial Supplier
08/07/2019,Children and Young People Inclusion & Achievement,Colegrave Primary School,CATERING SERVICES,"36,096.00",0,Supplier
08/07/2019,oneSource - Non Shared LBN Transactional Services,Computershare Voucher Services,PROFESSIONAL SERVICES - GENERAL,709.50,0,Commercial Supplier
08/07/2019,"Adults & Health Commissioning, Health & Social Care",Contour886 Limited,SPECIALIST EQUIPMENT FOR SERVICE PROVISION,"1,681.58",0,Commercial Supplier
08/07/2019,"Adults & Health Commissioning, Health & Social Care",Contour886 Limited,SPECIALIST EQUIPMENT FOR SERVICE PROVISION,"3,020.89",0,Commercial Supplier
08/07/2019,oneSource oS ICT Services,Coppermill Press,PRINTING,895.00,0,Supplier
08/07/2019,oneSource oS ICT Services,Coppermill Press,PRINTING,395.00,0,Supplier
08/07/2019,oneSource oS ICT Services,Coppermill Press,PRINTING,395.00,0,Supplier
08/07/2019,oneSource oS ICT Services,Coppermill Press,PRINTING,395.00,0,Supplier
08/07/2019,"People, Policy and Performance Communications",Countess Marquees,EVENTS,"17,942.16",0,Commercial Supplier
08/07/2019,Children and Young People Inclusion & Achievement,Curwen Primary School t/aTapscott Learning Trust,CATERING SERVICES,"52,038.40",0,Commercial Supplier
08/07/2019,Housing Revenue Account HRA,Daisy Communications Ltd,RESPONSIVE REPAIRS - MECHANICAL AND ELECTRICAL,374.75,0,Commercial Supplier
08/07/2019,Children and Young People Operations & Safeguarding,Redacted - Personal Data,IN HOUSE FOSTER CARE PLACEMENTS - PRIVATE CONTRACTORS PAYMENT,"1,380.00",0,Foster Carers
08/07/2019,"People, Policy and Performance Policy & Performance",Deltascheme Ltd,ICT MAINTENANCE AND SUPPORT,"6,618.00",0,Commercial Supplier
08/07/2019,Children and Young People Inclusion & Achievement,Dersingham Primary School,CATERING SERVICES,"36,697.60",0,Supplier
08/07/2019,Children and Young People Operations & Safeguarding,Dhousiyen Kumar Bhunjun,RENTS PAYABLE,621.50,0,Non Commercial Supplier
08/07/2019,Children and Young People Inclusion & Achievement,Redacted - Personal Data,CATERING AND VENDING SUPPLIES,549.10,0,Employee
08/07/2019,Children and Young People Inclusion & Achievement,Redacted - Personal Data,"CLOTHES, UNIFORM AND LAUNDRY",328.78,0,Employee
08/07/2019,Children and Young People Operations & Safeguarding,Redacted - Personal Data,IN HOUSE FOSTER CARE PLACEMENTS - PRIVATE CONTRACTORS PAYMENT,690.00,0,Foster Carers
08/07/2019,Children and Young People Inclusion & Achievement,Drew Primary School t/a Learning in Harmony Trust,CATERING SERVICES,"20,454.40",0,Commercial Supplier
08/07/2019,"Environment and Sustainable Transport Recycling, Refuse and Street Cleansing",E H Roberts-Penet Group Ltd,DIRECT TRANSPORT,360.00,0,Supplier
08/07/2019,"Environment and Sustainable Transport Recycling, Refuse and Street Cleansing",E H Roberts-Penet Group Ltd,DIRECT TRANSPORT,340.00,0,Supplier
08/07/2019,"Environment and Sustainable Transport Recycling, Refuse and Street Cleansing",E H Roberts-Penet Group Ltd,DIRECT TRANSPORT,320.00,0,Supplier
08/07/2019,"Environment and Sustainable Transport Recycling, Refuse and Street Cleansing",E H Roberts-Penet Group Ltd,DIRECT TRANSPORT,280.00,0,Supplier
08/07/2019,"Environment and Sustainable Transport Recycling, Refuse and Street Cleansing",E H Roberts-Penet Group Ltd,DIRECT TRANSPORT,280.00,0,Supplier
08/07/2019,"Environment and Sustainable Transport Recycling, Refuse and Street Cleansing",E H Roberts-Penet Group Ltd,DIRECT TRANSPORT,280.00,0,Supplier
08/07/2019,"Environment and Sustainable Transport Recycling, Refuse and Street Cleansing",E H Roberts-Penet Group Ltd,DIRECT TRANSPORT,280.00,0,Supplier
08/07/2019,"Environment and Sustainable Transport Recycling, Refuse and Street Cleansing",E H Roberts-Penet Group Ltd,DIRECT TRANSPORT,476.66,0,Supplier
08/07/2019,"Environment and Sustainable Transport Recycling, Refuse and Street Cleansing",E H Roberts-Penet Group Ltd,DIRECT TRANSPORT,280.00,0,Supplier
08/07/2019,"Environment and Sustainable Transport Recycling, Refuse and Street Cleansing",E H Roberts-Penet Group Ltd,DIRECT TRANSPORT,282.00,0,Supplier
08/07/2019,"Environment and Sustainable Transport Recycling, Refuse and Street Cleansing",E H Roberts-Penet Group Ltd,DIRECT TRANSPORT,280.00,0,Supplier
08/07/2019,"Environment and Sustainable Transport Recycling, Refuse and Street Cleansing",E H Roberts-Penet Group Ltd,DIRECT TRANSPORT,270.00,0,Supplier
08/07/2019,"Environment and Sustainable Transport Recycling, Refuse and Street Cleansing",E H Roberts-Penet Group Ltd,DIRECT TRANSPORT,270.00,0,Supplier
08/07/2019,"Environment and Sustainable Transport Recycling, Refuse and Street Cleansing",E H Roberts-Penet Group Ltd,DIRECT TRANSPORT,340.00,0,Supplier
08/07/2019,"Environment and Sustainable Transport Recycling, Refuse and Street Cleansing",E H Roberts-Penet Group Ltd,DIRECT TRANSPORT,360.00,0,Supplier
08/07/2019,"Environment and Sustainable Transport Recycling, Refuse and Street Cleansing",E H Roberts-Penet Group Ltd,DIRECT TRANSPORT,400.00,0,Supplier
08/07/2019,"Environment and Sustainable Transport Recycling, Refuse and Street Cleansing",E H Roberts-Penet Group Ltd,DIRECT TRANSPORT,340.00,0,Supplier
08/07/2019,"Environment and Sustainable Transport Recycling, Refuse and Street Cleansing",E H Roberts-Penet Group Ltd,DIRECT TRANSPORT,340.00,0,Supplier
08/07/2019,"Environment and Sustainable Transport Recycling, Refuse and Street Cleansing",E H Roberts-Penet Group Ltd,DIRECT TRANSPORT,280.00,0,Supplier
08/07/2019,"Environment and Sustainable Transport Recycling, Refuse and Street Cleansing",E H Roberts-Penet Group Ltd,DIRECT TRANSPORT,"1,300.00",0,Supplier
08/07/2019,"Environment and Sustainable Transport Recycling, Refuse and Street Cleansing",E H Roberts-Penet Group Ltd,DIRECT TRANSPORT,360.00,0,Supplier
08/07/2019,"Environment and Sustainable Transport Recycling, Refuse and Street Cleansing",E H Roberts-Penet Group Ltd,DIRECT TRANSPORT,660.00,0,Supplier
08/07/2019,"Environment and Sustainable Transport Recycling, Refuse and Street Cleansing",E H Roberts-Penet Group Ltd,DIRECT TRANSPORT,495.00,0,Supplier
08/07/2019,"Environment and Sustainable Transport Recycling, Refuse and Street Cleansing",E H Roberts-Penet Group Ltd,DIRECT TRANSPORT,390.00,0,Supplier
08/07/2019,"Environment and Sustainable Transport Recycling, Refuse and Street Cleansing",E H Roberts-Penet Group Ltd,DIRECT TRANSPORT,280.00,0,Supplier
08/07/2019,Children and Young People Inclusion & Achievement,EKO Trust t/a Earlham Primary School,CATERING SERVICES,"22,409.60",0,Non Commercial Supplier
08/07/2019,CYP Commissioner ? Brighter Futures Early Help and Childrens Health,Early Start Group Ltd,PRIVATE CONTRACTORS PAYMENT - OTHER,"287,164.89",0,Commercial Supplier
08/07/2019,Children and Young People Inclusion & Achievement,Ellen Wilkinson Primary School,CATERING SERVICES,"25,417.60",0,Non Commercial Supplier
08/07/2019,Children and Young People Inclusion & Achievement,Elmhurst Primary School t/a New Vision Trust,CATERING SERVICES,"55,648.00",0,Non Commercial Supplier
08/07/2019,Children and Young People Operations & Safeguarding,Redacted - Personal Data,IN HOUSE FOSTER CARE PLACEMENTS - PRIVATE CONTRACTORS PAYMENT,756.43,0,Individuals
08/07/2019,Children and Young People Inclusion & Achievement,Essex Primary School,CATERING SERVICES,"53,692.80",0,Non Commercial Supplier
08/07/2019,Children and Young People Operations & Safeguarding,Redacted - Personal Data,IN HOUSE FOSTER CARE PLACEMENTS - PRIVATE CONTRACTORS PAYMENT,690.00,0,Foster Carers
08/07/2019,oneSource - Non Shared Legal & Democratic,Financial Data Management PLC,PRINTING,758.00,0,Commercial Supplier
08/07/2019,"Adults & Health Commissioning, Health & Social Care",Four Seasons (N0.10) Limited Re.Summerdale Court Care Home,NURSING HOMES - PRIVATE CONTRACTORS PAYMENT,"1,194.51",0,Supplier
08/07/2019,"Environment and Sustainable Transport Recycling, Refuse and Street Cleansing",Redacted - Personal Data,DIRECT TRANSPORT,804.03,0,Commercial Supplier
08/07/2019,Children and Young People Operations & Safeguarding,Fusion Fostering,RESIDENTIAL PLACEMENTS - PRIVATE CONTRACTORS PAYMENT,"3,000.00",0,Commercial Supplier
08/07/2019,Children and Young People Operations & Safeguarding,Fusion Fostering,RESIDENTIAL PLACEMENTS - PRIVATE CONTRACTORS PAYMENT,"3,000.00",0,Commercial Supplier
08/07/2019,Children and Young People Inclusion & Achievement,Gainsborough Primary School t/a EKO Trust,CATERING SERVICES,"16,995.20",0,Commercial Supplier
08/07/2019,Children and Young People Inclusion & Achievement,Gallions Primary School t/a New Vision Trust,CATERING SERVICES,"30,080.00",0,Commercial Supplier
08/07/2019,Resources Strategic Investment,Redacted - Personal Data,SPECIAL GUARDIANSHIP,613.67,0,Individuals
08/07/2019,Children and Young People Inclusion & Achievement,Godwin Junior School,CATERING SERVICES,"45,120.00",0,Supplier
08/07/2019,"People, Policy and Performance Communications",Gorkana Group Ltd,"PURCHASE - EQUIPMENT, FURNITURE AND MATERIALS",699.62,0,Supplier
08/07/2019,oneSource oS ICT Services,Green's Data Services,ICT SOFTWARE,"1,100.00",0,Commercial Supplier
08/07/2019,"Adults & Health Commissioning, Health & Social Care",HC-One,NURSING HOMES - PRIVATE CONTRACTORS PAYMENT,"16,350.27",0,Commercial Supplier
08/07/2019,oneSource - Non Shared Asset Management,Harding Bros Electrical Ltd,BUILDING ALTERATIONS AND MATERIALS,"2,037.50",0,CIS
08/07/2019,Children and Young People Operations & Safeguarding,Harding Bros Electrical Ltd,BUILDING ALTERATIONS AND MATERIALS,581.00,0,CIS
08/07/2019,oneSource - Non Shared Asset Management,Harding Bros Electrical Ltd,BUILDING ALTERATIONS AND MATERIALS,"1,870.20",0,CIS
08/07/2019,oneSource - Non Shared Asset Management,Harding Bros Electrical Ltd,BUILDING ALTERATIONS AND MATERIALS,"2,597.30",0,CIS
08/07/2019,oneSource - Non Shared Asset Management,Harding Bros Electrical Ltd,BUILDING ALTERATIONS AND MATERIALS,340.00,0,CIS
08/07/2019,oneSource oS Strategic & Operational HR,Hays Specialist Recruitment Ltd,PROFESSIONAL SERVICES - GENERAL,"3,307.50",0,Supplier
08/07/2019,CYP Commissioner ? Brighter Futures Early Help and Childrens Health,Redacted - Personal Data,HOTEL AND OTHER ACCOMMODATION COSTS,"1,503.64",0,Employee
08/07/2019,CYP Commissioner ? Brighter Futures Early Help and Childrens Health,Redacted - Personal Data,CATERING AND VENDING SUPPLIES,298.00,0,Employee
08/07/2019,CYP Commissioner ? Brighter Futures Early Help and Childrens Health,Redacted - Personal Data,PAYMENT TO HEALTH AUTHORITIES,"1,025.83",0,Employee
08/07/2019,"Adults & Health Commissioning, Health & Social Care",Home From Home Care Ltd,NURSING HOMES - PRIVATE CONTRACTORS PAYMENT,"1,124.74",0,Non Commercial Supplier
08/07/2019,Housing Revenue Account HRA,Horizon Specialist Contracting,RESPONSIVE REPAIRS - MECHANICAL AND ELECTRICAL,"1,726.00",0,Commercial Supplier
08/07/2019,Housing Revenue Account HRA,Horizon Specialist Contracting,RESPONSIVE REPAIRS - MECHANICAL AND ELECTRICAL,425.00,0,Commercial Supplier
08/07/2019,"Environment and Sustainable Transport Recycling, Refuse and Street Cleansing",I.O.D. Skip Hire Limited,WASTE DISPOSAL COSTS,"3,817.60",0,Supplier
08/07/2019,Children and Young People Operations & Safeguarding,Inclusive Care Support Ltd,SUPPORTED OTHER ACCOMMODATION - PRIVATE CONTRACTORS PAYMENT,"3,217.00",0,Commercial Supplier
08/07/2019,Children and Young People Operations & Safeguarding,Inclusive Care Support Ltd,CLIENT SUPPORT - THIRD PARTY,"1,122.00",0,Commercial Supplier
08/07/2019,Children and Young People Operations & Safeguarding,Inclusive Care Support Ltd,CLIENT SUPPORT - THIRD PARTY,"1,190.00",0,Commercial Supplier
08/07/2019,Children and Young People Operations & Safeguarding,Inclusive Care Support Ltd,CLIENT SUPPORT - THIRD PARTY,"1,190.00",0,Commercial Supplier
08/07/2019,Children and Young People Operations & Safeguarding,Inclusive Care Support Ltd,SUPPORTED OTHER ACCOMMODATION - PRIVATE CONTRACTORS PAYMENT,"3,007.00",0,Commercial Supplier
08/07/2019,Children and Young People Operations & Safeguarding,Inclusive Care Support Ltd,SUPPORTED OTHER ACCOMMODATION - PRIVATE CONTRACTORS PAYMENT,"3,006.99",0,Commercial Supplier
08/07/2019,Children and Young People Operations & Safeguarding,Inclusive Care Support Ltd,SUPPORTED OTHER ACCOMMODATION - PRIVATE CONTRACTORS PAYMENT,"3,007.00",0,Commercial Supplier
08/07/2019,Children and Young People Operations & Safeguarding,Inclusive Care Support Ltd,SUPPORTED OTHER ACCOMMODATION - PRIVATE CONTRACTORS PAYMENT,"3,667.00",0,Commercial Supplier
08/07/2019,Children and Young People Operations & Safeguarding,Inclusive Care Support Ltd,SUPPORTED OTHER ACCOMMODATION - PRIVATE CONTRACTORS PAYMENT,"3,451.00",0,Commercial Supplier
08/07/2019,Children and Young People Operations & Safeguarding,Inclusive Care Support Ltd,SUPPORTED OTHER ACCOMMODATION - PRIVATE CONTRACTORS PAYMENT,"3,667.00",0,Commercial Supplier
08/07/2019,Children and Young People Operations & Safeguarding,Inclusive Care Support Ltd,SUPPORTED OTHER ACCOMMODATION - PRIVATE CONTRACTORS PAYMENT,"3,007.00",0,Commercial Supplier
08/07/2019,Children and Young People Operations & Safeguarding,Inclusive Care Support Ltd,SUPPORTED OTHER ACCOMMODATION - PRIVATE CONTRACTORS PAYMENT,"3,007.00",0,Commercial Supplier
08/07/2019,Children and Young People Operations & Safeguarding,Inclusive Care Support Ltd,CLIENT SUPPORT - THIRD PARTY,"1,122.00",0,Commercial Supplier
08/07/2019,Children and Young People Operations & Safeguarding,Inclusive Care Support Ltd,SUPPORTED OTHER ACCOMMODATION - PRIVATE CONTRACTORS PAYMENT,"3,217.00",0,Commercial Supplier
08/07/2019,Children and Young People Operations & Safeguarding,Inclusive Care Support Ltd,SUPPORTED OTHER ACCOMMODATION - PRIVATE CONTRACTORS PAYMENT,"3,007.00",0,Commercial Supplier
08/07/2019,Children and Young People Operations & Safeguarding,Inclusive Care Support Ltd,SUPPORTED OTHER ACCOMMODATION - PRIVATE CONTRACTORS PAYMENT,"3,007.00",0,Commercial Supplier
08/07/2019,Children and Young People Operations & Safeguarding,Inclusive Care Support Ltd,CLIENT SUPPORT - THIRD PARTY,"3,696.01",0,Commercial Supplier
08/07/2019,Children and Young People Operations & Safeguarding,Inclusive Care Support Ltd,CLIENT SUPPORT - THIRD PARTY,"3,696.00",0,Commercial Supplier
08/07/2019,"People, Policy and Performance Resident Engagement & Participation",Indira Nandha,EVENTS,405.00,0,Commercial Supplier
08/07/2019,"People, Policy and Performance Resident Engagement & Participation",Indira Nandha,EVENTS,315.00,0,Commercial Supplier
08/07/2019,"People, Policy and Performance Resident Engagement & Participation",Indira Nandha,EVENTS,360.00,0,Commercial Supplier
08/07/2019,oneSource - Non Shared Asset Management,Integral UK Ltd,"MAINTENANCE - EQUIPMENT, FURNITURE AND MATERIALS","1,201.90",0,Commercial Supplier
08/07/2019,oneSource - Non Shared Asset Management,Integral UK Ltd,"MAINTENANCE - EQUIPMENT, FURNITURE AND MATERIALS",464.70,0,Commercial Supplier
08/07/2019,oneSource - Non Shared Asset Management,Integral UK Ltd,"MAINTENANCE - EQUIPMENT, FURNITURE AND MATERIALS",984.50,0,Commercial Supplier
08/07/2019,oneSource - Non Shared Asset Management,Integral UK Ltd,"MAINTENANCE - EQUIPMENT, FURNITURE AND MATERIALS","1,650.00",0,Commercial Supplier
08/07/2019,oneSource - Non Shared Asset Management,Integral UK Ltd,"MAINTENANCE - EQUIPMENT, FURNITURE AND MATERIALS",802.89,0,Commercial Supplier
08/07/2019,oneSource - Non Shared Asset Management,Integral UK Ltd,"MAINTENANCE - EQUIPMENT, FURNITURE AND MATERIALS","1,771.84",0,Commercial Supplier
08/07/2019,oneSource - Non Shared Asset Management,Integral UK Ltd,"MAINTENANCE - EQUIPMENT, FURNITURE AND MATERIALS","2,010.14",0,Commercial Supplier
08/07/2019,"Adults & Health Commissioning, Health & Social Care",J J Moss & Sons Ltd,BUILDING ALTERATIONS AND MATERIALS,376.81,0,Supplier
08/07/2019,Children and Young People Operations & Safeguarding,Redacted - Personal Data,IN HOUSE FOSTER CARE PLACEMENTS - PRIVATE CONTRACTORS PAYMENT,557.14,0,Foster Carers
08/07/2019,Resources Council Tax & Benefits,Redacted - Personal Data,"PURCHASE - EQUIPMENT, FURNITURE AND MATERIALS",508.39,0,Employee
08/07/2019,Children and Young People Operations & Safeguarding,Redacted - Personal Data,IN HOUSE FOSTER CARE PLACEMENTS - PRIVATE CONTRACTORS PAYMENT,690.00,0,Individuals
08/07/2019,Children and Young People Operations & Safeguarding,Redacted - Personal Data,IN HOUSE FOSTER CARE PLACEMENTS - PRIVATE CONTRACTORS PAYMENT,"2,900.00",0,Foster Carers
08/07/2019,Environment and Sustainable Transport Highways and Sustainable Transport,Keir Hardie Primary School,PREMISES HIRE - FACILITIES,"10,000.00",0,Supplier
08/07/2019,Environment and Sustainable Transport Community Safety,Kikit Pathways,PRIVATE CONTRACTORS PAYMENT - OTHER,"21,264.50",0,Commercial Supplier
08/07/2019,oneSource - Non Shared Asset Management,L M Installations Ltd,BUILDING ALTERATIONS AND MATERIALS,693.40,0,CIS
08/07/2019,Adults & Health Operations,L M Installations Ltd,BUILDING ALTERATIONS AND MATERIALS,267.50,0,CIS
08/07/2019,Children and Young People Operations & Safeguarding,Redacted - Personal Data,IN HOUSE FOSTER CARE PLACEMENTS - PRIVATE CONTRACTORS PAYMENT,790.00,0,Individuals
08/07/2019,"People, Policy and Performance Communications",Les Enfants Parties Ltd,EVENTS,"1,122.00",0,Commercial Supplier
08/07/2019,Inclusive Economy & Housing Housing,Liberty Housing Group,PAYMENT TO OTHER LOCAL AUTHORITIES,"1,691.64",0,Commercial Supplier
08/07/2019,"Environment and Sustainable Transport Recycling, Refuse and Street Cleansing",Licence Bureau Ltd,DIRECT TRANSPORT,267.30,0,Commercial Supplier
08/07/2019,Dedicated Schools Budget Dedicated Schools Budget,Little Kingdom Day Nursery,PAYMENT TO OTHER ESTABLISHMENTS - GENERAL,"1,900.00",0,Supplier
08/07/2019,Dedicated Schools Budget Dedicated Schools Budget,Little Kingdom Day Nursery,PAYMENTS TO VOLUNTARY SECTOR,"10,527.00",0,Supplier
08/07/2019,Children and Young People Operations & Safeguarding,Redacted - Personal Data,SPECIAL GUARDIANSHIP,485.00,0,Individuals
08/07/2019,Children and Young People Inclusion & Achievement,London Borough of Bromley,PROFESSIONAL SERVICES - GENERAL,809.32,0,Commercial Supplier
08/07/2019,"Adults & Health Commissioning, Health & Social Care",London Councils,MEMBERSHIP AND SUBSCRIPTIONS,"17,065.00",0,Central/Government Departments
08/07/2019,Housing Revenue Account HRA,Manpower Direct Ltd,SECURITY OF PREMISES,"27,793.92",0,Commercial Supplier
08/07/2019,Children and Young People Operations & Safeguarding,Redacted - Personal Data,SUBSISTENCE,991.10,0,Employee
08/07/2019,Children and Young People Operations & Safeguarding,Redacted - Personal Data,SPECIAL GUARDIANSHIP,344.07,0,Individuals
08/07/2019,Children and Young People Inclusion & Achievement,Redacted - Personal Data,SUBSISTENCE,311.00,0,Employee
08/07/2019,oneSource - Non Shared Human Resources,Medigold Hlth Consultancy Ltd,PROFESSIONAL SERVICES - GENERAL,671.00,0,Supplier
08/07/2019,"Adults & Health Commissioning, Health & Social Care",Micks Furniture Discount,"PURCHASE - EQUIPMENT, FURNITURE AND MATERIALS","1,074.00",0,CIS
08/07/2019,Adults & Health Operations,Redacted - Personal Data,HOTEL AND OTHER ACCOMMODATION COSTS,"32,016.98",0,Employee
08/07/2019,Children and Young People Operations & Safeguarding,Redacted - Personal Data,IN HOUSE FOSTER CARE PLACEMENTS - PRIVATE CONTRACTORS PAYMENT,500.00,0,Individuals
08/07/2019,Children and Young People Inclusion & Achievement,New City Primary School t/a The Boleyn Trust,PAYMENT TO HEALTH AUTHORITIES,"34,892.80",0,Commercial Supplier
08/07/2019,Inclusive Economy & Housing Community Wealth Building,Newham College of Further Education,PROFESSIONAL SERVICES - GENERAL,"50,103.53",0,Commercial Supplier
08/07/2019,Children and Young People Inclusion & Achievement,Newham Partnership Working Ltd,PROFESSIONAL SERVICES - GENERAL,"52,589.01",0,Supplier
08/07/2019,Children and Young People Inclusion & Achievement,Park Primary School,CATERING SERVICES,"32,937.60",0,Supplier
08/07/2019,oneSource oS ICT Services,Patchsave Ltd,ICT MAINTENANCE AND SUPPORT,654.50,0,Supplier
08/07/2019,oneSource oS ICT Services,Redacted - Personal Data,PRINTING,"3,685.00",0,Employee
08/07/2019,oneSource oS ICT Services,Redacted - Personal Data,STATIONERY,"2,510.55",0,Employee
08/07/2019,Children and Young People Operations & Safeguarding,Redacted - Personal Data,SPECIAL GUARDIANSHIP,450.00,0,Individuals
08/07/2019,Children and Young People Inclusion & Achievement,Plaistow Primary School,CATERING SERVICES,"22,560.00",0,Commercial Supplier
08/07/2019,Children and Young People Inclusion & Achievement,Portway Primary School t/a Leading Learning Trust,CATERING SERVICES,"32,185.60",0,Commercial Supplier
08/07/2019,"Adults & Health Commissioning, Health & Social Care",Prepaid Financial Services Ltd,INTERNET COSTS,"3,988.23",0,Commercial Supplier
08/07/2019,Children and Young People Inclusion & Achievement,Ranelagh Primary School t/a Tapscott Learning Trust,CATERING SERVICES,"15,190.40",0,Commercial Supplier
08/07/2019,Children and Young People Inclusion & Achievement,Ravenscroft Primary School t/a Boleyn Academy Trust,CATERING SERVICES,"33,088.00",0,Commercial Supplier
08/07/2019,Dedicated Schools Budget Dedicated Schools Budget,Reeson Education,AGENCY STAFF,480.00,0,Commercial Supplier
08/07/2019,"People, Policy and Performance Communications",Reflex International,"CLOTHES, UNIFORM AND LAUNDRY","1,991.85",0,Non Commercial Supplier
08/07/2019,Children and Young People Inclusion & Achievement,Roman Road Primary School,CATERING SERVICES,"23,161.60",0,Supplier
08/07/2019,Children and Young People Inclusion & Achievement,Rosetta Primary School t/a Boleyn Academy Trust,CATERING SERVICES,"33,088.00",0,Non Commercial Supplier
08/07/2019,"Adults & Health Commissioning, Health & Social Care",Rosy Care Limited,DAYCARE - PRIVATE CONTRACTORS PAYMENT,"1,200.00",0,Non Commercial Supplier
08/07/2019,"Adults & Health Commissioning, Health & Social Care",Rosy Care Limited,DAYCARE - PRIVATE CONTRACTORS PAYMENT,900.00,0,Non Commercial Supplier
08/07/2019,oneSource oS ICT Services,Royal Mail Group Plc,POSTAGE AND COURIER SERVICES,"27,197.25",0,Commercial Supplier
08/07/2019,oneSource oS ICT Services,Royal Mail Group Plc,POSTAGE AND COURIER SERVICES,"18,694.44",0,Commercial Supplier
08/07/2019,oneSource oS ICT Services,Royal Mail Group Plc,POSTAGE AND COURIER SERVICES,"24,865.16",0,Commercial Supplier
08/07/2019,Housing Revenue Account HRA,Royal Mail Group Plc,POSTAGE AND COURIER SERVICES,"1,696.09",0,Commercial Supplier
08/07/2019,oneSource oS ICT Services,Royal Mail Group Plc,POSTAGE AND COURIER SERVICES,"24,192.87",0,Commercial Supplier
08/07/2019,Environment and Sustainable Transport Highways and Sustainable Transport,S S Construction Phase Limited,DIRECT PAYMENTS REFUNDS,"2,100.00",0,Commercial Supplier
08/07/2019,Inclusive Economy & Housing Housing,Sai Estates,RENTS PAYABLE,"2,646.00",0,Supplier
08/07/2019,Children and Young People Inclusion & Achievement,Salisbury Primary School,CATERING SERVICES,"36,096.00",0,Supplier
08/07/2019,Children and Young People Inclusion & Achievement,Redacted - Personal Data,"PURCHASE - EQUIPMENT, FURNITURE AND MATERIALS","1,014.76",0,Employee
08/07/2019,Children and Young People Inclusion & Achievement,Redacted - Personal Data,SUBSISTENCE,484.10,0,Employee
08/07/2019,Children and Young People Inclusion & Achievement,Redacted - Personal Data,PROFESSIONAL SERVICES - GENERAL,306.00,0,Employee
08/07/2019,Children and Young People Inclusion & Achievement,Redacted - Personal Data,ICT SOFTWARE,386.58,0,Employee
08/07/2019,Children and Young People Inclusion & Achievement,Redacted - Personal Data,SUBSISTENCE,311.70,0,Employee
08/07/2019,Children and Young People Operations & Safeguarding,Redacted - Personal Data,IN HOUSE FOSTER CARE PLACEMENTS - PRIVATE CONTRACTORS PAYMENT,"1,400.00",0,Foster Carers
08/07/2019,Children and Young People Inclusion & Achievement,Sandringham Primary School,CATERING SERVICES,"53,091.20",0,Supplier
08/07/2019,Children and Young People Inclusion & Achievement,Selwyn Primary School t/a Leading Learning Trust,CATERING SERVICES,"24,966.40",0,Commercial Supplier
08/07/2019,Environment and Sustainable Transport Community Safety,Serjeant Security Ltd,SECURITY OF PREMISES,"69,723.16",0,Supplier
08/07/2019,Children and Young People Inclusion & Achievement,Redacted - Personal Data,CATERING SERVICES,366.30,0,Employee
08/07/2019,Children and Young People Inclusion & Achievement,Shaftesbury Primary School t/a The Boleyn Trust,CATERING SERVICES,"38,502.40",0,Commercial Supplier
08/07/2019,Inclusive Economy & Housing Housing,Shelter Legal Services,LEGAL FEES,"5,500.00",0,Supplier
08/07/2019,Children and Young People Inclusion & Achievement,Sheringham Primary School t/a Learning in Harmony,CATERING SERVICES,"38,652.80",0,Supplier
08/07/2019,Children and Young People Inclusion & Achievement,Sir John Heron Primary School,CATERING SERVICES,"26,620.80",0,Supplier
08/07/2019,oneSource oS ICT Services,Redacted - Personal Data,LAND LINE TELEPHONE COSTS,"1,729.64",0,Employee
08/07/2019,Children and Young People Inclusion & Achievement,Southern Road Primary School.,CATERING SERVICES,"37,600.00",0,Supplier
08/07/2019,"People, Policy and Performance Resident Engagement & Participation",Spectrum Plastics,STATIONERY,889.00,0,Commercial Supplier
08/07/2019,Children and Young People Inclusion & Achievement,St Antony's Primary School,CATERING SERVICES,"28,275.20",0,Supplier
08/07/2019,Children and Young People Inclusion & Achievement,St Edward's Rc Primary School,CATERING SERVICES,"24,048.00",0,Supplier
08/07/2019,Children and Young People Inclusion & Achievement,St James' C Of E Junior School,CATERING SERVICES,"27,222.40",0,Supplier
08/07/2019,Inclusive Economy & Housing Community Wealth Building,Stratford City Shopping Centre (No.1) Gp Ltd,RENTS PAYABLE,"4,585.00",0,Commercial Supplier
08/07/2019,Dedicated Schools Budget Dedicated Schools Budget,Sugarman Medical Ltd,"PURCHASE - EQUIPMENT, FURNITURE AND MATERIALS","1,236.75",0,Non Commercial Supplier
08/07/2019,Children and Young People Operations & Safeguarding,Redacted - Personal Data,IN HOUSE FOSTER CARE PLACEMENTS - PRIVATE CONTRACTORS PAYMENT,"2,172.86",0,Individuals
08/07/2019,Inclusive Economy & Housing Housing,Thomas Fox,PAYMENT TO OTHER LOCAL AUTHORITIES,700.00,0,Commercial Supplier
08/07/2019,Dedicated Schools Budget Dedicated Schools Budget,Timeplan Education Group Ltd,PRIVATE CONTRACTORS PAYMENT - OTHER,978.52,0,Commercial Supplier
08/07/2019,RMS RMS,Travis Perkins Trading Company Ltd,"PURCHASE - EQUIPMENT, FURNITURE AND MATERIALS","153,648.29",0,Commercial Supplier
08/07/2019,Children and Young People Operations & Safeguarding,Tulipcare,RESIDENTIAL PLACEMENTS - PRIVATE CONTRACTORS PAYMENT,"14,000.00",0,Commercial Supplier
08/07/2019,oneSource oS ICT Services,XMA Ltd,ICT MAINTENANCE AND SUPPORT,"6,820.20",0,Commercial Supplier
08/07/2019,Inclusive Economy & Housing Housing,Zeta Homes,COMPENSATION,"1,160.00",0,Commercial Supplier
08/07/2019,Inclusive Economy & Housing Housing,Zeta Homes,COMPENSATION,960.00,0,Commercial Supplier
09/07/2019,"People, Policy and Performance Communications",Redacted - Personal Data,CONSULTANCY FEES,"2,400.00",0,Supplier
09/07/2019,Dedicated Schools Budget Dedicated Schools Budget,Redacted - Personal Data,INDEPENDENT UNITS WITHIN THE COUNCIL,"37,404.00",0,Supplier
09/07/2019,Dedicated Schools Budget Dedicated Schools Budget,Redacted - Personal Data,INDEPENDENT UNITS WITHIN THE COUNCIL,"37,404.00",0,Supplier
09/07/2019,Dedicated Schools Budget Dedicated Schools Budget,Redacted - Personal Data,STUDENTS OTHER TRANSFER PAYMENTS,"38,574.00",0,Supplier
09/07/2019,Dedicated Schools Budget Dedicated Schools Budget,Redacted - Personal Data,INDEPENDENT UNITS WITHIN THE COUNCIL,"90,000.00",0,Supplier
09/07/2019,Adults & Health Operations,Action First Assessments Ltd,LEGAL FEES,300.00,0,Commercial Supplier
09/07/2019,Adults & Health Operations,Action First Assessments Ltd,PRIVATE CONTRACTORS PAYMENT - OTHER,"3,010.00",0,Commercial Supplier
09/07/2019,"People, Policy and Performance Policy & Performance",Redacted - Personal Data,PROFESSIONAL SERVICES - GENERAL,920.00,0,Employee
09/07/2019,"People, Policy and Performance Policy & Performance",Redacted - Personal Data,"PURCHASE - EQUIPMENT, FURNITURE AND MATERIALS",650.00,0,Employee
09/07/2019,Children and Young People Inclusion & Achievement,Agate Momentum Trust T/A Hallsville Primary School,CATERING SERVICES,"20,755.20",0,Commercial Supplier
09/07/2019,Children and Young People Operations & Safeguarding,Amanda J Oates t/a For Harmony with Horses,CLIENT EXPENSES - THIRD PARTY,300.00,0,Individuals
09/07/2019,Children and Young People Operations & Safeguarding,Amanda J Oates t/a For Harmony with Horses,CLIENT EXPENSES - THIRD PARTY,300.00,0,Individuals
09/07/2019,Dedicated Schools Budget Dedicated Schools Budget,Redacted - Personal Data,POSTAGE AND COURIER SERVICES,643.50,0,Employee
09/07/2019,Dedicated Schools Budget Dedicated Schools Budget,Redacted - Personal Data,DIRECT TRANSPORT,280.00,0,Employee
09/07/2019,Inclusive Economy & Housing Community Wealth Building,Redacted - Personal Data,PROFESSIONAL SERVICES - GENERAL,878.13,0,Employee
09/07/2019,Children and Young People Inclusion & Achievement,Bettertogether Limited,ADDITIONAL PLACEMENTS - THIRD PARTY,960.00,0,Non Commercial Supplier
09/07/2019,"Adults & Health Commissioning, Health & Social Care",Bettertogether Limited,ADULT PLACEMENT SCHEME - PRIVATE CONTRACTORS PAYMENT,"2,256.00",0,Non Commercial Supplier
09/07/2019,"Adults & Health Commissioning, Health & Social Care",Bettertogether Limited,ADULT PLACEMENT SCHEME - PRIVATE CONTRACTORS PAYMENT,"1,832.00",0,Non Commercial Supplier
09/07/2019,"Adults & Health Commissioning, Health & Social Care",Bettertogether Limited,ADULT PLACEMENT SCHEME - PRIVATE CONTRACTORS PAYMENT,"1,832.00",0,Non Commercial Supplier
09/07/2019,"Adults & Health Commissioning, Health & Social Care",Bettertogether Limited,ADULT PLACEMENT SCHEME - PRIVATE CONTRACTORS PAYMENT,"1,832.00",0,Non Commercial Supplier
09/07/2019,"Adults & Health Commissioning, Health & Social Care",Bio Luminuex Health Care Ltd,RESPITE CARE - PRIVATE CONTRACTORS PAYMENT,"2,539.20",0,Supplier
09/07/2019,"Adults & Health Commissioning, Health & Social Care",Bio Luminuex Health Care Ltd,PRIVATE CONTRACTORS PAYMENT - OTHER,"7,345.05",0,Supplier
09/07/2019,"Adults & Health Commissioning, Health & Social Care",Bio Luminuex Health Care Ltd,DAYCARE - PRIVATE CONTRACTORS PAYMENT,"12,723.60",0,Supplier
09/07/2019,"Adults & Health Commissioning, Health & Social Care",Bio Luminuex Health Care Ltd,HOME CARE - PRIVATE CONTRACTORS PAYMENT,"98,328.45",0,Supplier
09/07/2019,oneSource oS ICT Services,CCS Media Limited.,ICT HARDWARE,"11,599.00",0,Commercial Supplier
09/07/2019,oneSource oS ICT Services,CCS Media Limited.,ICT HARDWARE,"2,552.00",0,Commercial Supplier
09/07/2019,Inclusive Economy & Housing Chief Planning Officer,Cambridge Environmental Research Consultants Ltd,CONSULTANCY FEES,"1,000.00",0,Commercial Supplier
09/07/2019,CYP Commissioner ? Brighter Futures Early Help and Childrens Health,Redacted - Personal Data,"PURCHASE - EQUIPMENT, FURNITURE AND MATERIALS",677.29,0,Employee
09/07/2019,RMS RMS,Carpet Matters,PRIVATE CONTRACTORS PAYMENT - OTHER,447.49,0,Commercial Supplier
09/07/2019,Children and Young People Operations & Safeguarding,Carter Brown The Expert Service Ltd,LEGAL FEES,"2,000.00",0,Commercial Supplier
09/07/2019,"People, Policy and Performance Communications",Chris Russell,EVENTS,"2,940.00",0,Commercial Supplier
09/07/2019,Adults & Health Operations,Redacted - Personal Data,DIRECT TRANSPORT,720.00,0,Employee
09/07/2019,"Adults & Health Commissioning, Health & Social Care",Contour886 Limited,SPECIALIST EQUIPMENT FOR SERVICE PROVISION,"3,971.43",0,Commercial Supplier
09/07/2019,Inclusive Economy & Housing Chief Planning Officer,Crown Records Management Ltd,STORAGE AND ARCHIVING,"1,082.25",0,Supplier
09/07/2019,Inclusive Economy & Housing Chief Planning Officer,Crown Records Management Ltd,STORAGE AND ARCHIVING,"1,118.34",0,Supplier
09/07/2019,Inclusive Economy & Housing Community Wealth Building,David Richards (Printers & Distributors) Ltd,PRINTING,"26,445.00",0,Supplier
09/07/2019,oneSource oS ICT Services,David Richards (Printers & Distributors) Ltd,PRINTING,273.00,0,Supplier
09/07/2019,Environment and Sustainable Transport Licensing & Regulation,Redacted - Personal Data,PRINTING,578.93,0,Employee
09/07/2019,"Environment and Sustainable Transport Recycling, Refuse and Street Cleansing",E H Roberts-Penet Group Ltd,DIRECT TRANSPORT,396.00,0,Supplier
09/07/2019,"Environment and Sustainable Transport Recycling, Refuse and Street Cleansing",E H Roberts-Penet Group Ltd,DIRECT TRANSPORT,308.00,0,Supplier
09/07/2019,"Environment and Sustainable Transport Recycling, Refuse and Street Cleansing",E H Roberts-Penet Group Ltd,DIRECT TRANSPORT,308.00,0,Supplier
09/07/2019,"Environment and Sustainable Transport Recycling, Refuse and Street Cleansing",E H Roberts-Penet Group Ltd,DIRECT TRANSPORT,282.00,0,Supplier
09/07/2019,"Environment and Sustainable Transport Recycling, Refuse and Street Cleansing",E H Roberts-Penet Group Ltd,DIRECT TRANSPORT,322.00,0,Supplier
09/07/2019,"Environment and Sustainable Transport Recycling, Refuse and Street Cleansing",E H Roberts-Penet Group Ltd,DIRECT TRANSPORT,322.00,0,Supplier
09/07/2019,"Environment and Sustainable Transport Recycling, Refuse and Street Cleansing",E H Roberts-Penet Group Ltd,DIRECT TRANSPORT,374.00,0,Supplier
09/07/2019,"Environment and Sustainable Transport Recycling, Refuse and Street Cleansing",E H Roberts-Penet Group Ltd,DIRECT TRANSPORT,414.00,0,Supplier
09/07/2019,"Environment and Sustainable Transport Recycling, Refuse and Street Cleansing",E H Roberts-Penet Group Ltd,DIRECT TRANSPORT,391.00,0,Supplier
09/07/2019,"Environment and Sustainable Transport Recycling, Refuse and Street Cleansing",E H Roberts-Penet Group Ltd,DIRECT TRANSPORT,414.00,0,Supplier
09/07/2019,"Environment and Sustainable Transport Recycling, Refuse and Street Cleansing",E H Roberts-Penet Group Ltd,DIRECT TRANSPORT,460.00,0,Supplier
09/07/2019,"Environment and Sustainable Transport Recycling, Refuse and Street Cleansing",E H Roberts-Penet Group Ltd,DIRECT TRANSPORT,391.00,0,Supplier
09/07/2019,"Environment and Sustainable Transport Recycling, Refuse and Street Cleansing",E H Roberts-Penet Group Ltd,DIRECT TRANSPORT,391.00,0,Supplier
09/07/2019,"Environment and Sustainable Transport Recycling, Refuse and Street Cleansing",E H Roberts-Penet Group Ltd,DIRECT TRANSPORT,440.00,0,Supplier
09/07/2019,"Environment and Sustainable Transport Recycling, Refuse and Street Cleansing",E H Roberts-Penet Group Ltd,DIRECT TRANSPORT,396.00,0,Supplier
09/07/2019,"Environment and Sustainable Transport Recycling, Refuse and Street Cleansing",E H Roberts-Penet Group Ltd,DIRECT TRANSPORT,374.00,0,Supplier
09/07/2019,"Environment and Sustainable Transport Recycling, Refuse and Street Cleansing",E H Roberts-Penet Group Ltd,DIRECT TRANSPORT,374.00,0,Supplier
09/07/2019,"Environment and Sustainable Transport Recycling, Refuse and Street Cleansing",E H Roberts-Penet Group Ltd,DIRECT TRANSPORT,282.00,0,Supplier
09/07/2019,"Adults & Health Commissioning, Health & Social Care",East London Nhs Foundation Tst,PAYMENT TO HEALTH AUTHORITIES,"6,974.36",0,Supplier
09/07/2019,"Adults & Health Commissioning, Health & Social Care",Four Seasons Healthcare Ltd,RESIDENTIAL PLACEMENTS - PRIVATE CONTRACTORS PAYMENT,568.60,0,Commercial Supplier
09/07/2019,"Adults & Health Commissioning, Health & Social Care",Four Seasons Healthcare Ltd,RESIDENTIAL PLACEMENTS - PRIVATE CONTRACTORS PAYMENT,568.60,0,Commercial Supplier
09/07/2019,"Adults & Health Commissioning, Health & Social Care",Four Seasons Healthcare Ltd,RESIDENTIAL PLACEMENTS - PRIVATE CONTRACTORS PAYMENT,568.60,0,Commercial Supplier
09/07/2019,"Adults & Health Commissioning, Health & Social Care",Four Seasons Healthcare Ltd,RESIDENTIAL PLACEMENTS - PRIVATE CONTRACTORS PAYMENT,568.60,0,Commercial Supplier
09/07/2019,oneSource - Non Shared Asset Management,Gallico Systems Ltd,"MAINTENANCE - EQUIPMENT, FURNITURE AND MATERIALS","11,380.44",0,Commercial Supplier
09/07/2019,"Adults & Health Commissioning, Health & Social Care",Gordon Care Services Limited,HOME CARE - PRIVATE CONTRACTORS PAYMENT,560.00,0,Commercial Supplier
09/07/2019,"Adults & Health Commissioning, Health & Social Care",Gordon Care Services Limited,HOME CARE - PRIVATE CONTRACTORS PAYMENT,640.00,0,Commercial Supplier
09/07/2019,Children and Young People Inclusion & Achievement,Grange Primary School,CATERING SERVICES,"8,873.60",0,Non Commercial Supplier
09/07/2019,Environment and Sustainable Transport Parks and Open Spaces,H G Gladwell & Sons Ltd,PRIVATE CONTRACTORS PAYMENT - OTHER,854.77,0,Commercial Supplier
09/07/2019,Children and Young People Inclusion & Achievement,Hartley Primary School t/a Learning in Harmony,CATERING SERVICES,"51,737.60",0,Commercial Supplier
09/07/2019,"Environment and Sustainable Transport Recycling, Refuse and Street Cleansing",Harvest Energy Ltd,TRANSPORT FUEL,"36,742.86",0,Commercial Supplier
09/07/2019,oneSource - Non Shared Asset Management,I.O.D. Skip Hire Limited,WASTE DISPOSAL COSTS,400.00,0,Supplier
09/07/2019,Housing Revenue Account HRA,Igm Associates,THIRD PARTY PAYMENTS - RECHARGE,840.00,0,Supplier
09/07/2019,Housing Revenue Account HRA,Igm Associates,THIRD PARTY PAYMENTS - RECHARGE,840.00,0,Supplier
09/07/2019,Children and Young People Operations & Safeguarding,Inclusive Care Support Ltd,CLIENT SUPPORT - THIRD PARTY,"5,800.00",0,Commercial Supplier
09/07/2019,Housing Revenue Account HRA,Redacted - Personal Data,"PURCHASE - EQUIPMENT, FURNITURE AND MATERIALS",438.00,0,Employee
09/07/2019,Children and Young People Inclusion & Achievement,John F Kennedy School,CATERING SERVICES,"1,654.40",0,Non Commercial Supplier
09/07/2019,Inclusive Economy & Housing Housing,Johns & Co Real Estate (Services) Ltd,LICENCE AND PERMIT INCOME,400.00,0,Non Commercial Supplier
09/07/2019,oneSource oS ICT Services,Redacted - Personal Data,"PURCHASE - EQUIPMENT, FURNITURE AND MATERIALS",941.50,0,Employee
09/07/2019,oneSource oS ICT Services,Redacted - Personal Data,PROFESSIONAL SERVICES - GENERAL,473.11,0,Employee
09/07/2019,Children and Young People Operations & Safeguarding,Redacted - Personal Data,ICT MAINTENANCE AND SUPPORT,581.14,0,Employee
09/07/2019,oneSource oS ICT Services,Redacted - Personal Data,STATIONERY,975.00,0,Employee
09/07/2019,oneSource oS ICT Services,Redacted - Personal Data,ICT SOFTWARE,745.05,0,Employee
09/07/2019,oneSource oS ICT Services,Redacted - Personal Data,CONSULTANCY FEES,913.32,0,Employee
09/07/2019,"People, Policy and Performance Change & PMO",Redacted - Personal Data,ICT SOFTWARE,"7,455.33",0,Employee
09/07/2019,oneSource - Non Shared Asset Management,Juniper Ventures Ltd,CLEANING SERVICES,"11,245.32",0,Commercial Supplier
09/07/2019,Inclusive Economy & Housing Community Wealth Building,Juniper Ventures Ltd,CLEANING SERVICES,"4,406.78",0,Commercial Supplier
09/07/2019,Inclusive Economy & Housing Community Wealth Building,Juniper Ventures Ltd,CLEANING SERVICES,"2,403.70",0,Commercial Supplier
09/07/2019,Inclusive Economy & Housing Community Wealth Building,Juniper Ventures Ltd,CLEANING SERVICES,"1,602.00",0,Commercial Supplier
09/07/2019,Inclusive Economy & Housing Housing,Juniper Ventures Ltd,CLEANING SERVICES,"5,556.98",0,Commercial Supplier
09/07/2019,"People, Policy and Performance Resident Engagement & Participation",Juniper Ventures Ltd,CLEANING SERVICES,403.89,0,Commercial Supplier
09/07/2019,"People, Policy and Performance Resident Engagement & Participation",Juniper Ventures Ltd,CLEANING SERVICES,480.74,0,Commercial Supplier
09/07/2019,Housing Revenue Account HRA,Juniper Ventures Ltd,CLEANING SERVICES,"11,057.02",0,Commercial Supplier
09/07/2019,oneSource - Non Shared Asset Management,Juniper Ventures Ltd,CLEANING SERVICES,801.23,0,Commercial Supplier
09/07/2019,oneSource - Non Shared Asset Management,Juniper Ventures Ltd,CLEANING SERVICES,"82,010.94",0,Commercial Supplier
09/07/2019,"People, Policy and Performance Resident Engagement & Participation",Juniper Ventures Ltd,EVENTS,904.25,0,Commercial Supplier
09/07/2019,CYP Commissioner ? Brighter Futures Early Help and Childrens Health,Juniper Ventures Ltd,CATERING SERVICES,284.50,0,Commercial Supplier
09/07/2019,CYP Commissioner ? Brighter Futures Youth Empowerment,Juniper Ventures Ltd,CLEANING SERVICES,"1,101.70",0,Commercial Supplier
09/07/2019,Environment and Sustainable Transport Community Safety,Juniper Ventures Ltd,CLEANING SERVICES,480.74,0,Commercial Supplier
09/07/2019,Environment and Sustainable Transport Licensing & Regulation,Juniper Ventures Ltd,CLEANING SERVICES,400.62,0,Commercial Supplier
09/07/2019,Environment and Sustainable Transport Parks and Open Spaces,Juniper Ventures Ltd,CLEANING SERVICES,529.08,0,Commercial Supplier
09/07/2019,Children and Young People Operations & Safeguarding,Juniper Ventures Ltd,CLEANING SERVICES,836.99,0,Commercial Supplier
09/07/2019,Children and Young People Inclusion & Achievement,Kaizen Primary School t/a EKO Trust,CATERING SERVICES,"15,340.80",0,Commercial Supplier
09/07/2019,Children and Young People Operations & Safeguarding,Redacted - Personal Data,SUBSISTENCE,"1,038.90",0,Employee
09/07/2019,"Environment and Sustainable Transport Recycling, Refuse and Street Cleansing",Keep Britain Tidy,PROFESSIONAL SERVICES - GENERAL,"4,049.00",0,Commercial Supplier
09/07/2019,Children and Young People Inclusion & Achievement,Keir Hardie Primary School,CATERING SERVICES,"24,515.20",0,Supplier
09/07/2019,Children and Young People Inclusion & Achievement,Kensington Primary School t/a Tapscott Learning Trust,CATERING SERVICES,"32,636.80",0,Commercial Supplier
09/07/2019,oneSource - Non Shared Asset Management,Kent County Council (Kcs),ELECTRICITY,847.37,0,Local Authority Services
09/07/2019,oneSource - Non Shared Asset Management,Kent County Council (Kcs),ELECTRICITY,"13,659.35",0,Local Authority Services
09/07/2019,oneSource - Non Shared Asset Management,Kent County Council (Kcs),ELECTRICITY,"1,088.23",0,Local Authority Services
09/07/2019,oneSource - Non Shared Asset Management,Kent County Council (Kcs),ELECTRICITY,816.31,0,Local Authority Services
09/07/2019,oneSource - Non Shared Asset Management,Kent County Council (Kcs),ELECTRICITY,"3,719.84",0,Local Authority Services
09/07/2019,oneSource - Non Shared Asset Management,Kent County Council (Kcs),ELECTRICITY,"10,293.98",0,Local Authority Services
09/07/2019,oneSource - Non Shared Asset Management,Kent County Council (Kcs),ELECTRICITY,"9,378.96",0,Local Authority Services
09/07/2019,oneSource - Non Shared Asset Management,Kent County Council (Kcs),ELECTRICITY,"18,372.66",0,Local Authority Services
09/07/2019,Housing Revenue Account HRA,L M Installations Ltd,RESPONSIVE REPAIRS - MECHANICAL AND ELECTRICAL,428.28,0,CIS
09/07/2019,Children and Young People Inclusion & Achievement,Langdon Academy,CATERING SERVICES,"27,523.20",0,Non Commercial Supplier
09/07/2019,Children and Young People Inclusion & Achievement,Lathom Primary,CATERING SERVICES,"56,400.00",0,Supplier
09/07/2019,Children and Young People Operations & Safeguarding,Redacted - Personal Data,ARTS AND LEISURE COSTS,400.00,0,Employee
09/07/2019,Children and Young People Operations & Safeguarding,Redacted - Personal Data,SUBSISTENCE,"5,526.34",0,Employee
09/07/2019,"Adults & Health Commissioning, Health & Social Care",Redacted - Personal Data,PHOTOCOPYING,548.48,0,Employee
09/07/2019,"Adults & Health Commissioning, Health & Social Care",Redacted - Personal Data,HOTEL AND OTHER ACCOMMODATION COSTS,499.00,0,Employee
09/07/2019,Children and Young People Inclusion & Achievement,Manor Primary School,CATERING SERVICES,"13,836.80",0,Supplier
09/07/2019,"People, Policy and Performance Resident Engagement & Participation",Redacted - Personal Data,"PURCHASE - EQUIPMENT, FURNITURE AND MATERIALS",309.39,0,Employee
09/07/2019,"People, Policy and Performance Resident Engagement & Participation",Redacted - Personal Data,PROFESSIONAL SERVICES - GENERAL,269.20,0,Employee
09/07/2019,Children and Young People Inclusion & Achievement,Maryland Primary School,CATERING SERVICES,"25,417.60",0,Supplier
09/07/2019,Children and Young People Inclusion & Achievement,Monega Primary School t/a Boleyn Academy Trust,CATERING SERVICES,"37,449.60",0,Non Commercial Supplier
09/07/2019,RMS RMS,Muckaway Company Grab Hire Ltd,"PURCHASE - EQUIPMENT, FURNITURE AND MATERIALS",870.00,0,Commercial Supplier
09/07/2019,RMS RMS,Muckaway Company Grab Hire Ltd,"PURCHASE - EQUIPMENT, FURNITURE AND MATERIALS",580.00,0,Commercial Supplier
09/07/2019,Children and Young People Operations & Safeguarding,National Fostering Agency,RESIDENTIAL PLACEMENTS - PRIVATE CONTRACTORS PAYMENT,"3,179.96",0,Commercial Supplier
09/07/2019,Children and Young People Operations & Safeguarding,National Fostering Agency,RESIDENTIAL PLACEMENTS - PRIVATE CONTRACTORS PAYMENT,"3,179.96",0,Commercial Supplier
09/07/2019,Children and Young People Operations & Safeguarding,National Fostering Agency,RESIDENTIAL PLACEMENTS - PRIVATE CONTRACTORS PAYMENT,"3,179.96",0,Commercial Supplier
09/07/2019,Children and Young People Operations & Safeguarding,National Fostering Agency,RESIDENTIAL PLACEMENTS - PRIVATE CONTRACTORS PAYMENT,"3,179.96",0,Commercial Supplier
09/07/2019,Children and Young People Operations & Safeguarding,National Fostering Agency,RESIDENTIAL PLACEMENTS - PRIVATE CONTRACTORS PAYMENT,"4,033.68",0,Commercial Supplier
09/07/2019,Children and Young People Operations & Safeguarding,National Fostering Agency,RESIDENTIAL PLACEMENTS - PRIVATE CONTRACTORS PAYMENT,"4,033.68",0,Commercial Supplier
09/07/2019,Children and Young People Operations & Safeguarding,National Fostering Agency,RESIDENTIAL PLACEMENTS - PRIVATE CONTRACTORS PAYMENT,"3,120.04",0,Commercial Supplier
09/07/2019,Children and Young People Operations & Safeguarding,National Fostering Agency,RESIDENTIAL PLACEMENTS - PRIVATE CONTRACTORS PAYMENT,"2,996.00",0,Commercial Supplier
09/07/2019,Children and Young People Operations & Safeguarding,National Fostering Agency,RESIDENTIAL PLACEMENTS - PRIVATE CONTRACTORS PAYMENT,"2,271.40",0,Commercial Supplier
09/07/2019,Children and Young People Operations & Safeguarding,National Fostering Agency,RESIDENTIAL PLACEMENTS - PRIVATE CONTRACTORS PAYMENT,"2,384.97",0,Commercial Supplier
09/07/2019,Children and Young People Operations & Safeguarding,National Fostering Agency,RESIDENTIAL PLACEMENTS - PRIVATE CONTRACTORS PAYMENT,"3,179.96",0,Commercial Supplier
09/07/2019,Children and Young People Operations & Safeguarding,National Fostering Agency,RESIDENTIAL PLACEMENTS - PRIVATE CONTRACTORS PAYMENT,"3,120.04",0,Commercial Supplier
09/07/2019,Children and Young People Inclusion & Achievement,Nelson Primary School t/a New Vision Trust,CATERING SERVICES,"50,534.40",0,Non Commercial Supplier
09/07/2019,Children and Young People Inclusion & Achievement,North Beckton Primary School T/A The Tapscott Learning Trust,CATERING SERVICES,"34,441.60",0,Commercial Supplier
09/07/2019,CYP Commissioner ? Brighter Futures Youth Empowerment,Rosetta Art Centre,ARTS AND LEISURE COSTS,"24,000.00",0,Supplier
09/07/2019,"People, Policy and Performance Resident Engagement & Participation",Rosetta Art Centre,ARTS AND LEISURE COSTS,"1,625.00",0,Supplier
09/07/2019,Children and Young People Inclusion & Achievement,Roxy Embroidery Limited,"CLOTHES, UNIFORM AND LAUNDRY",781.70,0,Commercial Supplier
09/07/2019,Children and Young People Operations & Safeguarding,Sayers (Car Hire),NO RECOURSE TO PUBLIC FUNDS - PRIVATE CONTRACTORS PAYMENT,"1,129.00",0,Supplier
09/07/2019,Children and Young People Operations & Safeguarding,Sayers (Car Hire),NO RECOURSE TO PUBLIC FUNDS - PRIVATE CONTRACTORS PAYMENT,897.00,0,Supplier
09/07/2019,oneSource oS ICT Services,Socitm Ltd,ICT MAINTENANCE AND SUPPORT,"20,500.00",0,Commercial Supplier
09/07/2019,oneSource oS ICT Services,Socitm Ltd,ICT MAINTENANCE AND SUPPORT,"10,000.00",0,Commercial Supplier
09/07/2019,Children and Young People Inclusion & Achievement,St Francis RC Primary School,CATERING SERVICES,"21,600.00",0,Supplier
09/07/2019,Children and Young People Inclusion & Achievement,St Helens t/a Our Lady of Grace Academy,CATERING SERVICES,"19,872.00",0,Individuals
09/07/2019,Children and Young People Inclusion & Achievement,St Joachims t/a Our Lady of Grace Academy,CATERING SERVICES,"12,512.00",0,Non Commercial Supplier
09/07/2019,Children and Young People Inclusion & Achievement,St Lukes C Of E Primary School,CATERING SERVICES,"12,332.80",0,Supplier
09/07/2019,Children and Young People Inclusion & Achievement,St Michael's Rc Primary School,CATERING SERVICES,"12,806.40",0,Supplier
09/07/2019,Children and Young People Inclusion & Achievement,St Stephens Primary School,CATERING SERVICES,"33,840.00",0,Supplier
09/07/2019,Children and Young People Inclusion & Achievement,St Winefride's Rc Primary Sch,CATERING SERVICES,"17,424.00",0,Supplier
09/07/2019,Housing Revenue Account HRA,Stanley Security Solutions,CYCLICAL/PLANNED MAINTENANCE - MECHANICAL AND ELECTRICAL,"5,235.69",0,Non Commercial Supplier
09/07/2019,Children and Young People Inclusion & Achievement,Star Primary School,CATERING SERVICES,"32,678.40",0,Supplier
09/07/2019,"People, Policy and Performance Communications",Stunning Tents Company,EVENTS,"2,510.00",0,Commercial Supplier
09/07/2019,CYP Commissioner ? Brighter Futures Early Help and Childrens Health,Supply Chain Coordination Ltd (SCCL),SPECIALIST EQUIPMENT FOR SERVICE PROVISION,401.44,0,NHS Bodies
09/07/2019,oneSource oS Asset Management Services,The Lock Father,SECURITY SERVICES (EXCLUDING PREMISES),897.50,0,Commercial Supplier
09/07/2019,Children and Young People Inclusion & Achievement,Tollgate Primary School t/a Boleyn Trust,CATERING SERVICES,"21,657.60",0,Commercial Supplier
09/07/2019,RMS RMS,Totalmobile Ltd,ICT HARDWARE,950.00,0,Supplier
09/07/2019,"Environment and Sustainable Transport Recycling, Refuse and Street Cleansing",Redacted - Personal Data,DIRECT TRANSPORT,315.00,0,Commercial Supplier
09/07/2019,"Environment and Sustainable Transport Recycling, Refuse and Street Cleansing",Redacted - Personal Data,DIRECT TRANSPORT,315.00,0,Commercial Supplier
09/07/2019,"Environment and Sustainable Transport Recycling, Refuse and Street Cleansing",Redacted - Personal Data,DIRECT TRANSPORT,315.00,0,Commercial Supplier
09/07/2019,"Environment and Sustainable Transport Recycling, Refuse and Street Cleansing",Redacted - Personal Data,DIRECT TRANSPORT,315.00,0,Commercial Supplier
09/07/2019,"Environment and Sustainable Transport Recycling, Refuse and Street Cleansing",Redacted - Personal Data,DIRECT TRANSPORT,315.00,0,Commercial Supplier
09/07/2019,"Environment and Sustainable Transport Recycling, Refuse and Street Cleansing",Redacted - Personal Data,DIRECT TRANSPORT,315.00,0,Commercial Supplier
09/07/2019,"Environment and Sustainable Transport Recycling, Refuse and Street Cleansing",Redacted - Personal Data,DIRECT TRANSPORT,315.00,0,Commercial Supplier
09/07/2019,"Environment and Sustainable Transport Recycling, Refuse and Street Cleansing",Redacted - Personal Data,DIRECT TRANSPORT,315.00,0,Commercial Supplier
09/07/2019,"Environment and Sustainable Transport Recycling, Refuse and Street Cleansing",Redacted - Personal Data,DIRECT TRANSPORT,315.00,0,Commercial Supplier
09/07/2019,"Environment and Sustainable Transport Recycling, Refuse and Street Cleansing",Redacted - Personal Data,DIRECT TRANSPORT,315.00,0,Commercial Supplier
09/07/2019,"Environment and Sustainable Transport Recycling, Refuse and Street Cleansing",Redacted - Personal Data,DIRECT TRANSPORT,315.00,0,Commercial Supplier
09/07/2019,"Environment and Sustainable Transport Recycling, Refuse and Street Cleansing",Redacted - Personal Data,DIRECT TRANSPORT,315.00,0,Commercial Supplier
09/07/2019,"Environment and Sustainable Transport Recycling, Refuse and Street Cleansing",Redacted - Personal Data,DIRECT TRANSPORT,315.00,0,Commercial Supplier
09/07/2019,"Environment and Sustainable Transport Recycling, Refuse and Street Cleansing",Redacted - Personal Data,DIRECT TRANSPORT,315.00,0,Commercial Supplier
09/07/2019,"Environment and Sustainable Transport Recycling, Refuse and Street Cleansing",Redacted - Personal Data,DIRECT TRANSPORT,315.00,0,Commercial Supplier
09/07/2019,"Environment and Sustainable Transport Recycling, Refuse and Street Cleansing",Redacted - Personal Data,DIRECT TRANSPORT,315.00,0,Commercial Supplier
09/07/2019,"Environment and Sustainable Transport Recycling, Refuse and Street Cleansing",Redacted - Personal Data,DIRECT TRANSPORT,315.00,0,Commercial Supplier
09/07/2019,"Environment and Sustainable Transport Recycling, Refuse and Street Cleansing",Redacted - Personal Data,DIRECT TRANSPORT,315.00,0,Commercial Supplier
09/07/2019,"Environment and Sustainable Transport Recycling, Refuse and Street Cleansing",Redacted - Personal Data,DIRECT TRANSPORT,315.00,0,Commercial Supplier
09/07/2019,"Environment and Sustainable Transport Recycling, Refuse and Street Cleansing",Redacted - Personal Data,DIRECT TRANSPORT,315.00,0,Commercial Supplier
09/07/2019,"Environment and Sustainable Transport Recycling, Refuse and Street Cleansing",Redacted - Personal Data,DIRECT TRANSPORT,315.00,0,Commercial Supplier
09/07/2019,"Environment and Sustainable Transport Recycling, Refuse and Street Cleansing",Redacted - Personal Data,DIRECT TRANSPORT,315.00,0,Commercial Supplier
09/07/2019,"Environment and Sustainable Transport Recycling, Refuse and Street Cleansing",Redacted - Personal Data,DIRECT TRANSPORT,315.00,0,Commercial Supplier
09/07/2019,Children and Young People Inclusion & Achievement,Upton Cross Primary School t/a Learning in Harmony,CATERING SERVICES,"54,444.80",0,Supplier
09/07/2019,"People, Policy and Performance Resident Engagement & Participation",Vaseem Khan Ltd,EVENTS,720.00,0,Non Commercial Supplier
09/07/2019,Children and Young People Inclusion & Achievement,Vicarage Primary School t/a New Vision Trust,CATERING SERVICES,"37,449.60",0,Non Commercial Supplier
09/07/2019,Children and Young People Inclusion & Achievement,West Ham C Of E Primary School,CATERING SERVICES,"15,942.40",0,Supplier
09/07/2019,Children and Young People Inclusion & Achievement,William Davies Primary School,CATERING SERVICES,"12,483.20",0,Supplier
09/07/2019,Children and Young People Inclusion & Achievement,Winsor Primary School,CATERING SERVICES,"33,088.00",0,Local Authority Services
09/07/2019,Dedicated Schools Budget Dedicated Schools Budget,Woodcroft School,PROFESSIONAL SERVICES - GENERAL,"18,150.80",0,Supplier
09/07/2019,oneSource - Non Shared Legal & Democratic,Redacted - Personal Data,HOTEL AND OTHER ACCOMMODATION COSTS,414.16,0,Employee
09/07/2019,oneSource - Non Shared Legal & Democratic,Redacted - Personal Data,HOTEL AND OTHER ACCOMMODATION COSTS,414.16,0,Individuals
10/07/2019,RMS RMS,Redacted - Personal Data,COMPENSATION - OMBUDSMAN,500.00,0,Individuals
10/07/2019,Adults & Health Operations,Redacted - Personal Data,PRIVATE CONTRACTORS PAYMENT - OTHER,400.00,0,Individuals
10/07/2019,"Adults & Health Commissioning, Health & Social Care",Redacted - Personal Data,DIRECT PAYMENTS,516.10,0,Foster Carers
10/07/2019,"Adults & Health Commissioning, Health & Social Care",Redacted - Personal Data,DIRECT PAYMENTS,516.10,0,Foster Carers
10/07/2019,"Adults & Health Commissioning, Health & Social Care",Redacted - Personal Data,DIRECT PAYMENTS,516.10,0,Foster Carers
10/07/2019,"Adults & Health Commissioning, Health & Social Care",Redacted - Personal Data,DIRECT PAYMENTS,516.10,0,Foster Carers
10/07/2019,"Adults & Health Commissioning, Health & Social Care",Redacted - Personal Data,DIRECT PAYMENTS,974.79,0,Foster Carers
10/07/2019,"Adults & Health Commissioning, Health & Social Care",Redacted - Personal Data,DIRECT PAYMENTS,974.79,0,Foster Carers
10/07/2019,"Adults & Health Commissioning, Health & Social Care",Redacted - Personal Data,DIRECT PAYMENTS,974.79,0,Foster Carers
10/07/2019,"Adults & Health Commissioning, Health & Social Care",Redacted - Personal Data,DIRECT PAYMENTS,974.79,0,Foster Carers
10/07/2019,"Adults & Health Commissioning, Health & Social Care",Redacted - Personal Data,DIRECT PAYMENTS,360.77,0,Foster Carers
10/07/2019,"Adults & Health Commissioning, Health & Social Care",Redacted - Personal Data,DIRECT PAYMENTS,360.77,0,Foster Carers
10/07/2019,"Adults & Health Commissioning, Health & Social Care",Redacted - Personal Data,DIRECT PAYMENTS,360.77,0,Foster Carers
10/07/2019,"Adults & Health Commissioning, Health & Social Care",Redacted - Personal Data,DIRECT PAYMENTS,360.77,0,Foster Carers
10/07/2019,"Adults & Health Commissioning, Health & Social Care",Redacted - Personal Data,DIRECT PAYMENTS,345.57,0,Foster Carers
10/07/2019,"Adults & Health Commissioning, Health & Social Care",Redacted - Personal Data,DIRECT PAYMENTS,345.57,0,Foster Carers
10/07/2019,"Adults & Health Commissioning, Health & Social Care",Redacted - Personal Data,DIRECT PAYMENTS,345.57,0,Foster Carers
10/07/2019,"Adults & Health Commissioning, Health & Social Care",Redacted - Personal Data,DIRECT PAYMENTS,345.57,0,Foster Carers
10/07/2019,"Adults & Health Commissioning, Health & Social Care",Redacted - Personal Data,DIRECT PAYMENTS,345.57,0,Foster Carers
10/07/2019,"Adults & Health Commissioning, Health & Social Care",Redacted - Personal Data,DIRECT PAYMENTS,345.57,0,Foster Carers
10/07/2019,"Adults & Health Commissioning, Health & Social Care",Redacted - Personal Data,DIRECT PAYMENTS,345.57,0,Foster Carers
10/07/2019,"Adults & Health Commissioning, Health & Social Care",Redacted - Personal Data,DIRECT PAYMENTS,345.57,0,Foster Carers
10/07/2019,Children and Young People Operations & Safeguarding,AGR Law,LEGAL FEES,"1,216.18",0,Commercial Supplier
10/07/2019,"Adults & Health Commissioning, Health & Social Care",Redacted - Personal Data,DIRECT PAYMENTS,262.11,0,Foster Carers
10/07/2019,"Adults & Health Commissioning, Health & Social Care",Redacted - Personal Data,DIRECT PAYMENTS,262.11,0,Foster Carers
10/07/2019,"Adults & Health Commissioning, Health & Social Care",Redacted - Personal Data,DIRECT PAYMENTS,262.11,0,Foster Carers
10/07/2019,"Adults & Health Commissioning, Health & Social Care",Redacted - Personal Data,DIRECT PAYMENTS,262.11,0,Foster Carers
10/07/2019,"Adults & Health Commissioning, Health & Social Care",Redacted - Personal Data,DIRECT PAYMENTS,"1,200.00",0,Foster Carers
10/07/2019,"Adults & Health Commissioning, Health & Social Care",Redacted - Personal Data,DIRECT PAYMENTS,"1,200.00",0,Foster Carers
10/07/2019,"Adults & Health Commissioning, Health & Social Care",Redacted - Personal Data,DIRECT PAYMENTS,"1,200.00",0,Foster Carers
10/07/2019,"Adults & Health Commissioning, Health & Social Care",Redacted - Personal Data,DIRECT PAYMENTS,"1,200.00",0,Foster Carers
10/07/2019,Children and Young People Operations & Safeguarding,Adam Campbell,LEGAL FEES,653.30,0,Supplier
10/07/2019,"Adults & Health Commissioning, Health & Social Care",Redacted - Personal Data,DIRECT PAYMENTS,"1,097.56",0,Foster Carers
10/07/2019,"Adults & Health Commissioning, Health & Social Care",Redacted - Personal Data,DIRECT PAYMENTS,"1,097.56",0,Foster Carers
10/07/2019,"Adults & Health Commissioning, Health & Social Care",Redacted - Personal Data,DIRECT PAYMENTS,"1,097.56",0,Foster Carers
10/07/2019,"Adults & Health Commissioning, Health & Social Care",Redacted - Personal Data,DIRECT PAYMENTS,"1,097.56",0,Foster Carers
10/07/2019,"Adults & Health Commissioning, Health & Social Care",Advance Housing & Support Ltd,DIRECT PAYMENTS,332.14,0,Supplier
10/07/2019,"Adults & Health Commissioning, Health & Social Care",Advance Housing & Support Ltd,DIRECT PAYMENTS,332.14,0,Supplier
10/07/2019,"Adults & Health Commissioning, Health & Social Care",Advance Housing & Support Ltd,DIRECT PAYMENTS,332.14,0,Supplier
10/07/2019,"Adults & Health Commissioning, Health & Social Care",Advance Housing & Support Ltd,DIRECT PAYMENTS,332.14,0,Supplier
10/07/2019,"Adults & Health Commissioning, Health & Social Care",Redacted - Personal Data,DIRECT PAYMENTS,"1,222.32",0,Direct Payments
10/07/2019,"Adults & Health Commissioning, Health & Social Care",Redacted - Personal Data,DIRECT PAYMENTS,"1,222.32",0,Direct Payments
10/07/2019,"Adults & Health Commissioning, Health & Social Care",Redacted - Personal Data,DIRECT PAYMENTS,"1,222.32",0,Direct Payments
10/07/2019,"Adults & Health Commissioning, Health & Social Care",Redacted - Personal Data,DIRECT PAYMENTS,"1,222.32",0,Direct Payments
10/07/2019,"Adults & Health Commissioning, Health & Social Care",Redacted - Personal Data,DIRECT PAYMENTS,743.59,0,Direct Payments
10/07/2019,"Adults & Health Commissioning, Health & Social Care",Redacted - Personal Data,DIRECT PAYMENTS,743.59,0,Direct Payments
10/07/2019,"Adults & Health Commissioning, Health & Social Care",Redacted - Personal Data,DIRECT PAYMENTS,743.59,0,Direct Payments
10/07/2019,"Adults & Health Commissioning, Health & Social Care",Redacted - Personal Data,DIRECT PAYMENTS,743.59,0,Direct Payments
10/07/2019,"Adults & Health Commissioning, Health & Social Care",Redacted - Personal Data,DIRECT PAYMENTS,779.70,0,Individuals
10/07/2019,"Adults & Health Commissioning, Health & Social Care",Redacted - Personal Data,DIRECT PAYMENTS,779.70,0,Individuals
10/07/2019,"Adults & Health Commissioning, Health & Social Care",Redacted - Personal Data,DIRECT PAYMENTS,779.70,0,Individuals
10/07/2019,"Adults & Health Commissioning, Health & Social Care",Redacted - Personal Data,DIRECT PAYMENTS,779.70,0,Individuals
10/07/2019,"Adults & Health Commissioning, Health & Social Care",Redacted - Personal Data,DIRECT PAYMENTS,423.85,0,Individuals
10/07/2019,"Adults & Health Commissioning, Health & Social Care",Redacted - Personal Data,DIRECT PAYMENTS,423.85,0,Individuals
10/07/2019,"Adults & Health Commissioning, Health & Social Care",Redacted - Personal Data,DIRECT PAYMENTS,423.85,0,Individuals
10/07/2019,"Adults & Health Commissioning, Health & Social Care",Redacted - Personal Data,DIRECT PAYMENTS,423.85,0,Individuals
10/07/2019,RMS RMS,Allmand-Smith Ltd,"PURCHASE - EQUIPMENT, FURNITURE AND MATERIALS",499.20,0,Commercial Supplier
10/07/2019,Children and Young People Operations & Safeguarding,Alphabiolaboratories Legal Ltd,LEGAL FEES,428.33,0,Supplier
10/07/2019,Children and Young People Operations & Safeguarding,Amanda Jepson,LEGAL FEES,975.00,0,Legal Services
10/07/2019,Children and Young People Operations & Safeguarding,Amanda Jepson,LEGAL FEES,600.00,0,Legal Services
10/07/2019,"Adults & Health Commissioning, Health & Social Care",Redacted - Personal Data,DIRECT PAYMENTS,280.00,0,Foster Carers
10/07/2019,"Adults & Health Commissioning, Health & Social Care",Redacted - Personal Data,DIRECT PAYMENTS,280.00,0,Foster Carers
10/07/2019,"Adults & Health Commissioning, Health & Social Care",Redacted - Personal Data,DIRECT PAYMENTS,280.00,0,Foster Carers
10/07/2019,"Adults & Health Commissioning, Health & Social Care",Redacted - Personal Data,DIRECT PAYMENTS,280.00,0,Foster Carers
10/07/2019,"Adults & Health Commissioning, Health & Social Care",Redacted - Personal Data,DIRECT PAYMENTS,683.81,0,Foster Carers
10/07/2019,"Adults & Health Commissioning, Health & Social Care",Redacted - Personal Data,DIRECT PAYMENTS,683.81,0,Foster Carers
10/07/2019,"Adults & Health Commissioning, Health & Social Care",Redacted - Personal Data,DIRECT PAYMENTS,683.81,0,Foster Carers
10/07/2019,"Adults & Health Commissioning, Health & Social Care",Redacted - Personal Data,DIRECT PAYMENTS,683.81,0,Foster Carers
10/07/2019,"Adults & Health Commissioning, Health & Social Care",Redacted - Personal Data,DIRECT PAYMENTS,"1,004.80",0,Direct Payments
10/07/2019,"Adults & Health Commissioning, Health & Social Care",Redacted - Personal Data,DIRECT PAYMENTS,"1,004.80",0,Direct Payments
10/07/2019,"Adults & Health Commissioning, Health & Social Care",Redacted - Personal Data,DIRECT PAYMENTS,"1,580.66",0,Direct Payments
10/07/2019,"Adults & Health Commissioning, Health & Social Care",Redacted - Personal Data,DIRECT PAYMENTS,"1,004.80",0,Direct Payments
10/07/2019,"Adults & Health Commissioning, Health & Social Care",Redacted - Personal Data,DIRECT PAYMENTS,"1,004.80",0,Direct Payments
10/07/2019,"Adults & Health Commissioning, Health & Social Care",Redacted - Personal Data,DIRECT PAYMENTS,724.57,0,Non Commercial Supplier
10/07/2019,"Adults & Health Commissioning, Health & Social Care",Redacted - Personal Data,DIRECT PAYMENTS,724.57,0,Non Commercial Supplier
10/07/2019,"Adults & Health Commissioning, Health & Social Care",Redacted - Personal Data,DIRECT PAYMENTS,724.57,0,Non Commercial Supplier
10/07/2019,"Adults & Health Commissioning, Health & Social Care",Redacted - Personal Data,DIRECT PAYMENTS,724.57,0,Non Commercial Supplier
10/07/2019,Inclusive Economy & Housing Chief Planning Officer,Andrew Price,LAND FILL TAX,350.00,0,Supplier
10/07/2019,"Adults & Health Commissioning, Health & Social Care",Redacted - Personal Data,DIRECT PAYMENTS,"1,212.18",0,Foster Carers
10/07/2019,"Adults & Health Commissioning, Health & Social Care",Redacted - Personal Data,DIRECT PAYMENTS,"1,212.18",0,Foster Carers
10/07/2019,"Adults & Health Commissioning, Health & Social Care",Redacted - Personal Data,DIRECT PAYMENTS,"1,212.18",0,Foster Carers
10/07/2019,"Adults & Health Commissioning, Health & Social Care",Redacted - Personal Data,DIRECT PAYMENTS,"1,212.18",0,Foster Carers
10/07/2019,"Adults & Health Commissioning, Health & Social Care",Redacted - Personal Data,DIRECT PAYMENTS,"1,140.18",0,Direct Payments
10/07/2019,Environment and Sustainable Transport Licensing & Regulation,Anglian Water,WATER AND SEWERAGE,332.15,0,Commercial Supplier
10/07/2019,"Adults & Health Commissioning, Health & Social Care",Redacted - Personal Data,DIRECT PAYMENTS,340.00,0,Individuals
10/07/2019,"Adults & Health Commissioning, Health & Social Care",Redacted - Personal Data,DIRECT PAYMENTS,340.00,0,Individuals
10/07/2019,"Adults & Health Commissioning, Health & Social Care",Redacted - Personal Data,DIRECT PAYMENTS,340.00,0,Individuals
10/07/2019,"Adults & Health Commissioning, Health & Social Care",Redacted - Personal Data,DIRECT PAYMENTS,340.00,0,Individuals
10/07/2019,"Adults & Health Commissioning, Health & Social Care",Redacted - Personal Data,DIRECT PAYMENTS,884.14,0,Foster Carers
10/07/2019,"Adults & Health Commissioning, Health & Social Care",Redacted - Personal Data,DIRECT PAYMENTS,884.14,0,Foster Carers
10/07/2019,"Adults & Health Commissioning, Health & Social Care",Redacted - Personal Data,DIRECT PAYMENTS,884.14,0,Foster Carers
10/07/2019,"Adults & Health Commissioning, Health & Social Care",Redacted - Personal Data,DIRECT PAYMENTS,884.14,0,Foster Carers
10/07/2019,Adults & Health Operations,Redacted - Personal Data,HOTEL AND OTHER ACCOMMODATION COSTS,"39,124.77",0,Employee
10/07/2019,Adults & Health Operations,Redacted - Personal Data,"PURCHASE - EQUIPMENT, FURNITURE AND MATERIALS",901.61,0,Employee
10/07/2019,Adults & Health Operations,Redacted - Personal Data,LEGAL FEES,435.68,0,Employee
10/07/2019,"Adults & Health Commissioning, Health & Social Care",Redacted - Personal Data,DIRECT PAYMENTS,278.99,0,Direct Payments
10/07/2019,"Adults & Health Commissioning, Health & Social Care",Redacted - Personal Data,DIRECT PAYMENTS,278.99,0,Direct Payments
10/07/2019,"Adults & Health Commissioning, Health & Social Care",Redacted - Personal Data,DIRECT PAYMENTS,278.99,0,Direct Payments
10/07/2019,"Adults & Health Commissioning, Health & Social Care",Redacted - Personal Data,DIRECT PAYMENTS,278.99,0,Direct Payments
10/07/2019,"Adults & Health Commissioning, Health & Social Care",Redacted - Personal Data,DIRECT PAYMENTS,484.55,0,Individuals
10/07/2019,"Adults & Health Commissioning, Health & Social Care",Redacted - Personal Data,DIRECT PAYMENTS,484.55,0,Individuals
10/07/2019,"Adults & Health Commissioning, Health & Social Care",Redacted - Personal Data,DIRECT PAYMENTS,484.55,0,Individuals
10/07/2019,"Adults & Health Commissioning, Health & Social Care",Redacted - Personal Data,DIRECT PAYMENTS,484.55,0,Individuals
10/07/2019,"Adults & Health Commissioning, Health & Social Care",Redacted - Personal Data,DIRECT PAYMENTS,311.50,0,Individuals
10/07/2019,"Adults & Health Commissioning, Health & Social Care",Redacted - Personal Data,DIRECT PAYMENTS,311.50,0,Individuals
